,Directorate,Supplier Name,Supplier Invoice No,Payment Date,Gross Invoice Value,Vat Amount,Vendor Id,Purpose of Expenditure,Description,Redact flag,Year,Period
1,Community and Housing,SOUTHPARK RESIDENTIAL HOME,955404,12-Apr-23,3220.32,0,19,Older People Placements - East,321017              Nursing & Residential Care Homes,A,2023,1
2,Community and Housing,SOUTHPARK RESIDENTIAL HOME,955691,12-Apr-23,3157.14,0,19,Older People Placements - East,321017              Nursing & Residential Care Homes,A,2023,1
3,Community and Housing,SOUTHPARK RESIDENTIAL HOME,955721,12-Apr-23,3105.31,0,19,Older People Placements - East,321017              Nursing & Residential Care Homes,A,2023,1
4,Community and Housing,SOUTHPARK RESIDENTIAL HOME,955749,12-Apr-23,2965.2,0,19,Older People Placements - East,321017              Nursing & Residential Care Homes,A,2023,1
5,Community and Housing,THE WHITE HOUSE NURSING HOME,955731,12-Apr-23,3396,0,611,Older People Placements - East,321000              Social Community Care Supplies & Services - Adult,A,2023,1
6,"Children, Schools and Family",BLOSSOM HOUSE SCHOOL,9316,12-Apr-23,16750,0,777,Non-Delegated Statements,170000              Education,A,2023,1
7,"Children, Schools and Family",BLOSSOM HOUSE SCHOOL,9380,12-Apr-23,17250,0,777,Non-Delegated Statements,170000              Education,A,2023,1
8,"Children, Schools and Family",BLOSSOM HOUSE SCHOOL,9339,12-Apr-23,15250,0,777,Non-Delegated Statements,170000              Education,A,2023,1
9,"Children, Schools and Family",BLOSSOM HOUSE SCHOOL,9347,12-Apr-23,15950,0,777,Non-Delegated Statements,170000              Education,A,2023,1
10,"Children, Schools and Family",BLOSSOM HOUSE SCHOOL,9323,12-Apr-23,14850,0,777,Non-Delegated Statements,170000              Education,A,2023,1
11,"Children, Schools and Family",BLOSSOM HOUSE SCHOOL,9354,12-Apr-23,15950,0,777,Non-Delegated Statements,170000              Education,A,2023,1
12,"Children, Schools and Family",BLOSSOM HOUSE SCHOOL,9361,12-Apr-23,16750,0,777,Non-Delegated Statements,170000              Education,A,2023,1
13,"Children, Schools and Family",BLOSSOM HOUSE SCHOOL,9379,12-Apr-23,17250,0,777,Non-Delegated Statements,170000              Education,A,2023,1
14,"Children, Schools and Family",BLOSSOM HOUSE SCHOOL,9330,12-Apr-23,12750,0,777,Non-Delegated Statements,170000              Education,A,2023,1
15,"Children, Schools and Family",BLOSSOM HOUSE SCHOOL,9314,12-Apr-23,15250,0,777,Non-Delegated Statements,170000              Education,A,2023,1
16,"Children, Schools and Family",BLOSSOM HOUSE SCHOOL,9322,12-Apr-23,16750,0,777,Non-Delegated Statements,170000              Education,A,2023,1
17,"Children, Schools and Family",BLOSSOM HOUSE SCHOOL,9353,12-Apr-23,11950,0,777,Non-Delegated Statements,170000              Education,A,2023,1
18,"Children, Schools and Family",BLOSSOM HOUSE SCHOOL,9329,12-Apr-23,16750,0,777,Non-Delegated Statements,170000              Education,A,2023,1
19,"Children, Schools and Family",BLOSSOM HOUSE SCHOOL,9367,12-Apr-23,13150,0,777,Non-Delegated Statements,170000              Education,A,2023,1
20,"Children, Schools and Family",BLOSSOM HOUSE SCHOOL,9375,12-Apr-23,13150,0,777,Non-Delegated Statements,170000              Education,A,2023,1
21,"Children, Schools and Family",BLOSSOM HOUSE SCHOOL,9313,12-Apr-23,15250,0,777,Non-Delegated Statements,170000              Education,A,2023,1
22,"Children, Schools and Family",BLOSSOM HOUSE SCHOOL,9366,12-Apr-23,16750,0,777,Non-Delegated Statements,170000              Education,A,2023,1
23,"Children, Schools and Family",BLOSSOM HOUSE SCHOOL,9335,12-Apr-23,14450,0,777,Non-Delegated Statements,170000              Education,A,2023,1
24,"Children, Schools and Family",BLOSSOM HOUSE SCHOOL,9373,12-Apr-23,15950,0,777,Non-Delegated Statements,170000              Education,A,2023,1
25,"Children, Schools and Family",BLOSSOM HOUSE SCHOOL,9376,12-Apr-23,12750,0,777,Non-Delegated Statements,170000              Education,A,2023,1
26,"Children, Schools and Family",BLOSSOM HOUSE SCHOOL,9311,12-Apr-23,15950,0,777,Non-Delegated Statements,170000              Education,A,2023,1
27,"Children, Schools and Family",BLOSSOM HOUSE SCHOOL,9318,12-Apr-23,15950,0,777,Non-Delegated Statements,170000              Education,A,2023,1
28,"Children, Schools and Family",BLOSSOM HOUSE SCHOOL,9349,12-Apr-23,15250,0,777,Non-Delegated Statements,170000              Education,A,2023,1
29,"Children, Schools and Family",BLOSSOM HOUSE SCHOOL,9381,12-Apr-23,17250,0,777,Non-Delegated Statements,170000              Education,A,2023,1
30,"Children, Schools and Family",BLOSSOM HOUSE SCHOOL,9370,12-Apr-23,20000,0,777,Non-Delegated Statements,170000              Education,A,2023,1
31,"Children, Schools and Family",BLOSSOM HOUSE SCHOOL,9340,12-Apr-23,13150,0,777,Non-Delegated Statements,170000              Education,A,2023,1
32,"Children, Schools and Family",BLOSSOM HOUSE SCHOOL,9348,12-Apr-23,14350,0,777,Non-Delegated Statements,170000              Education,A,2023,1
33,"Children, Schools and Family",BLOSSOM HOUSE SCHOOL,9362,12-Apr-23,14450,0,777,Non-Delegated Statements,170000              Education,A,2023,1
34,"Children, Schools and Family",BLOSSOM HOUSE SCHOOL,9331,12-Apr-23,17250,0,777,Non-Delegated Statements,170000              Education,A,2023,1
35,"Children, Schools and Family",BLOSSOM HOUSE SCHOOL,9369,12-Apr-23,15250,0,777,Non-Delegated Statements,170000              Education,A,2023,1
36,"Children, Schools and Family",BLOSSOM HOUSE SCHOOL,9315,12-Apr-23,14450,0,777,Non-Delegated Statements,170000              Education,A,2023,1
37,"Children, Schools and Family",BLOSSOM HOUSE SCHOOL,9368,12-Apr-23,17250,0,777,Non-Delegated Statements,170000              Education,A,2023,1
38,"Children, Schools and Family",BLOSSOM HOUSE SCHOOL,9346,12-Apr-23,12350,0,777,Non-Delegated Statements,170000              Education,A,2023,1
39,"Children, Schools and Family",BLOSSOM HOUSE SCHOOL,9336,12-Apr-23,15950,0,777,Non-Delegated Statements,170000              Education,A,2023,1
40,"Children, Schools and Family",BLOSSOM HOUSE SCHOOL,9345,12-Apr-23,15250,0,777,Non-Delegated Statements,170000              Education,A,2023,1
41,"Children, Schools and Family",BLOSSOM HOUSE SCHOOL,9321,12-Apr-23,14850,0,777,Non-Delegated Statements,170000              Education,A,2023,1
42,"Children, Schools and Family",BLOSSOM HOUSE SCHOOL,9352,12-Apr-23,14450,0,777,Non-Delegated Statements,170000              Education,A,2023,1
43,"Children, Schools and Family",BLOSSOM HOUSE SCHOOL,9377,12-Apr-23,12350,0,777,Non-Delegated Statements,170000              Education,A,2023,1
44,"Children, Schools and Family",BLOSSOM HOUSE SCHOOL,9328,12-Apr-23,12350,0,777,Non-Delegated Statements,170000              Education,A,2023,1
45,"Children, Schools and Family",BLOSSOM HOUSE SCHOOL,9312,12-Apr-23,17250,0,777,Non-Delegated Statements,170000              Education,A,2023,1
46,"Children, Schools and Family",BLOSSOM HOUSE SCHOOL,9319,12-Apr-23,16750,0,777,Non-Delegated Statements,170000              Education,A,2023,1
47,"Children, Schools and Family",BLOSSOM HOUSE SCHOOL,9351,12-Apr-23,16750,0,777,Non-Delegated Statements,170000              Education,A,2023,1
48,"Children, Schools and Family",BLOSSOM HOUSE SCHOOL,9358,12-Apr-23,15950,0,777,Non-Delegated Statements,170000              Education,A,2023,1
49,"Children, Schools and Family",BLOSSOM HOUSE SCHOOL,9327,12-Apr-23,15250,0,777,Non-Delegated Statements,170000              Education,A,2023,1
50,"Children, Schools and Family",BLOSSOM HOUSE SCHOOL,9365,12-Apr-23,13150,0,777,Non-Delegated Statements,170000              Education,A,2023,1
51,"Children, Schools and Family",BLOSSOM HOUSE SCHOOL,9334,12-Apr-23,16750,0,777,Non-Delegated Statements,170000              Education,A,2023,1
52,"Children, Schools and Family",BLOSSOM HOUSE SCHOOL,9372,12-Apr-23,13150,0,777,Non-Delegated Statements,170000              Education,A,2023,1
53,"Children, Schools and Family",BLOSSOM HOUSE SCHOOL,9342,12-Apr-23,15950,0,777,Non-Delegated Statements,170000              Education,A,2023,1
54,"Children, Schools and Family",BLOSSOM HOUSE SCHOOL,9350,12-Apr-23,15950,0,777,Non-Delegated Statements,170000              Education,A,2023,1
55,"Children, Schools and Family",BLOSSOM HOUSE SCHOOL,9357,12-Apr-23,16750,0,777,Non-Delegated Statements,170000              Education,A,2023,1
56,"Children, Schools and Family",BLOSSOM HOUSE SCHOOL,9326,12-Apr-23,12750,0,777,Non-Delegated Statements,170000              Education,A,2023,1
57,"Children, Schools and Family",BLOSSOM HOUSE SCHOOL,9382,12-Apr-23,17250,0,777,Non-Delegated Statements,170000              Education,A,2023,1
58,"Children, Schools and Family",BLOSSOM HOUSE SCHOOL,9333,12-Apr-23,12350,0,777,Non-Delegated Statements,170000              Education,A,2023,1
59,"Children, Schools and Family",BLOSSOM HOUSE SCHOOL,9371,12-Apr-23,17250,0,777,Non-Delegated Statements,170000              Education,A,2023,1
60,"Children, Schools and Family",BLOSSOM HOUSE SCHOOL,9310,12-Apr-23,13150,0,777,Non-Delegated Statements,170000              Education,A,2023,1
61,"Children, Schools and Family",BLOSSOM HOUSE SCHOOL,9325,12-Apr-23,13750,0,777,Non-Delegated Statements,170000              Education,A,2023,1
62,"Children, Schools and Family",BLOSSOM HOUSE SCHOOL,9356,12-Apr-23,20583.33,0,777,Non-Delegated Statements,170000              Education,A,2023,1
63,"Children, Schools and Family",BLOSSOM HOUSE SCHOOL,9363,12-Apr-23,14850,0,777,Non-Delegated Statements,170000              Education,A,2023,1
64,"Children, Schools and Family",BLOSSOM HOUSE SCHOOL,9309,12-Apr-23,12350,0,777,Non-Delegated Statements,170000              Education,A,2023,1
65,"Children, Schools and Family",BLOSSOM HOUSE SCHOOL,9355,12-Apr-23,12350,0,777,Non-Delegated Statements,170000              Education,A,2023,1
66,"Children, Schools and Family",BLOSSOM HOUSE SCHOOL,9338,12-Apr-23,16750,0,777,Non-Delegated Statements,170000              Education,A,2023,1
67,"Children, Schools and Family",BLOSSOM HOUSE SCHOOL,9378,12-Apr-23,16750,0,777,Non-Delegated Statements,170000              Education,A,2023,1
68,"Children, Schools and Family",BLOSSOM HOUSE SCHOOL,9359,12-Apr-23,17250,0,777,Non-Delegated Statements,170000              Education,A,2023,1
69,"Children, Schools and Family",BLOSSOM HOUSE SCHOOL,9341,12-Apr-23,17250,0,777,Non-Delegated Statements,170000              Education,A,2023,1
70,"Children, Schools and Family",BLOSSOM HOUSE SCHOOL,9317,12-Apr-23,15950,0,777,Non-Delegated Statements,170000              Education,A,2023,1
71,"Children, Schools and Family",BLOSSOM HOUSE SCHOOL,9332,12-Apr-23,15250,0,777,Non-Delegated Statements,170000              Education,A,2023,1
72,"Children, Schools and Family",BLOSSOM HOUSE SCHOOL,9360,25-Apr-23,29666.66,0,777,Non-Delegated Statements,170000              Education,A,2023,1
73,Community and Housing,The Wimbledon Guild of Social Welfare,ASC GRANT APR23,24-Apr-23,52252.5,0,802,Public Health Main,190000              Facilities & Management Services,A,2023,1
74,Unassigned,PERSEID SCHOOL,SCHOOLS 2324/1 A,05-Apr-23,745299.45,0,983,Schools,170000              Education,A,2023,1
75,Community and Housing,MOUNT CARMEL HOSTEL,23204,12-Apr-23,2218.26,0,1053,Older People Placements - East,321017              Nursing & Residential Care Homes,A,2023,1
76,Community and Housing,MOUNT CARMEL HOSTEL,955681,12-Apr-23,925.71,0,1053,ASC - Substance Misuse - Drugs,321017              Nursing & Residential Care Homes,A,2023,1
77,Community and Housing,SUTTON NURSING HOMES LTD,955357,12-Apr-23,3056.44,0,1208,Older People Placements - East,321017              Nursing & Residential Care Homes,A,2023,1
78,Community and Housing,SUTTON NURSING HOMES LTD,955442,12-Apr-23,3087.16,0,1208,Older People Placements - East,321017              Nursing & Residential Care Homes,A,2023,1
79,Environment and Regeneration,LONDON BOROUGH OF CROYDON,3021360,12-Apr-23,54000,9000,1258,PARK OPERATIONS,OLA,A,2023,1
80,Corporate Services,L.B OF RICHMOND UPON THAMES,RC376792128M12D,13-Apr-23,12050,0,1353,SLLP Client Income,OLA,A,2023,1
81,Unassigned,MELROSE SPECIAL SCHOOL,SCHOOLS 2324/1 A,05-Apr-23,644845.44,0,1393,Schools,170000              Education,A,2023,1
82,Unassigned,WILLIAM MORRIS PRIMARY SCHOOL,SCHOOLS 2324/1 A,05-Apr-23,247020.73,0,1416,Schools,170000              Education,A,2023,1
83,Unassigned,ST THOMAS OF CANTERBURY PRIMARY,SCHOOLS 2324/1 A,05-Apr-23,328150.44,0,1418,Schools,170000              Education,A,2023,1
84,Unassigned,PRIORY C OF E MIDDLE SCHOOL,SCHOOLS 2324/1 A,05-Apr-23,230229.73,0,1420,Schools,170000              Education,A,2023,1
85,Unassigned,LIBERTY PRIMARY SCHOOL,SCHOOLS 2324/1 A,05-Apr-23,315995.79,0,1424,Schools,170000              Education,A,2023,1
86,Unassigned,HILLCROSS PRIMARY SCHOOL,SCHOOLS 2324/1 A,05-Apr-23,299019.84,0,1425,Schools,170000              Education,A,2023,1
87,Unassigned,CRANMER PRIMARY SCHOOL,SCHOOLS 2324/1 A,05-Apr-23,472349.16,0,1426,Schools,170000              Education,A,2023,1
88,"Children, Schools and Family",CRANMER PRIMARY SCHOOL,909,21-Apr-23,550,0,1426,SW London School Effectiveness,170000              Education,A,2023,1
89,Unassigned,WIMBLEDON COLLEGE SCHOOL,SCHOOLS 2324/1 A,05-Apr-23,1111856.84,0,1428,Schools,170000              Education,A,2023,1
90,"Children, Schools and Family",URSULINE HIGH SCHOOL,HAFSPR23-P1,05-Apr-23,1500,0,1429,Holiday Act Food Prog grntfnd,170000              Education,A,2023,1
91,Unassigned,URSULINE HIGH SCHOOL,SCHOOLS 2324/1 A,05-Apr-23,1132370.56,0,1429,Schools,170000              Education,A,2023,1
92,Unassigned,RUTLISH SCHOOL,SCHOOLS 2324/1 A,05-Apr-23,1305548.49,0,1431,Schools,170000              Education,A,2023,1
93,Unassigned,RICARDS LODGE SECONDARY SCHOOL,SCHOOLS 2324/1 A,05-Apr-23,1177476.96,0,1433,Schools,170000              Education,A,2023,1
94,Unassigned,WIMBLEDON PARK PRIMARY SCHOOL,SCHOOLS 2324/1 A,05-Apr-23,395323.01,0,1436,Schools,170000              Education,A,2023,1
95,Unassigned,ST TERESA'S R C PRIMARY SCHOOL,SCHOOLS 2324/1 A,05-Apr-23,328515.71,0,1438,Schools,170000              Education,A,2023,1
96,Unassigned,ST MARYS CATHOLIC PRIMARY SCHOOL,SCHOOLS 2324/1 A,05-Apr-23,274564.51,0,1439,Schools,170000              Education,A,2023,1
97,Unassigned,ST MARKS PRIMARY SCHOOL,SCHOOLS 2324/1 A,05-Apr-23,194323.19,0,1440,Schools,170000              Education,A,2023,1
98,Unassigned,ST JOHN FISHER RC PRIMARY SCH.,SCHOOLS 2324/1 A,05-Apr-23,278964.14,0,1441,Schools,170000              Education,A,2023,1
99,Unassigned,SINGLEGATE PRIMARY SCHOOL,SCHOOLS 2324/1 A,05-Apr-23,439879.02,0,1442,Schools,170000              Education,A,2023,1
100,Unassigned,SHERWOOD PRIMARY SCHOOL,SCHOOLS 2324/1 A,05-Apr-23,262714.12,0,1443,Schools,170000              Education,A,2023,1
101,Unassigned,POPLAR PRIMARY SCHOOL,SCHOOLS 2324/1 A,05-Apr-23,457335.01,0,1444,Schools,170000              Education,A,2023,1
102,Unassigned,PELHAM PRIMARY SCHOOL,SCHOOLS 2324/1 A,05-Apr-23,293270.28,0,1445,Schools,170000              Education,A,2023,1
103,Unassigned,MORDEN PRIMARY SCHOOL,SCHOOLS 2324/1 A,05-Apr-23,187815.52,0,1446,Schools,170000              Education,A,2023,1
104,Unassigned,MERTON PARK PRIMARY SCHOOL,SCHOOLS 2324/1 A,05-Apr-23,157413.85,0,1447,Schools,170000              Education,A,2023,1
105,Unassigned,MERTON ABBEY PRIMARY SCHOOL,SCHOOLS 2324/1 A,05-Apr-23,194489.06,0,1448,Schools,170000              Education,A,2023,1
106,Unassigned,LONESOME PRIMARY SCHOOL,SCHOOLS 2324/1 A,05-Apr-23,286433.16,0,1450,Schools,170000              Education,A,2023,1
107,"Children, Schools and Family",LINKS PRIMARY SCHOOL,AB001,13-Apr-23,1140,0,1451,Child Disabilities - Placement,170000              Education,A,2023,1
108,"Children, Schools and Family",LINKS PRIMARY SCHOOL,HAFSPR23-P1,05-Apr-23,1250,0,1451,Holiday Act Food Prog grntfnd,170000              Education,A,2023,1
109,Unassigned,LINKS PRIMARY SCHOOL,SCHOOLS 2324/1 A,05-Apr-23,263794.69,0,1451,Schools,170000              Education,A,2023,1
110,"Children, Schools and Family",LINKS PRIMARY SCHOOL,HAFSPR23-P2,21-Apr-23,1187.5,0,1451,Holiday Act Food Prog grntfnd,170000              Education,A,2023,1
111,Unassigned,JOSEPH HOOD PRIMARY SCHOOL,SCHOOLS 2324/1 A,05-Apr-23,279104.07,0,1452,Schools,170000              Education,A,2023,1
112,"Children, Schools and Family",JOSEPH HOOD PRIMARY SCHOOL,JH-23/24-01,26-Apr-23,866,0,1452,MIASS Info Advice and Support,170000              Education,A,2023,1
113,Unassigned,HOLY TRINITY C OF E PRIMARY SCHOOL,SCHOOLS 2324/1 A,05-Apr-23,286845.98,0,1453,Schools,170000              Education,A,2023,1
114,Unassigned,HOLLYMOUNT PRIMARY SCHOOL,SCHOOLS 2324/1 A,05-Apr-23,280984.83,0,1454,Schools,170000              Education,A,2023,1
115,Unassigned,HATFEILD PRIMARY SCHOOL,SCHOOLS 2324/1 A,05-Apr-23,365234.58,0,1455,Schools,170000              Education,A,2023,1
116,Unassigned,HASLEMERE PRIMARY SCHOOL,SCHOOLS 2324/1 A,05-Apr-23,301861.93,0,1456,Schools,170000              Education,A,2023,1
117,Unassigned,GARFIELD PRIMARY SCHOOL,SCHOOLS 2324/1 A,05-Apr-23,223651.42,0,1460,Schools,170000              Education,A,2023,1
118,Unassigned,BOND PRIMARY SCHOOL,SCHOOLS 2324/1 A,05-Apr-23,284675.15,0,1462,Schools,170000              Education,A,2023,1
119,Unassigned,BISHOP GILPIN C OF E PRIMARY,SCHOOLS 2324/1 A,05-Apr-23,282626.14,0,1463,Schools,170000              Education,A,2023,1
120,Unassigned,ABBOTSBURY PRIMARY SCHOOL,SCHOOLS 2324/1 A,05-Apr-23,308293.6,0,1467,Schools,170000              Education,A,2023,1
121,Unassigned,WIMBLEDON CHASE PRIMARY SCHOOL,SCHOOLS 2324/1 A,05-Apr-23,505675.16,0,1469,Schools,170000              Education,A,2023,1
122,Unassigned,GORRINGE PARK PRIMARY SCHOOL,SCHOOLS 2324/1 A,05-Apr-23,298050.28,0,1470,Schools,170000              Education,A,2023,1
123,Unassigned,RAYNES PARK SECONDARY SCHOOL,SCHOOLS 2324/1 A,05-Apr-23,1239438.23,0,1471,Schools,170000              Education,A,2023,1
124,Unassigned,SS PETER AND PAUL RC PRIMARY SCH,SCHOOLS 2324/1 A,05-Apr-23,228271.31,0,1472,Schools,170000              Education,A,2023,1
125,Unassigned,DUNDONALD PRIMARY SCHOOL,SCHOOLS 2324/1 A,05-Apr-23,287433.56,0,1473,Schools,170000              Education,A,2023,1
126,Environment and Regeneration,DUNDONALD PRIMARY SCHOOL,DPS0088,25-Apr-23,1753.48,0,1473,Park Utilities,170000              Education,A,2023,1
127,Community and Housing,MERTON MENCAP,ASC GRANT APR23,18-Apr-23,29999.8,0,1519,Public Health Main,200000              Financial Services,A,2023,1
128,Community and Housing,MERTON MENCAP,4407,19-Apr-23,560,0,1519,Learning Disabilities Placemnt,200000              Financial Services,A,2023,1
129,Community and Housing,MERTON MENCAP,4411,28-Apr-23,560,0,1519,Learning Disabilities Placemnt,200000              Financial Services,A,2023,1
130,Community and Housing,MERTON MENCAP,4410,28-Apr-23,560,0,1519,Learning Disabilities Placemnt,200000              Financial Services,A,2023,1
131,Community and Housing,MERTON MENCAP,4409,28-Apr-23,560,0,1519,Learning Disabilities Placemnt,200000              Financial Services,A,2023,1
132,Unassigned,ALL SAINTS C OF E PRIMARY SCH,SCHOOLS 2324/1 A,05-Apr-23,267492.68,0,1680,Schools,170000              Education,A,2023,1
133,"Children, Schools and Family",REDACTED PERSONAL DATA,954615,05-Apr-23,514.75,0,1801,Placements Under 18,321100              Social Community Care Supplies & Services - Children,R,2023,1
134,"Children, Schools and Family",REDACTED PERSONAL DATA,956524,14-Apr-23,514.75,0,1801,Placements Under 18,321100              Social Community Care Supplies & Services - Children,R,2023,1
135,"Children, Schools and Family",REDACTED PERSONAL DATA,958308,20-Apr-23,596.49,0,1801,Placements Under 18,321100              Social Community Care Supplies & Services - Children,R,2023,1
136,"Children, Schools and Family",REDACTED PERSONAL DATA,958325,20-Apr-23,612.43,0,1801,Placements Under 18,321100              Social Community Care Supplies & Services - Children,R,2023,1
137,"Children, Schools and Family",REDACTED PERSONAL DATA,961604,27-Apr-23,538.33,0,1801,Placements Under 18,321100              Social Community Care Supplies & Services - Children,R,2023,1
138,Corporate Services,CIVICA UK LIMITED,C/BN269306,24-Apr-23,1377.94,229.66,1873,Benefits Administration,270000              Information Communication Technology,A,2023,1
139,Corporate Services,CIVICA UK LIMITED,C/BN269307,24-Apr-23,1724.72,287.45,1873,Benefits Administration,270000              Information Communication Technology,A,2023,1
140,Corporate Services,CIVICA UK LIMITED,C/BN270811,08-May-23,4048.21,674.7,1873,Benefits Administration,270000              Information Communication Technology,A,2023,1
141,Community and Housing,CIVICA UK LIMITED,C/BN269308,24-Apr-23,4057.2,676.2,1873,Financial Assessment Team (FA),270000              Information Communication Technology,A,2023,1
142,Corporate Services,CIVICA UK LIMITED,M/MG113084,26-Apr-23,4523.87,753.98,1873,Democracy Services,270000              Information Communication Technology,A,2023,1
143,Corporate Services,CIVICA UK LIMITED,C/BN271890,22-May-23,3238.02,539.67,1873,Benefits Administration,270000              Information Communication Technology,A,2023,1
144,Community and Housing,THE FRANCES TAYLOR FOUNDATION,955424,12-Apr-23,3812.04,0,2011,Learning Disabilities Placemnt,321017              Nursing & Residential Care Homes,A,2023,1
145,Unassigned,SACRED HEART R C PRIMARY SCH.,SCHOOLS 2324/1 A,05-Apr-23,249711.99,0,2076,Schools,170000              Education,A,2023,1
146,Community and Housing,GENEVA ROAD LIMITED,310323JW,14-Apr-23,781.09,130.18,2198,Older People Placements - East,321000              Social Community Care Supplies & Services - Adult,A,2023,1
147,Corporate Services,LONDON BOROUGH OF SUTTON,SLLPINCOMEM1222,13-Apr-23,13449.75,0,2313,SLLP Client Income,OLA,A,2023,1
148,"Children, Schools and Family",LONDON BOROUGH OF SUTTON,3190548844,26-Apr-23,31780.55,0,2313,Children & Families Hub,OLA,A,2023,1
149,Corporate Services,LONDON BOROUGH OF SUTTON,3190629497,28-Apr-23,10000,0,2313,Chief Executive,OLA,A,2023,1
150,Corporate Services,GREENHAM TRADING LTD,07/490719,18-Apr-23,2410.92,401.82,2445,Corporate Contracts - FM,130000              Cleaning & Janitorial,A,2023,1
151,Corporate Services,GREENHAM TRADING LTD,07/492701,08-May-23,2410.92,401.82,2445,Corporate Contracts - FM,130000              Cleaning & Janitorial,A,2023,1
152,Community and Housing,FREEWAYS TRUST LTD,955340,12-Apr-23,3229.2,0,2474,Learning Disabilities Placemnt,321017              Nursing & Residential Care Homes,A,2023,1
153,Unassigned,WIMBLEDON AND PUTNEY COMMON,2.02304E+11,28-Apr-23,42294.8,0,10566,WPCC,PRECEPT,A,2023,1
154,Community and Housing,CLOYDA LTD,955608,12-Apr-23,3294.48,0,10762,Older People Placements - East,321017              Nursing & Residential Care Homes,A,2023,1
155,Community and Housing,CHEGWORTH N.H. (BAYSWIFT LTD),955565,12-Apr-23,3056.4,0,11057,Learning Disabilities Placemnt,321000              Social Community Care Supplies & Services - Adult,A,2023,1
156,"Children, Schools and Family",REDACTED PERSONAL DATA,954568,05-Apr-23,654.24,0,11130,Placements Under 18,321100              Social Community Care Supplies & Services - Children,R,2023,1
157,"Children, Schools and Family",REDACTED PERSONAL DATA,956476,14-Apr-23,654.24,0,11130,Placements Under 18,321100              Social Community Care Supplies & Services - Children,R,2023,1
158,"Children, Schools and Family",REDACTED PERSONAL DATA,958277,20-Apr-23,751.92,0,11130,Placements Under 18,321100              Social Community Care Supplies & Services - Children,R,2023,1
159,"Children, Schools and Family",REDACTED PERSONAL DATA,961553,27-Apr-23,753.11,0,11130,Placements Under 18,321100              Social Community Care Supplies & Services - Children,R,2023,1
160,Community and Housing,Queens Court,955370,12-Apr-23,3220.32,0,12747,Older People Placements - East,321017              Nursing & Residential Care Homes,A,2023,1
161,Corporate Services,CIPFA,3168884,25-Apr-23,3018,503,13055,Learning and Development,200000              Financial Services,A,2023,1
162,Community and Housing,ASHCROFT CARE SERVICES,955564,12-Apr-23,6161.24,0,13287,Learning Disabilities Placemnt,321017              Nursing & Residential Care Homes,A,2023,1
163,Community and Housing,SHARE COMMUNITY LTD,231778,05-Apr-23,1050,0,13487,Learning Disabilities Placemnt,321017              Nursing & Residential Care Homes,A,2023,1
164,Community and Housing,SHARE COMMUNITY LTD,231799,05-Apr-23,1125,0,13487,Learning Disabilities Placemnt,321017              Nursing & Residential Care Homes,A,2023,1
165,Community and Housing,SHARE COMMUNITY LTD,231790,05-Apr-23,1050,0,13487,Learning Disabilities Placemnt,321017              Nursing & Residential Care Homes,A,2023,1
166,Community and Housing,SHARE COMMUNITY LTD,231787,05-Apr-23,1400,0,13487,Learning Disabilities Placemnt,321017              Nursing & Residential Care Homes,A,2023,1
167,Community and Housing,FITZROY SUPPORT,955676,12-Apr-23,8304.28,0,13535,Learning Disabilities Placemnt,321017              Nursing & Residential Care Homes,A,2023,1
168,Community and Housing,CANTERBURY OAST TRUST LTD,955351,12-Apr-23,2541.24,0,13566,Learning Disabilities Placemnt,321017              Nursing & Residential Care Homes,A,2023,1
169,Community and Housing,MACINTYRE,955362,12-Apr-23,5776,0,13585,Learning Disabilities Placemnt,321017              Nursing & Residential Care Homes,A,2023,1
170,Community and Housing,MACINTYRE,955534,12-Apr-23,5641.36,0,13585,Learning Disabilities Placemnt,321017              Nursing & Residential Care Homes,A,2023,1
171,Community and Housing,MACINTYRE,955641,12-Apr-23,5641.36,0,13585,Older People Placements - East,321017              Nursing & Residential Care Homes,A,2023,1
172,Community and Housing,MACINTYRE,955674,12-Apr-23,4825.24,0,13585,Learning Disabilities Placemnt,321017              Nursing & Residential Care Homes,A,2023,1
173,Community and Housing,KENT AUTISTIC TRUST,955651,12-Apr-23,7494.72,0,13670,Learning Disabilities Placemnt,321017              Nursing & Residential Care Homes,A,2023,1
174,Community and Housing,UNITED RESPONSE,VSMR824515RH,24-Apr-23,4134.62,689.1,14616,Learning Disabilities Placemnt,321000              Social Community Care Supplies & Services - Adult,A,2023,1
175,Community and Housing,UNITED RESPONSE,VSMR824515DH,24-Apr-23,3842.88,640.48,14616,Learning Disabilities Placemnt,321000              Social Community Care Supplies & Services - Adult,A,2023,1
176,Community and Housing,UNITED RESPONSE,VSMR824515HM,24-Apr-23,4572.24,762.04,14616,Learning Disabilities Placemnt,321000              Social Community Care Supplies & Services - Adult,A,2023,1
177,Community and Housing,UNITED RESPONSE,VSMR824515SBS,24-Apr-23,4086.05,681.01,14616,Learning Disabilities Placemnt,321000              Social Community Care Supplies & Services - Adult,A,2023,1
178,Community and Housing,UNITED RESPONSE,VSMR824515CW,24-Apr-23,4766.4,794.4,14616,Learning Disabilities Placemnt,321000              Social Community Care Supplies & Services - Adult,A,2023,1
179,Environment and Regeneration,THE WANDLE INDUSTRIAL MUSEUM,GRANT APRIL 2023,11-Apr-23,2260,0,14885,Grants Programme,200000              Financial Services,A,2023,1
180,Corporate Services,KINGSTON CORPORATION,M12LEGAL22/23,13-Apr-23,10796,0,21573,SLLP Client Income,180000              Environmental Services,A,2023,1
181,Environment and Regeneration,KINGSTON CORPORATION,37505957,27-Apr-23,7364.92,0,21573,Food Waste Service,180000              Environmental Services,A,2023,1
182,Environment and Regeneration,KINGSTON CORPORATION,37505965,15-May-23,13005.42,0,21573,Garden Waste Service,180000              Environmental Services,A,2023,1
183,Unassigned, GREATER LONDON AUTHORITY (LPFA),2.02304E+11,11-Apr-23,69988.1,0,21763,London Pens Fund Auth,PRECEPT,A,2023,1
184,Unassigned, GREATER LONDON AUTHORITY (LPFA),2.02304E+11,16-May-23,69988.1,0,21763,London Pens Fund Auth,PRECEPT,A,2023,1
185,Corporate Services,I J BEIM AND ASSOCIATES LTD,13360,10-May-23,537.24,89.54,24949,SLLP - Disbursements,280000              Legal Services,A,2023,1
186,Community and Housing,NORTH EAST MITCHAM COMM ASSOC,ASC GRANT APR23,18-Apr-23,5709.9,0,27999,Grants to Voluntary Orgs,321100              Social Community Care Supplies & Services - Children,A,2023,1
187,Environment and Regeneration,NORTH EAST MITCHAM COMM ASSOC,GRANT APRIL 2023,12-Apr-23,21342,0,27999,Grants Programme,321100              Social Community Care Supplies & Services - Children,A,2023,1
188,Environment and Regeneration,MITCHAM COMMON CONSERVATORS,MP7,18-Apr-23,1228.5,0,28571,Parks & Recreation Grounds,190000              Facilities & Management Services,A,2023,1
189,Environment and Regeneration,MITCHAM COMMON CONSERVATORS,Jul-23,18-Apr-23,4017,0,28571,Parks & Recreation Grounds,190000              Facilities & Management Services,A,2023,1
190,Community and Housing,MERTON AND MORDEN GUILD,ASC GRANT APR23,17-Apr-23,20350.42,0,29632,Public Health Main,290000              Arts & Leisure Services,A,2023,1
191,Community and Housing,TRINITY COURT NURSING HOME,955324,12-Apr-23,547.01,0,30306,Older People Placements - East,321017              Nursing & Residential Care Homes,A,2023,1
192,Community and Housing,TRINITY COURT NURSING HOME,955326,12-Apr-23,836.76,0,30306,Older People Placements - East,321017              Nursing & Residential Care Homes,A,2023,1
193,Community and Housing,TRINITY COURT NURSING HOME,955399,12-Apr-23,2861.6,0,30306,Older People Placements - East,321017              Nursing & Residential Care Homes,A,2023,1
194,Community and Housing,TRINITY COURT NURSING HOME,955535,12-Apr-23,2985.6,0,30306,Older People Placements - East,321017              Nursing & Residential Care Homes,A,2023,1
195,Community and Housing,TRINITY COURT NURSING HOME,955554,12-Apr-23,984.61,0,30306,Older People Placements - East,321017              Nursing & Residential Care Homes,A,2023,1
196,Community and Housing,TRINITY COURT NURSING HOME,955570,12-Apr-23,3063.24,0,30306,Older People Placements - East,321017              Nursing & Residential Care Homes,A,2023,1
197,Community and Housing,TRINITY COURT NURSING HOME,955585,12-Apr-23,3313.84,0,30306,Phys/Sens Placements - East,321017              Nursing & Residential Care Homes,A,2023,1
198,Community and Housing,TRINITY COURT NURSING HOME,955650,12-Apr-23,2985.6,0,30306,Older People Placements - East,321017              Nursing & Residential Care Homes,A,2023,1
199,Community and Housing,TRINITY COURT NURSING HOME,955656,12-Apr-23,2861.6,0,30306,Older People Placements - East,321017              Nursing & Residential Care Homes,A,2023,1
200,Community and Housing,TRINITY COURT NURSING HOME,955665,12-Apr-23,3063.24,0,30306,Older People Placements - East,321017              Nursing & Residential Care Homes,A,2023,1
201,Community and Housing,TRINITY COURT NURSING HOME,955727,12-Apr-23,2985.6,0,30306,Older People Placements - East,321017              Nursing & Residential Care Homes,A,2023,1
202,Community and Housing,TRINITY COURT NURSING HOME,955754,12-Apr-23,2876.32,0,30306,Older People Placements - East,321017              Nursing & Residential Care Homes,A,2023,1
203,Community and Housing,TRINITY COURT NURSING HOME,955755,12-Apr-23,3063.24,0,30306,Older People Placements - East,321017              Nursing & Residential Care Homes,A,2023,1
204,Community and Housing,TRINITY COURT NURSING HOME,955757,12-Apr-23,3149.6,0,30306,Older People Placements - East,321017              Nursing & Residential Care Homes,A,2023,1
205,Community and Housing,TRINITY COURT NURSING HOME,955759,12-Apr-23,2521.12,0,30306,Older People Placements - East,321017              Nursing & Residential Care Homes,A,2023,1
206,Community and Housing,HAYDON PARK LODGE,955484,12-Apr-23,3485,0,31434,Learning Disabilities Placemnt,321017              Nursing & Residential Care Homes,A,2023,1
207,Community and Housing,HAYDON PARK LODGE,955509,12-Apr-23,4591.44,0,31434,Learning Disabilities Placemnt,321017              Nursing & Residential Care Homes,A,2023,1
208,Community and Housing,HAYDON PARK LODGE,955595,12-Apr-23,5070.76,0,31434,Learning Disabilities Placemnt,321017              Nursing & Residential Care Homes,A,2023,1
209,Community and Housing,HAYDON PARK LODGE,955635,12-Apr-23,4420.08,0,31434,Learning Disabilities Placemnt,321017              Nursing & Residential Care Homes,A,2023,1
210,Community and Housing,Barchester Healthcare Wimbledon Beaumont,955341,12-Apr-23,3220.32,0,33384,Older People Placements - East,321017              Nursing & Residential Care Homes,A,2023,1
211,Community and Housing,Barchester Healthcare Wimbledon Beaumont,955430,12-Apr-23,4056,0,33384,Older People Placements - East,321017              Nursing & Residential Care Homes,A,2023,1
212,Community and Housing,Barchester Healthcare Wimbledon Beaumont,955450,12-Apr-23,3000,0,33384,Older People Placements - East,321017              Nursing & Residential Care Homes,A,2023,1
213,Environment and Regeneration,SOUTH MITCHAM COMMUNITY ASS,GRANT APRIL 2023,12-Apr-23,22114,0,33871,Grants Programme,190000              Facilities & Management Services,A,2023,1
214,Community and Housing,COMFORT CARE SERVICES (UK) LTD,SU1041/839,24-Apr-23,1579.5,0,34932,Mental Health Placements,321000              Social Community Care Supplies & Services - Adult,A,2023,1
215,Community and Housing,COMFORT CARE SERVICES (UK) LTD,SU0294/1549,02-May-23,2380,0,34932,Mental Health Placements,321000              Social Community Care Supplies & Services - Adult,A,2023,1
216,Community and Housing,COMFORT CARE SERVICES (UK) LTD,SU1051/1283-84,24-Apr-23,3295,0,34932,Mental Health Placements,321000              Social Community Care Supplies & Services - Adult,A,2023,1
217,Community and Housing,COMFORT CARE SERVICES (UK) LTD,SU0133/1107,02-May-23,2380,0,34932,Mental Health Placements,321000              Social Community Care Supplies & Services - Adult,A,2023,1
218,Community and Housing,COMFORT CARE SERVICES (UK) LTD,SU0091/272,08-May-23,871.36,0,34932,Mental Health Placements,321000              Social Community Care Supplies & Services - Adult,A,2023,1
219,Community and Housing,COMFORT CARE SERVICES (UK) LTD,SU0291/1109,02-May-23,2380,0,34932,Mental Health Placements,321000              Social Community Care Supplies & Services - Adult,A,2023,1
220,Community and Housing,COMFORT CARE SERVICES (UK) LTD,SU0208/1566,02-May-23,2380,0,34932,Mental Health Placements,321000              Social Community Care Supplies & Services - Adult,A,2023,1
221,Community and Housing,COMFORT CARE SERVICES (UK) LTD,SU0210/1108,02-May-23,2380,0,34932,Mental Health Placements,321000              Social Community Care Supplies & Services - Adult,A,2023,1
222,Community and Housing,COMFORT CARE SERVICES (UK) LTD,SU0184/995,02-May-23,2380,0,34932,Mental Health Placements,321000              Social Community Care Supplies & Services - Adult,A,2023,1
223,Community and Housing,COMFORT CARE SERVICES (UK) LTD,SU0146/1434,02-May-23,2380,0,34932,Mental Health Placements,321000              Social Community Care Supplies & Services - Adult,A,2023,1
224,Community and Housing,COMFORT CARE SERVICES (UK) LTD,SU0201/1435,02-May-23,2380,0,34932,Mental Health Placements,321000              Social Community Care Supplies & Services - Adult,A,2023,1
225,Community and Housing,COMFORT CARE SERVICES (UK) LTD,SU0266/1494,24-Apr-23,2380,0,34932,Mental Health Placements,321000              Social Community Care Supplies & Services - Adult,A,2023,1
226,Community and Housing,COMFORT CARE SERVICES (UK) LTD,SU0298/996,02-May-23,2380,0,34932,Mental Health Placements,321000              Social Community Care Supplies & Services - Adult,A,2023,1
227,Community and Housing,THAMES WATER UTILITIES LTD [SN38 2TW],900047179092APR2,28-Apr-23,512.37,0,35875,Meadowsweet Res Home,370000              Utilities,A,2023,1
228,Unassigned,ST MATTHEW'S C OF E PRIMARY,SCHOOLS 2324/1 A,05-Apr-23,132037.68,0,36050,Schools,170000              Education,A,2023,1
229,"Children, Schools and Family",REDACTED PERSONAL DATA,958320,20-Apr-23,511.03,0,36376,Placements Over 18,321100              Social Community Care Supplies & Services - Children,R,2023,1
230,Community and Housing,AGE UK MERTON,ASC GRANT APR23,24-Apr-23,192241.2,0,37401,Public Health Main,190000              Facilities & Management Services,A,2023,1
231,Community and Housing,JESMUND CARE LTD,955593,12-Apr-23,4000,0,46751,Older People Placements - East,321017              Nursing & Residential Care Homes,A,2023,1
232,Community and Housing,JESMUND CARE LTD,955714,12-Apr-23,3600,0,46751,Older People Placements - East,321017              Nursing & Residential Care Homes,A,2023,1
233,Environment and Regeneration,COLLIERS WOOD COMMUNITY ASSOC,GRANT APRIL 2023,11-Apr-23,7060,0,48016,Grants Programme,200000              Financial Services,A,2023,1
234,Community and Housing,REDACTED PERSONAL DATA,958712,25-Apr-23,4900.28,0,50448,Older People Placements - East,DIRECT PAYMENTS,R,2023,1
235,Community and Housing,LINKAGE COMMUNITY TR.LONG-STAY,955625,12-Apr-23,3340.08,0,52552,Learning Disabilities Placemnt,321017              Nursing & Residential Care Homes,A,2023,1
236,Community and Housing,RUTLAND HOUSE CARE HOME,955501,12-Apr-23,3156,0,53424,Older People Placements - East,321017              Nursing & Residential Care Homes,A,2023,1
237,Community and Housing,RUTLAND HOUSE CARE HOME,955616,12-Apr-23,3200,0,53424,Older People Placements - East,321017              Nursing & Residential Care Homes,A,2023,1
238,Community and Housing,PARK LODGE,955471,12-Apr-23,2940,0,56878,Learning Disabilities Placemnt,321017              Nursing & Residential Care Homes,A,2023,1
239,Community and Housing,PARK LODGE,955568,12-Apr-23,3026.8,0,56878,Learning Disabilities Placemnt,321017              Nursing & Residential Care Homes,A,2023,1
240,Unassigned,CRICKET GREEN SCHOOL,SCHOOLS 2324/1 A,05-Apr-23,836831.98,0,57057,Schools,170000              Education,A,2023,1
241,Community and Housing,KENWARD TRUST,955377,12-Apr-23,3596,0,57058,ASC - Substance Misuse - Drugs,321100              Social Community Care Supplies & Services - Children,A,2023,1
242,"Children, Schools and Family",PEARSON EDUCATION LTD.,3790475,24-Apr-23,796.5,132.75,57285,Language & Learning Service,170000              Education,A,2023,1
243,Community and Housing,MERTON VOLUNTARY SERV COUNCIL,ASC GRANT APR23,26-Apr-23,24775,0,57560,Covid-19 Clinical E Vulnerable,190000              Facilities & Management Services,A,2023,1
244,Corporate Services,MERTON VOLUNTARY SERV COUNCIL,5222,08-May-23,31250,0,57560,Healthwatch,190000              Facilities & Management Services,A,2023,1
245,Environment and Regeneration,MERTON VOLUNTARY SERV COUNCIL,5223,25-Apr-23,6510,0,57560,Greenspaces Team (General),190000              Facilities & Management Services,A,2023,1
246,Corporate Services,JADE SECURITY SERVICE LTD,5305,24-Apr-23,3194.5,532.42,57563,Cash Collections,200000              Financial Services,A,2023,1
247,"Children, Schools and Family",CANBURY SCHOOL LIMITED,4515,06-Apr-23,8972.88,0,57830,Non-Delegated Statements,170000              Education,A,2023,1
248,"Children, Schools and Family",CANBURY SCHOOL LIMITED,4486,06-Apr-23,12151.66,0,57830,Non-Delegated Statements,170000              Education,A,2023,1
249,"Children, Schools and Family",CANBURY SCHOOL LIMITED,4470,06-Apr-23,11068.84,0,57830,Non-Delegated Statements,170000              Education,A,2023,1
250,"Children, Schools and Family",CANBURY SCHOOL LIMITED,4478,06-Apr-23,5100.83,0,57830,Non-Delegated Statements,170000              Education,A,2023,1
251,"Children, Schools and Family",CANBURY SCHOOL LIMITED,4488,06-Apr-23,8608.33,0,57830,Non-Delegated Statements,170000              Education,A,2023,1
252,"Children, Schools and Family",CANBURY SCHOOL LIMITED,4476,06-Apr-23,10195,0,57830,Non-Delegated Statements,170000              Education,A,2023,1
253,"Children, Schools and Family",CANBURY SCHOOL LIMITED,4498,06-Apr-23,7425.34,0,57830,Non-Delegated Statements,170000              Education,A,2023,1
254,"Children, Schools and Family",CANBURY SCHOOL LIMITED,4480,06-Apr-23,12915,0,57830,Non-Delegated Statements,170000              Education,A,2023,1
255,"Children, Schools and Family",CANBURY SCHOOL LIMITED,4482,06-Apr-23,9175,0,57830,Non-Delegated Statements,170000              Education,A,2023,1
256,"Children, Schools and Family",CANBURY SCHOOL LIMITED,4474,06-Apr-23,9578.33,0,57830,Non-Delegated Statements,170000              Education,A,2023,1
257,"Children, Schools and Family",CANBURY SCHOOL LIMITED,4490,06-Apr-23,6080,0,57830,Non-Delegated Statements,170000              Education,A,2023,1
258,"Children, Schools and Family",CANBURY SCHOOL LIMITED,4484,27-Apr-23,12151.66,0,57830,Non-Delegated Statements,170000              Education,A,2023,1
259,"Children, Schools and Family",CANBURY SCHOOL LIMITED,4492,27-Apr-23,12718.33,0,57830,Non-Delegated Statements,170000              Education,A,2023,1
260,Community and Housing,WALSINGHAM,955443,12-Apr-23,5486.52,0,58466,Learning Disabilities Placemnt,321017              Nursing & Residential Care Homes,A,2023,1
261,Community and Housing,WALSINGHAM,955623,12-Apr-23,5486.4,0,58466,Learning Disabilities Placemnt,321017              Nursing & Residential Care Homes,A,2023,1
262,Community and Housing,WALSINGHAM,955685,12-Apr-23,7365.64,0,58466,Learning Disabilities Placemnt,321017              Nursing & Residential Care Homes,A,2023,1
263,Community and Housing,WALSINGHAM,955693,12-Apr-23,5476.12,0,58466,Learning Disabilities Placemnt,321017              Nursing & Residential Care Homes,A,2023,1
264,Community and Housing,CARE UK,955338,12-Apr-23,3229.52,0,58851,Older People Placements - East,321017              Nursing & Residential Care Homes,A,2023,1
265,Community and Housing,CARE UK,955355,12-Apr-23,3800,0,58851,Older People Placements - East,321017              Nursing & Residential Care Homes,A,2023,1
266,Community and Housing,CARE UK,955403,12-Apr-23,3723.24,0,58851,Older People Placements - East,321017              Nursing & Residential Care Homes,A,2023,1
267,Community and Housing,CARE UK,955418,12-Apr-23,3963.24,0,58851,Older People Placements - East,321017              Nursing & Residential Care Homes,A,2023,1
268,Community and Housing,CARE UK,955507,12-Apr-23,3264.32,0,58851,Older People Placements - East,321017              Nursing & Residential Care Homes,A,2023,1
269,Community and Housing,CARE UK,955562,12-Apr-23,3723.24,0,58851,Older People Placements - East,321017              Nursing & Residential Care Homes,A,2023,1
270,Community and Housing,CARE UK,955617,12-Apr-23,3229.52,0,58851,Older People Placements - East,321017              Nursing & Residential Care Homes,A,2023,1
271,Community and Housing,CARE UK,955639,12-Apr-23,3723.24,0,58851,Older People Placements - East,321017              Nursing & Residential Care Homes,A,2023,1
272,Community and Housing,CARE UK,955709,12-Apr-23,4000,0,58851,Older People Placements - East,321017              Nursing & Residential Care Homes,A,2023,1
273,Community and Housing,CARE UK,955712,12-Apr-23,3229.52,0,58851,Older People Placements - East,321017              Nursing & Residential Care Homes,A,2023,1
274,Community and Housing,FRIENDS IN ST HELIER,ASC GRANT APR23,17-Apr-23,25068.33,0,61126,Public Health Main,200000              Financial Services,A,2023,1
275,Community and Housing,RUSHTON WORKWEAR LTD,52275,08-May-23,663.54,110.59,62131,Com Care Placement Contingency,140000              Clothing,A,2023,1
276,Environment and Regeneration,EDE'S (U.K.) LTD,INV25332,19-Apr-23,1263.6,210.6,62345,Parks & Recreation Grounds,190000              Facilities & Management Services,A,2023,1
277,Community and Housing,BARONS LODGE NURSING HOME,955395,12-Apr-23,1716,0,62371,Mental Health Placements,321017              Nursing & Residential Care Homes,A,2023,1
278,Community and Housing,BARONS LODGE NURSING HOME,955468,12-Apr-23,3960,0,62371,Older People Placements - East,321017              Nursing & Residential Care Homes,A,2023,1
279,Community and Housing,BARONS LODGE NURSING HOME,955482,12-Apr-23,4360,0,62371,Older People Placements - East,321017              Nursing & Residential Care Homes,A,2023,1
280,Community and Housing,BARONS LODGE NURSING HOME,955587,12-Apr-23,3502,0,62371,Mental Health Placements,321017              Nursing & Residential Care Homes,A,2023,1
281,Community and Housing,BARONS LODGE NURSING HOME,955599,12-Apr-23,4200,0,62371,Mental Health Placements,321017              Nursing & Residential Care Homes,A,2023,1
282,Community and Housing,BARONS LODGE NURSING HOME,955659,12-Apr-23,4360,0,62371,Mental Health Placements,321017              Nursing & Residential Care Homes,A,2023,1
283,Community and Housing,BARONS LODGE NURSING HOME,955666,12-Apr-23,4360,0,62371,Older People Placements - East,321017              Nursing & Residential Care Homes,A,2023,1
284,Community and Housing,BARONS LODGE NURSING HOME,955667,12-Apr-23,3807.2,0,62371,Learning Disabilities Placemnt,321017              Nursing & Residential Care Homes,A,2023,1
285,Community and Housing,BARONS LODGE NURSING HOME,955686,12-Apr-23,4800,0,62371,Older People Placements - East,321017              Nursing & Residential Care Homes,A,2023,1
286,Community and Housing,BARONS LODGE NURSING HOME,955705,12-Apr-23,3502,0,62371,Older People Placements - East,321017              Nursing & Residential Care Homes,A,2023,1
287,"Children, Schools and Family",ATTIC THEATRE COMPANY,HAFSPR23-P1,13-Apr-23,2050,0,62620,Holiday Act Food Prog grntfnd,190000              Facilities & Management Services,A,2023,1
288,Community and Housing,ATTIC THEATRE COMPANY,ASC GRANT APR23,26-Apr-23,10504.42,0,62620,Public Health Main,190000              Facilities & Management Services,A,2023,1
289,"Children, Schools and Family",ATTIC THEATRE COMPANY,HAFSPR23-P2,12-May-23,675,0,62620,Holiday Act Food Prog grntfnd,190000              Facilities & Management Services,A,2023,1
290,Community and Housing,SANCTUARY CARE LTD,955365,12-Apr-23,3117.52,0,63458,Learning Disabilities Placemnt,321017              Nursing & Residential Care Homes,A,2023,1
291,Community and Housing,THE REGARD PARTNERSHIP LTD,955350,12-Apr-23,6220.72,0,63796,Learning Disabilities Placemnt,321017              Nursing & Residential Care Homes,A,2023,1
292,Community and Housing,THE REGARD PARTNERSHIP LTD,955439,12-Apr-23,6010.48,0,63796,Learning Disabilities Placemnt,321017              Nursing & Residential Care Homes,A,2023,1
293,Community and Housing,THE REGARD PARTNERSHIP LTD,955457,12-Apr-23,9681.96,0,63796,Learning Disabilities Placemnt,321017              Nursing & Residential Care Homes,A,2023,1
294,Community and Housing,THE REGARD PARTNERSHIP LTD,955469,12-Apr-23,5765,0,63796,Learning Disabilities Placemnt,321017              Nursing & Residential Care Homes,A,2023,1
295,Community and Housing,THE REGARD PARTNERSHIP LTD,955575,12-Apr-23,6126.52,0,63796,Learning Disabilities Placemnt,321017              Nursing & Residential Care Homes,A,2023,1
296,Community and Housing,THE REGARD PARTNERSHIP LTD,955688,12-Apr-23,4901.24,0,63796,Learning Disabilities Placemnt,321017              Nursing & Residential Care Homes,A,2023,1
297,Community and Housing,SW LONDON AND ST GEORGES MH NHS,P0070949,24-Apr-23,14197.33,0,64811,LD Fieldwork SW,310000              Healthcare,A,2023,1
298,Community and Housing,WINGREACH LIMITED,955327,12-Apr-23,1386.99,0,64877,Learning Disabilities Placemnt,321017              Nursing & Residential Care Homes,A,2023,1
299,Community and Housing,NAS SERVICES LIMITED,ASU2391502,20-Apr-23,4546.8,757.8,68929,Mental Health Placements,321100              Social Community Care Supplies & Services - Children,A,2023,1
300,Capital,POLKA THEATRE FOR CHILDREN,CIL GRT APR 23,14-Apr-23,10088.75,0,69287,Wimbledon Area Regeneration,290000              Arts & Leisure Services,A,2023,1
301,Unassigned,LEE VALLEY REGIONAL PARK AUTH.,2.02304E+11,18-Apr-23,16448.72,0,70554,Lee Valley Regional Park,PRECEPT,A,2023,1
302,Unassigned,LEE VALLEY REGIONAL PARK AUTH.,2.02304E+11,16-May-23,16448.72,0,70554,Lee Valley Regional Park,PRECEPT,A,2023,1
303,Corporate Services,LOCAL GOVERNMENT ASSOCIATION,64008256,13-Apr-23,607.08,101.18,71578,Chief Executive,260000              Human Resources,A,2023,1
304,Corporate Services,LOCAL GOVERNMENT ASSOCIATION,64008355,24-Apr-23,667.08,111.18,71578,AD Corporate Governance,260000              Human Resources,A,2023,1
305,"Children, Schools and Family",INTEGRATED SERVICES PROGRAMME,4644,27-Apr-23,14617.16,0,72728,Non-Delegated Statements,321100              Social Community Care Supplies & Services - Children,A,2023,1
306,"Children, Schools and Family",ETHELBERT SPECIALIST HOMES LTD,LL/0323/1250,12-Apr-23,14675.31,0,72942,Placements Under 18,321100              Social Community Care Supplies & Services - Children,A,2023,1
307,Corporate Services,NEC Software Solutions UK Limited,91472510,24-Apr-23,34138.27,5689.71,72946,Merton Link,190000              Facilities & Management Services,A,2023,1
308,Community and Housing,BRANDON TRUST,955359,12-Apr-23,4054,0,76126,Learning Disabilities Placemnt,321017              Nursing & Residential Care Homes,A,2023,1
309,Unassigned,LONDON BOROUGH OF SUTTON,BAILIFF MAR 2023,13-Apr-23,109955.34,0,76615,Corporate Services,OLA,A,2023,1
310,Unassigned,LONDON BOROUGH OF SUTTON,BAILIFF-SURPLUS,26-Apr-23,57848.76,0,76615,Corporate Services,OLA,A,2023,1
311,Unassigned,POST OFFICE LTD,MERTON23/24PO1,05-Apr-23,15602.6,0,77066,Adults Social Care,200000              Financial Services,A,2023,1
312,Unassigned,POST OFFICE LTD,MERTON23/24PO2,21-Apr-23,17441.75,0,77066,Adults Social Care,200000              Financial Services,A,2023,1
313,Community and Housing,ABBEY HOUSE RESIDENTIAL HOMES,955360,12-Apr-23,4400,0,78937,Older People Placements - East,321017              Nursing & Residential Care Homes,A,2023,1
314,Community and Housing,ABBEY HOUSE RESIDENTIAL HOMES,955383,12-Apr-23,4400,0,78937,Older People Placements - East,321017              Nursing & Residential Care Homes,A,2023,1
315,Community and Housing,ABBEY HOUSE RESIDENTIAL HOMES,955385,12-Apr-23,5520,0,78937,Mental Health Placements,321017              Nursing & Residential Care Homes,A,2023,1
316,Unassigned,TRANSPORT FOR LONDON,MERTONQ4-2022,26-Apr-23,847816.44,0,79197,Capital,PRECEPT,A,2023,1
317,"Children, Schools and Family",SOUTHWARK COUNCIL,10011012124,13-Apr-23,1067.5,0,81552,Fostering Recruit/Assessment,OLA,A,2023,1
318,Community and Housing,REDACTED PERSONAL DATA,958510,25-Apr-23,3904.6,0,81639,Older People Placements - East,DIRECT PAYMENTS,R,2023,1
319,Environment and Regeneration,SOUTH WIMBLEDON COMMUNITY ASSO,GRANT APRIL 2023,11-Apr-23,3130,0,82339,Grants Programme,"390000              Works - Construction, Repair & Maintenance",A,2023,1
320,Corporate Services,IRON MOUNTAIN (UK) LTD,17148597,24-Apr-23,1252.88,208.81,82409,IT-Telecomms,270000              Information Communication Technology,A,2023,1
321,Community and Housing,ASKEWS AND HOLTS LIBRARY SRV LTD,6864365,12-May-23,647.58,0,82770,Media Fund,200000              Financial Services,A,2023,1
322,Community and Housing,ASKEWS AND HOLTS LIBRARY SRV LTD,6864369,11-May-23,739.25,0,82770,Media Fund,200000              Financial Services,A,2023,1
323,Community and Housing,ASKEWS AND HOLTS LIBRARY SRV LTD,6864370,11-May-23,518.01,0,82770,Media Fund,200000              Financial Services,A,2023,1
324,Community and Housing,ASKEWS AND HOLTS LIBRARY SRV LTD,6864384,11-May-23,613.94,0,82770,Media Fund,200000              Financial Services,A,2023,1
325,Unassigned,GREATER LONDON AUTHORITY,2.02304E+11,11-Apr-23,3404413.16,0,83050,Collection Fund,PRECEPT,A,2023,1
326,Unassigned,GREATER LONDON AUTHORITY,2.02304E+11,24-Apr-23,237524,0,83050,Collection Fund,PRECEPT,A,2023,1
327,Unassigned,GREATER LONDON AUTHORITY,2.02304E+11,28-Apr-23,2996351,0,83050,Collection Fund,PRECEPT,A,2023,1
328,Unassigned,GREATER LONDON AUTHORITY,2.02304E+11,16-May-23,3404413.14,0,83050,Collection Fund,PRECEPT,A,2023,1
329,Unassigned,GREATER LONDON AUTHORITY,2.02304E+11,29-May-23,237524,0,83050,Collection Fund,PRECEPT,A,2023,1
330,Unassigned,GREATER LONDON AUTHORITY,2.02304E+11,15-May-23,2996351,0,83050,Collection Fund,PRECEPT,A,2023,1
331,Corporate Services,REDACTED PERSONAL DATA,INVJD179,19-Apr-23,2400,400,83383,SLLP - Disbursements,280000              Legal Services,R,2023,1
332,Corporate Services,REDACTED PERSONAL DATA,INVJD154,18-Apr-23,1680,280,83383,SLLP - Disbursements,280000              Legal Services,R,2023,1
333,Corporate Services,REDACTED PERSONAL DATA,INVJD164,18-Apr-23,3600,600,83383,SLLP - Disbursements,280000              Legal Services,R,2023,1
334,Unassigned,MALMESBURY PRIMARY SCHOOL,SCHOOLS 2324/1 A,05-Apr-23,328436.49,0,83593,Schools,170000              Education,A,2023,1
335,"Children, Schools and Family",YOUNG EPILEPSY,INV11039,05-Apr-23,21463.47,0,84094,Non-Delegated Statements,170000              Education,A,2023,1
336,Environment and Regeneration,NEWSQUEST MEDIA GROUP LTD,42441050,24-Apr-23,501.98,83.66,85566,Development Control,190000              Facilities & Management Services,A,2023,1
337,Capital,NEWSQUEST MEDIA GROUP LTD,42518903,03-May-23,3065.69,510.95,85566,Highways & Footways,190000              Facilities & Management Services,A,2023,1
338,"Children, Schools and Family",NEWSQUEST MEDIA GROUP LTD,42226945,15-May-23,1800,300,85566,Fostering Recruit/Assessment,190000              Facilities & Management Services,A,2023,1
339,Environment and Regeneration,NEWSQUEST MEDIA GROUP LTD,42169838,26-Apr-23,597.6,99.6,85566,Development Control,190000              Facilities & Management Services,A,2023,1
340,Corporate Services,LONDON GRID FOR LEARNING TRUST,2020015875,28-Apr-23,32869.24,5478.21,90449,IT Service Delivery,270000              Information Communication Technology,A,2023,1
341,Community and Housing,SUPREME CARE SERVICES LIMITED,85674-113114,05-Apr-23,2358.34,0,91840,Older People Placements - East,321000              Social Community Care Supplies & Services - Adult,A,2023,1
342,Community and Housing,SUPREME CARE SERVICES LIMITED,85678,05-Apr-23,2988.16,0,91840,Older People Placements - East,321000              Social Community Care Supplies & Services - Adult,A,2023,1
343,Community and Housing,SUPREME CARE SERVICES LIMITED,85680,05-Apr-23,1119.56,0,91840,Older People Placements - East,321000              Social Community Care Supplies & Services - Adult,A,2023,1
344,Community and Housing,SUPREME CARE SERVICES LIMITED,85682,05-Apr-23,1172.36,0,91840,Older People Placements - East,321000              Social Community Care Supplies & Services - Adult,A,2023,1
345,Community and Housing,SUPREME CARE SERVICES LIMITED,85683,05-Apr-23,2763.51,0,91840,Older People Placements - East,321000              Social Community Care Supplies & Services - Adult,A,2023,1
346,Community and Housing,SUPREME CARE SERVICES LIMITED,85686,05-Apr-23,747.04,0,91840,Older People Placements - East,321000              Social Community Care Supplies & Services - Adult,A,2023,1
347,Community and Housing,SUPREME CARE SERVICES LIMITED,85677,12-Apr-23,728.76,0,91840,Older People Placements - East,321000              Social Community Care Supplies & Services - Adult,A,2023,1
348,Community and Housing,SUPREME CARE SERVICES LIMITED,85585,14-Apr-23,2778.72,0,91840,Older People Placements - East,321000              Social Community Care Supplies & Services - Adult,A,2023,1
349,Community and Housing,THE GARWOOD FOUNDATION,MWDF2MAR23,05-Apr-23,1121,0,92268,Older People Placements - East,321000              Social Community Care Supplies & Services - Adult,A,2023,1
350,Community and Housing,Allied Healthcare,2641065565/17,04-Apr-23,757.2,0,92896,Learning Disabilities Placemnt,321000              Social Community Care Supplies & Services - Adult,A,2023,1
351,Community and Housing,Allied Healthcare,2641065565/37,04-Apr-23,643.86,0,92896,Older People Placements - East,321000              Social Community Care Supplies & Services - Adult,A,2023,1
352,Community and Housing,Allied Healthcare,2641065565/36,04-Apr-23,1024.16,0,92896,Phys/Sens Placements - East,321000              Social Community Care Supplies & Services - Adult,A,2023,1
353,Community and Housing,Allied Healthcare,2641065565/47,04-Apr-23,1081,0,92896,Older People Placements - East,321000              Social Community Care Supplies & Services - Adult,A,2023,1
354,Community and Housing,Allied Healthcare,2641065565/48,04-Apr-23,1086.95,0,92896,Older People Placements - East,321000              Social Community Care Supplies & Services - Adult,A,2023,1
355,Community and Housing,Allied Healthcare,2641065565/19,04-Apr-23,752.14,0,92896,Older People Placements - East,321000              Social Community Care Supplies & Services - Adult,A,2023,1
356,Community and Housing,Allied Healthcare,2641065565/29,04-Apr-23,523.18,0,92896,Learning Disabilities Placemnt,321000              Social Community Care Supplies & Services - Adult,A,2023,1
357,Community and Housing,Allied Healthcare,2641065565/57,04-Apr-23,1387.58,0,92896,Older People Placements - East,321000              Social Community Care Supplies & Services - Adult,A,2023,1
358,Community and Housing,Allied Healthcare,2641065565/7,04-Apr-23,1057.24,0,92896,Older People Placements - East,321000              Social Community Care Supplies & Services - Adult,A,2023,1
359,Community and Housing,Allied Healthcare,2641065565/21,04-Apr-23,2838.62,0,92896,Older People Placements - East,321000              Social Community Care Supplies & Services - Adult,A,2023,1
360,Community and Housing,Allied Healthcare,2641065565/64,04-Apr-23,1135.64,0,92896,Older People Placements - East,321000              Social Community Care Supplies & Services - Adult,A,2023,1
361,Community and Housing,Allied Healthcare,2641065565/15,04-Apr-23,717.52,0,92896,Older People Placements - East,321000              Social Community Care Supplies & Services - Adult,A,2023,1
362,Community and Housing,Allied Healthcare,2641065565/40,04-Apr-23,2519.6,0,92896,Older People Placements - East,321000              Social Community Care Supplies & Services - Adult,A,2023,1
363,Community and Housing,Allied Healthcare,2641065565/31,04-Apr-23,1650.8,0,92896,Older People Placements - East,321000              Social Community Care Supplies & Services - Adult,A,2023,1
364,Community and Housing,Allied Healthcare,2641065565/22,04-Apr-23,1372.44,0,92896,Learning Disabilities Placemnt,321000              Social Community Care Supplies & Services - Adult,A,2023,1
365,Community and Housing,Allied Healthcare,2641065565/34,04-Apr-23,1261.04,0,92896,Older People Placements - East,321000              Social Community Care Supplies & Services - Adult,A,2023,1
366,Community and Housing,Allied Healthcare,2641065565/42,04-Apr-23,823.12,0,92896,Older People Placements - East,321000              Social Community Care Supplies & Services - Adult,A,2023,1
367,Community and Housing,Allied Healthcare,2641065565/27,04-Apr-23,2704.86,0,92896,Older People Placements - East,321000              Social Community Care Supplies & Services - Adult,A,2023,1
368,Community and Housing,Allied Healthcare,2641065565/24,04-Apr-23,501.3,0,92896,Learning Disabilities Placemnt,321000              Social Community Care Supplies & Services - Adult,A,2023,1
369,Community and Housing,Allied Healthcare,2641065565/56,04-Apr-23,2758.78,0,92896,Older People Placements - East,321000              Social Community Care Supplies & Services - Adult,A,2023,1
370,Community and Housing,Allied Healthcare,2641065565/11,04-Apr-23,1318.47,0,92896,Older People Placements - East,321000              Social Community Care Supplies & Services - Adult,A,2023,1
371,Community and Housing,Allied Healthcare,2641065565/33,04-Apr-23,671.95,0,92896,Older People Placements - East,321000              Social Community Care Supplies & Services - Adult,A,2023,1
372,Community and Housing,Allied Healthcare,2641065565/51,04-Apr-23,2593.22,0,92896,Older People Placements - East,321000              Social Community Care Supplies & Services - Adult,A,2023,1
373,Community and Housing,Allied Healthcare,2641065565/6,04-Apr-23,1620.46,0,92896,Older People Placements - East,321000              Social Community Care Supplies & Services - Adult,A,2023,1
374,Community and Housing,Allied Healthcare,2641065565/32,04-Apr-23,605.76,0,92896,Learning Disabilities Placemnt,321000              Social Community Care Supplies & Services - Adult,A,2023,1
375,Community and Housing,Allied Healthcare,2641065565/35,04-Apr-23,2368.27,0,92896,Phys/Sens Placements - East,321000              Social Community Care Supplies & Services - Adult,A,2023,1
376,Community and Housing,Allied Healthcare,2641065565/18,04-Apr-23,748.72,0,92896,Older People Placements - East,321000              Social Community Care Supplies & Services - Adult,A,2023,1
377,Community and Housing,Allied Healthcare,2641065565/63,04-Apr-23,1363.65,0,92896,Older People Placements - East,321000              Social Community Care Supplies & Services - Adult,A,2023,1
378,Community and Housing,Allied Healthcare,2641065565/39,04-Apr-23,544.71,0,92896,Older People Placements - East,321000              Social Community Care Supplies & Services - Adult,A,2023,1
379,Community and Housing,Allied Healthcare,2641065565/12,04-Apr-23,535.42,0,92896,Older People Placements - East,321000              Social Community Care Supplies & Services - Adult,A,2023,1
380,Community and Housing,Allied Healthcare,2641065565/44,04-Apr-23,763.77,0,92896,Older People Placements - East,321000              Social Community Care Supplies & Services - Adult,A,2023,1
381,Community and Housing,Allied Healthcare,2641065565/16,04-Apr-23,672.65,0,92896,Older People Placements - East,321000              Social Community Care Supplies & Services - Adult,A,2023,1
382,Community and Housing,Allied Healthcare,2641065565/26,04-Apr-23,1077.32,0,92896,Older People Placements - East,321000              Social Community Care Supplies & Services - Adult,A,2023,1
383,Community and Housing,Allied Healthcare,2641065565/8,04-Apr-23,3055.79,0,92896,Older People Placements - East,321000              Social Community Care Supplies & Services - Adult,A,2023,1
384,Community and Housing,Allied Healthcare,2641065565/55,04-Apr-23,2238.06,0,92896,Older People Placements - East,321000              Social Community Care Supplies & Services - Adult,A,2023,1
385,Community and Housing,Allied Healthcare,2641065565/60,04-Apr-23,769.36,0,92896,Older People Placements - East,321000              Social Community Care Supplies & Services - Adult,A,2023,1
386,Community and Housing,Allied Healthcare,2641065565/59,04-Apr-23,2632.49,0,92896,Older People Placements - East,321000              Social Community Care Supplies & Services - Adult,A,2023,1
387,Community and Housing,Allied Healthcare,2641065565/53,04-Apr-23,1003.19,0,92896,Older People Placements - East,321000              Social Community Care Supplies & Services - Adult,A,2023,1
388,Community and Housing,Allied Healthcare,2641065565/9,04-Apr-23,2045.63,0,92896,Older People Placements - East,321000              Social Community Care Supplies & Services - Adult,A,2023,1
389,Community and Housing,Allied Healthcare,2641065565/5,04-Apr-23,687.04,0,92896,Older People Placements - East,321000              Social Community Care Supplies & Services - Adult,A,2023,1
390,Community and Housing,Allied Healthcare,RF/264/1065567,06-Apr-23,1164.2,0,92896,Older People Placements - East,321000              Social Community Care Supplies & Services - Adult,A,2023,1
391,Community and Housing,Allied Healthcare,RF/264/1064896B,21-Apr-23,808,0,92896,Older People Placements - East,321000              Social Community Care Supplies & Services - Adult,A,2023,1
392,Community and Housing,Allied Healthcare,2641065950B/20,28-Apr-23,757.2,0,92896,Learning Disabilities Placemnt,321000              Social Community Care Supplies & Services - Adult,A,2023,1
393,Community and Housing,Allied Healthcare,2641065950B/38,28-Apr-23,515.38,0,92896,Older People Placements - East,321000              Social Community Care Supplies & Services - Adult,A,2023,1
394,Community and Housing,Allied Healthcare,2641065950B/37,28-Apr-23,1050.82,0,92896,Phys/Sens Placements - East,321000              Social Community Care Supplies & Services - Adult,A,2023,1
395,Community and Housing,Allied Healthcare,2641065950B/48,28-Apr-23,1100,0,92896,Older People Placements - East,321000              Social Community Care Supplies & Services - Adult,A,2023,1
396,Community and Housing,Allied Healthcare,2641065950B/49,28-Apr-23,1068.6,0,92896,Older People Placements - East,321000              Social Community Care Supplies & Services - Adult,A,2023,1
397,Community and Housing,Allied Healthcare,2641065950B/31,28-Apr-23,508.39,0,92896,Learning Disabilities Placemnt,321000              Social Community Care Supplies & Services - Adult,A,2023,1
398,Community and Housing,Allied Healthcare,2641065950B/59,28-Apr-23,1427.59,0,92896,Older People Placements - East,321000              Social Community Care Supplies & Services - Adult,A,2023,1
399,Community and Housing,Allied Healthcare,2641065950B/9,28-Apr-23,1053.83,0,92896,Older People Placements - East,321000              Social Community Care Supplies & Services - Adult,A,2023,1
400,Community and Housing,Allied Healthcare,2641065950B/24,28-Apr-23,2845.71,0,92896,Older People Placements - East,321000              Social Community Care Supplies & Services - Adult,A,2023,1
401,Community and Housing,Allied Healthcare,2641065950B/65,28-Apr-23,1184.59,0,92896,Older People Placements - East,321000              Social Community Care Supplies & Services - Adult,A,2023,1
402,Community and Housing,Allied Healthcare,2641065950B/27,28-Apr-23,588.22,0,92896,Older People Placements - East,321000              Social Community Care Supplies & Services - Adult,A,2023,1
403,Community and Housing,Allied Healthcare,2641065950B/23,28-Apr-23,643.62,0,92896,Learning Disabilities Placemnt,321000              Social Community Care Supplies & Services - Adult,A,2023,1
404,Community and Housing,Allied Healthcare,2641065950B/54,28-Apr-23,727.34,0,92896,Older People Placements - East,321000              Social Community Care Supplies & Services - Adult,A,2023,1
405,Community and Housing,Allied Healthcare,2641065950B/1,28-Apr-23,761.17,0,92896,Phys/Sens Placements - East,321000              Social Community Care Supplies & Services - Adult,A,2023,1
406,Community and Housing,Allied Healthcare,2641065950B/41,28-Apr-23,2481.47,0,92896,Older People Placements - East,321000              Social Community Care Supplies & Services - Adult,A,2023,1
407,Community and Housing,Allied Healthcare,2641065950B/33,28-Apr-23,2301.08,0,92896,Older People Placements - East,321000              Social Community Care Supplies & Services - Adult,A,2023,1
408,Community and Housing,Allied Healthcare,2641065950B/25,28-Apr-23,1703.72,0,92896,Learning Disabilities Placemnt,321000              Social Community Care Supplies & Services - Adult,A,2023,1
409,Community and Housing,Allied Healthcare,2641065950B/43,28-Apr-23,638.5,0,92896,Older People Placements - East,321000              Social Community Care Supplies & Services - Adult,A,2023,1
410,Community and Housing,Allied Healthcare,2641065950B/29,28-Apr-23,2664.91,0,92896,Older People Placements - East,321000              Social Community Care Supplies & Services - Adult,A,2023,1
411,Community and Housing,Allied Healthcare,2641065950B/26,28-Apr-23,518.5,0,92896,Learning Disabilities Placemnt,321000              Social Community Care Supplies & Services - Adult,A,2023,1
412,Community and Housing,Allied Healthcare,2641065950B/58,28-Apr-23,2762.98,0,92896,Older People Placements - East,321000              Social Community Care Supplies & Services - Adult,A,2023,1
413,Community and Housing,Allied Healthcare,2641065950B/44,28-Apr-23,1049.83,0,92896,Older People Placements - East,321000              Social Community Care Supplies & Services - Adult,A,2023,1
414,Community and Housing,Allied Healthcare,2641065950B/14,28-Apr-23,1415.66,0,92896,Older People Placements - East,321000              Social Community Care Supplies & Services - Adult,A,2023,1
415,Community and Housing,Allied Healthcare,2641065950B/35,28-Apr-23,501.5,0,92896,Older People Placements - East,321000              Social Community Care Supplies & Services - Adult,A,2023,1
416,Community and Housing,Allied Healthcare,2641065950B/52,28-Apr-23,2558.74,0,92896,Older People Placements - East,321000              Social Community Care Supplies & Services - Adult,A,2023,1
417,Community and Housing,Allied Healthcare,2641065950B/7,28-Apr-23,1781.1,0,92896,Older People Placements - East,321000              Social Community Care Supplies & Services - Adult,A,2023,1
418,Community and Housing,Allied Healthcare,2641065950B/36,28-Apr-23,2392.27,0,92896,Phys/Sens Placements - East,321000              Social Community Care Supplies & Services - Adult,A,2023,1
419,Community and Housing,Allied Healthcare,2641065950B/21,28-Apr-23,732.9,0,92896,Older People Placements - East,321000              Social Community Care Supplies & Services - Adult,A,2023,1
420,Community and Housing,Allied Healthcare,2641065950B/63,28-Apr-23,1280.42,0,92896,Older People Placements - East,321000              Social Community Care Supplies & Services - Adult,A,2023,1
421,Community and Housing,Allied Healthcare,2641065950B/40,28-Apr-23,547.04,0,92896,Older People Placements - East,321000              Social Community Care Supplies & Services - Adult,A,2023,1
422,Community and Housing,Allied Healthcare,2641065950B/15,28-Apr-23,536.37,0,92896,Older People Placements - East,321000              Social Community Care Supplies & Services - Adult,A,2023,1
423,Community and Housing,Allied Healthcare,2641065950B/45,28-Apr-23,750.39,0,92896,Older People Placements - East,321000              Social Community Care Supplies & Services - Adult,A,2023,1
424,Community and Housing,Allied Healthcare,2641065950B/19,28-Apr-23,738.41,0,92896,Older People Placements - East,321000              Social Community Care Supplies & Services - Adult,A,2023,1
425,Community and Housing,Allied Healthcare,2641065950B/10,28-Apr-23,3118.05,0,92896,Older People Placements - East,321000              Social Community Care Supplies & Services - Adult,A,2023,1
426,Community and Housing,Allied Healthcare,2641065950B/57,28-Apr-23,2876.57,0,92896,Older People Placements - East,321000              Social Community Care Supplies & Services - Adult,A,2023,1
427,Community and Housing,Allied Healthcare,2641065950B/61,28-Apr-23,2735.04,0,92896,Older People Placements - East,321000              Social Community Care Supplies & Services - Adult,A,2023,1
428,Community and Housing,Allied Healthcare,2641065950B/55,28-Apr-23,1049.59,0,92896,Older People Placements - East,321000              Social Community Care Supplies & Services - Adult,A,2023,1
429,Community and Housing,Allied Healthcare,2641065950B/11,28-Apr-23,2173.25,0,92896,Older People Placements - East,321000              Social Community Care Supplies & Services - Adult,A,2023,1
430,Community and Housing,Allied Healthcare,2641065950B/6,28-Apr-23,810.92,0,92896,Older People Placements - East,321000              Social Community Care Supplies & Services - Adult,A,2023,1
431,Community and Housing,CARE MANAGEMENT GROUP,955344,12-Apr-23,4593.88,0,93533,Mental Health Placements,321017              Nursing & Residential Care Homes,A,2023,1
432,Community and Housing,CARE MANAGEMENT GROUP,955407,12-Apr-23,6279.2,0,93533,Learning Disabilities Placemnt,321017              Nursing & Residential Care Homes,A,2023,1
433,Community and Housing,CARE MANAGEMENT GROUP,955505,12-Apr-23,5936.6,0,93533,Learning Disabilities Placemnt,321017              Nursing & Residential Care Homes,A,2023,1
434,Community and Housing,CARE MANAGEMENT GROUP,955555,12-Apr-23,8733.64,0,93533,Phys/Sens Placements - East,321017              Nursing & Residential Care Homes,A,2023,1
435,Community and Housing,CARE MANAGEMENT GROUP,955589,12-Apr-23,7712.12,0,93533,Learning Disabilities Placemnt,321017              Nursing & Residential Care Homes,A,2023,1
436,Community and Housing,CARE MANAGEMENT GROUP,955720,12-Apr-23,7974.36,0,93533,Learning Disabilities Placemnt,321017              Nursing & Residential Care Homes,A,2023,1
437,Community and Housing,A AND R CARE LTD,955398,12-Apr-23,3300,0,94357,Older People Placements - East,321017              Nursing & Residential Care Homes,A,2023,1
438,Community and Housing,A AND R CARE LTD,955514,12-Apr-23,3763.24,0,94357,Older People Placements - East,321017              Nursing & Residential Care Homes,A,2023,1
439,Community and Housing,A AND R CARE LTD,955652,12-Apr-23,3400,0,94357,Older People Placements - East,321017              Nursing & Residential Care Homes,A,2023,1
440,Community and Housing,A AND R CARE LTD,955692,12-Apr-23,4800,0,94357,Older People Placements - East,321017              Nursing & Residential Care Homes,A,2023,1
441,Community and Housing,A AND R CARE LTD,955746,12-Apr-23,3824.32,0,94357,Phys/Sens Placements - East,321017              Nursing & Residential Care Homes,A,2023,1
442,Community and Housing,CARERS SUPPORT MERTON,ASC GRANT APR23,24-Apr-23,190478.25,0,95795,Grants to Voluntary Orgs,290000              Arts & Leisure Services,A,2023,1
443,Community and Housing,COMMONSIDE COMMUNITY DEV TRUST,ASC GRANT APR23,17-Apr-23,23762.33,0,95839,Public Health Main,321000              Social Community Care Supplies & Services - Adult,A,2023,1
444,"Children, Schools and Family",THE FOSTERING NETWORK,RINV/00009508,24-Apr-23,1269.48,211.58,95846,Fostering Support,260000              Human Resources,A,2023,1
445,Community and Housing,Aspens Charities Ltd,955533,12-Apr-23,8954.28,0,96019,Learning Disabilities Placemnt,321017              Nursing & Residential Care Homes,A,2023,1
446,Community and Housing,REDACTED PERSONAL DATA,958367,25-Apr-23,4260.16,0,96859,Learning Disabilities Placemnt,DIRECT PAYMENTS,R,2023,1
447,Community and Housing,THE ABBEYFIELD SOCIETY,955669,12-Apr-23,4000,0,97539,Older People Placements - East,321000              Social Community Care Supplies & Services - Adult,A,2023,1
448,Community and Housing,EL-SHADDAI,961749,28-Apr-23,1052.08,0,97709,MH Housing Support Placements,321000              Social Community Care Supplies & Services - Adult,A,2023,1
449,Community and Housing,EL-SHADDAI,961772,28-Apr-23,780.68,0,97709,Phys/Sens Placements - East,321000              Social Community Care Supplies & Services - Adult,A,2023,1
450,Community and Housing,EL-SHADDAI,961775,28-Apr-23,1315.04,0,97709,Learning Disabilities Placemnt,321000              Social Community Care Supplies & Services - Adult,A,2023,1
451,Community and Housing,EL-SHADDAI,961782,28-Apr-23,1052.08,0,97709,Learning Disabilities Placemnt,321000              Social Community Care Supplies & Services - Adult,A,2023,1
452,Community and Housing,EL-SHADDAI,961738,02-May-23,2240,0,97709,Hospital To Home,321000              Social Community Care Supplies & Services - Adult,A,2023,1
453,Community and Housing,Rosenmanor Ltd,955527,12-Apr-23,2924.24,0,97808,Mental Health Placements,321017              Nursing & Residential Care Homes,A,2023,1
454,Community and Housing,MERTON COMMUNITY TRANSPORT,ASC GRANT APR23,24-Apr-23,24827.7,0,98164,Public Health Main,360000              Passenger Transport,A,2023,1
455,Community and Housing,MERTON COMMUNITY TRANSPORT,17010,14-Apr-23,1411.2,235.2,98164,Learning Disabilities Placemnt,360000              Passenger Transport,A,2023,1
456,Community and Housing,MERTON COMMUNITY TRANSPORT,16996,14-Apr-23,1864.8,310.8,98164,Learning Disabilities Placemnt,360000              Passenger Transport,A,2023,1
457,Unassigned,BEECHOLME PRIMARY ACADEMY,SCHOOLS 2324/1 A,05-Apr-23,4881.46,0,98168,Schools,170000              Education,A,2023,1
458,"Children, Schools and Family",Evolve Housing + Support,3292,24-Apr-23,962.19,0,98536,UASC Care Leavers Over 18,321000              Social Community Care Supplies & Services - Adult,A,2023,1
459,"Children, Schools and Family",Evolve Housing + Support,3291,24-Apr-23,962.19,0,98536,UASC Care Leavers Over 18,321000              Social Community Care Supplies & Services - Adult,A,2023,1
460,"Children, Schools and Family",Evolve Housing + Support,3290,24-Apr-23,962.19,0,98536,UASC Care Leavers Over 18,321000              Social Community Care Supplies & Services - Adult,A,2023,1
461,"Children, Schools and Family",Evolve Housing + Support,3289,24-Apr-23,581.42,0,98536,UASC Care Leavers Over 18,321000              Social Community Care Supplies & Services - Adult,A,2023,1
462,"Children, Schools and Family",Evolve Housing + Support,3288,24-Apr-23,1110,0,98536,Placements Over 18,321000              Social Community Care Supplies & Services - Adult,A,2023,1
463,"Children, Schools and Family",Evolve Housing + Support,3287,24-Apr-23,1110,0,98536,Placements Over 18,321000              Social Community Care Supplies & Services - Adult,A,2023,1
464,"Children, Schools and Family",Evolve Housing + Support,3294,24-Apr-23,1650,0,98536,UASC Care Leavers Over 18,321000              Social Community Care Supplies & Services - Adult,A,2023,1
465,"Children, Schools and Family",Evolve Housing + Support,3064,27-Apr-23,2565.84,0,98536,UASC Care Leavers Over 18,321000              Social Community Care Supplies & Services - Adult,A,2023,1
466,"Children, Schools and Family",Evolve Housing + Support,3293,27-Apr-23,962.19,0,98536,UASC Care Leavers Over 18,321000              Social Community Care Supplies & Services - Adult,A,2023,1
467,Community and Housing,ROYAL MENCAP SOCIETY,3754537,20-Apr-23,2290.96,0,98713,Learning Disabilities Placemnt,321000              Social Community Care Supplies & Services - Adult,A,2023,1
468,Community and Housing,ROYAL MENCAP SOCIETY,3754538,20-Apr-23,2613.96,0,98713,Learning Disabilities Placemnt,321000              Social Community Care Supplies & Services - Adult,A,2023,1
469,Community and Housing,NORTHERN HOUSING CONSORTIUM LTD,60609,10-May-23,1621.8,270.3,98721,Mascot,260000              Human Resources,A,2023,1
470,"Children, Schools and Family",REDACTED PERSONAL DATA,HORSERIDINGSUM23,25-Apr-23,546,0,101120,PupilPremium- Virtual School,290000              Arts & Leisure Services,R,2023,1
471,Unassigned,WEST WIMBLEDON PRIMARY SCHOOL,SCHOOLS 2324/1 A,05-Apr-23,355429.07,0,101674,Schools,170000              Education,A,2023,1
472,Community and Housing,HILLDALE AND NORTHVIEW,955487,12-Apr-23,2072.52,0,103592,Older People Placements - East,321000              Social Community Care Supplies & Services - Adult,A,2023,1
473,Environment and Regeneration,ST GEORGES UNI HOSP NHS F'DN T,78791725,13-Apr-23,35182.12,0,104586,Mortuary,321000              Social Community Care Supplies & Services - Adult,A,2023,1
474,Community and Housing,BUPA CARE HOMES,955333,12-Apr-23,7283.31,0,105027,Older People Placements - East,321017              Nursing & Residential Care Homes,A,2023,1
475,Community and Housing,BUPA CARE HOMES,955366,12-Apr-23,3154.12,0,105027,Older People Placements - East,321017              Nursing & Residential Care Homes,A,2023,1
476,Community and Housing,BUPA CARE HOMES,955373,12-Apr-23,3289.24,0,105027,Older People Placements - East,321017              Nursing & Residential Care Homes,A,2023,1
477,Community and Housing,BUPA CARE HOMES,955386,12-Apr-23,3289.24,0,105027,Older People Placements - East,321017              Nursing & Residential Care Homes,A,2023,1
478,Community and Housing,BUPA CARE HOMES,955397,12-Apr-23,3154.12,0,105027,Older People Placements - East,321017              Nursing & Residential Care Homes,A,2023,1
479,Community and Housing,BUPA CARE HOMES,955448,12-Apr-23,3289.24,0,105027,Older People Placements - East,321017              Nursing & Residential Care Homes,A,2023,1
480,Community and Housing,BUPA CARE HOMES,955460,12-Apr-23,3154.12,0,105027,Older People Placements - East,321017              Nursing & Residential Care Homes,A,2023,1
481,Community and Housing,BUPA CARE HOMES,955478,12-Apr-23,3154.12,0,105027,Older People Placements - East,321017              Nursing & Residential Care Homes,A,2023,1
482,Community and Housing,BUPA CARE HOMES,955489,12-Apr-23,3289.24,0,105027,Older People Placements - East,321017              Nursing & Residential Care Homes,A,2023,1
483,Community and Housing,BUPA CARE HOMES,955497,12-Apr-23,3154.12,0,105027,Older People Placements - East,321017              Nursing & Residential Care Homes,A,2023,1
484,Community and Housing,BUPA CARE HOMES,955549,12-Apr-23,3289.24,0,105027,Older People Placements - East,321017              Nursing & Residential Care Homes,A,2023,1
485,Community and Housing,BUPA CARE HOMES,955576,12-Apr-23,3289.24,0,105027,Older People Placements - East,321017              Nursing & Residential Care Homes,A,2023,1
486,Community and Housing,BUPA CARE HOMES,955579,12-Apr-23,3154.12,0,105027,Older People Placements - East,321017              Nursing & Residential Care Homes,A,2023,1
487,Community and Housing,BUPA CARE HOMES,955588,12-Apr-23,3289.24,0,105027,Older People Placements - East,321017              Nursing & Residential Care Homes,A,2023,1
488,Community and Housing,BUPA CARE HOMES,955621,12-Apr-23,3289.24,0,105027,Older People Placements - East,321017              Nursing & Residential Care Homes,A,2023,1
489,Community and Housing,BUPA CARE HOMES,955629,12-Apr-23,4321.08,0,105027,Phys/Sens Placements - East,321017              Nursing & Residential Care Homes,A,2023,1
490,Community and Housing,BUPA CARE HOMES,955646,12-Apr-23,3569.4,0,105027,Older People Placements - East,321017              Nursing & Residential Care Homes,A,2023,1
491,Community and Housing,BUPA CARE HOMES,955679,12-Apr-23,3154.12,0,105027,Older People Placements - East,321017              Nursing & Residential Care Homes,A,2023,1
492,Community and Housing,BUPA CARE HOMES,955704,12-Apr-23,3289.24,0,105027,Older People Placements - East,321017              Nursing & Residential Care Homes,A,2023,1
493,Community and Housing,BUPA CARE HOMES,955713,12-Apr-23,3289.24,0,105027,Older People Placements - East,321017              Nursing & Residential Care Homes,A,2023,1
494,Community and Housing,BUPA CARE HOMES,955745,12-Apr-23,3289.24,0,105027,Older People Placements - East,321017              Nursing & Residential Care Homes,A,2023,1
495,Community and Housing,BUPA CARE HOMES,955767,12-Apr-23,3154.12,0,105027,Older People Placements - East,321017              Nursing & Residential Care Homes,A,2023,1
496,Community and Housing,REDACTED PERSONAL DATA,958693,25-Apr-23,2689.24,0,105300,Learning Disabilities Placemnt,DIRECT PAYMENTS,R,2023,1
497,"Children, Schools and Family",NEWSCHOOLS (MERTON) LIMITED,NSM01023,28-Apr-23,3321.6,553.6,106428, PFI Unitary Charges,200000              Financial Services,A,2023,1
498,"Children, Schools and Family",NEWSCHOOLS (MERTON) LIMITED,NSM01057,28-Apr-23,3783.6,630.6,106428, PFI Unitary Charges,200000              Financial Services,A,2023,1
499,"Children, Schools and Family",NEWSCHOOLS (MERTON) LIMITED,NSM01033,28-Apr-23,35485.73,5914.29,106428, PFI Unitary Charges,200000              Financial Services,A,2023,1
500,"Children, Schools and Family",NEWSCHOOLS (MERTON) LIMITED,NSM01053,28-Apr-23,4746.61,791.1,106428, PFI Unitary Charges,200000              Financial Services,A,2023,1
501,Unassigned,ENVIRONMENT AGENCY,2.02304E+11,28-Apr-23,45933.81,0,108067,Flood Defence,PRECEPT,A,2023,1
502,Community and Housing,REDACTED PERSONAL DATA,961733,28-Apr-23,789.04,0,110403,MH Housing Support Placements,321000              Social Community Care Supplies & Services - Adult,R,2023,1
503,Community and Housing,REDACTED PERSONAL DATA,961734,28-Apr-23,2000,0,110403,Mental Health Placements,321000              Social Community Care Supplies & Services - Adult,R,2023,1
504,Community and Housing,REDACTED PERSONAL DATA,961736,28-Apr-23,1502.88,0,110403,Learning Disabilities Placemnt,321000              Social Community Care Supplies & Services - Adult,R,2023,1
505,Community and Housing,REDACTED PERSONAL DATA,961737,28-Apr-23,780.68,0,110403,MH Housing Support Placements,321000              Social Community Care Supplies & Services - Adult,R,2023,1
506,Community and Housing,REDACTED PERSONAL DATA,961751,28-Apr-23,780.68,0,110403,MH Housing Support Placements,321000              Social Community Care Supplies & Services - Adult,R,2023,1
507,Community and Housing,REDACTED PERSONAL DATA,961752,28-Apr-23,789.04,0,110403,MH Housing Support Placements,321000              Social Community Care Supplies & Services - Adult,R,2023,1
508,Community and Housing,REDACTED PERSONAL DATA,961759,28-Apr-23,1052.08,0,110403,Phys/Sens Placements - East,321000              Social Community Care Supplies & Services - Adult,R,2023,1
509,Community and Housing,REDACTED PERSONAL DATA,961761,28-Apr-23,1920.72,0,110403,Mental Health Placements,321000              Social Community Care Supplies & Services - Adult,R,2023,1
510,Community and Housing,REDACTED PERSONAL DATA,961768,28-Apr-23,780.68,0,110403,MH Housing Support Placements,321000              Social Community Care Supplies & Services - Adult,R,2023,1
511,Community and Housing,REDACTED PERSONAL DATA,961778,28-Apr-23,780.68,0,110403,MH Housing Support Placements,321000              Social Community Care Supplies & Services - Adult,R,2023,1
512,Community and Housing,REDACTED PERSONAL DATA,961779,28-Apr-23,1115.24,0,110403,Mental Health Placements,321000              Social Community Care Supplies & Services - Adult,R,2023,1
513,Community and Housing,REDACTED PERSONAL DATA,961781,28-Apr-23,520.48,0,110403,MH Housing Support Placements,321000              Social Community Care Supplies & Services - Adult,R,2023,1
514,Community and Housing,REDACTED PERSONAL DATA,961743,28-Apr-23,780.68,0,110406,LD Housing Support Placements,321000              Social Community Care Supplies & Services - Adult,R,2023,1
515,Corporate Services,LEXIS NEXIS,I0391963H,11-May-23,3840,640,111141,Legal Shared Service,270000              Information Communication Technology,A,2023,1
516,"Children, Schools and Family",REDACTED PERSONAL DATA,958260,20-Apr-23,568.93,0,111277,Placements Under 18,321100              Social Community Care Supplies & Services - Children,R,2023,1
517,"Children, Schools and Family",REDACTED PERSONAL DATA,958312,20-Apr-23,552.99,0,111277,Placements Under 18,321100              Social Community Care Supplies & Services - Children,R,2023,1
518,"Children, Schools and Family",REDACTED PERSONAL DATA,961536,27-Apr-23,504.5,0,111277,Placements Under 18,321100              Social Community Care Supplies & Services - Children,R,2023,1
519,Community and Housing,MEADBANK NURSING CENTRE,955525,12-Apr-23,1090,0,113139,Older People Placements - East,321017              Nursing & Residential Care Homes,A,2023,1
520,Community and Housing,MEADBANK NURSING CENTRE,955670,12-Apr-23,3273.84,0,113139,Older People Placements - East,321017              Nursing & Residential Care Homes,A,2023,1
521,Community and Housing,MEADBANK NURSING CENTRE,955743,12-Apr-23,2995.28,0,113139,Older People Placements - East,321017              Nursing & Residential Care Homes,A,2023,1
522,"Children, Schools and Family",JIGSAW4U,3071,26-Apr-23,18750,0,113501, Centralised Commiss Services,321100              Social Community Care Supplies & Services - Children,A,2023,1
523,Community and Housing,MIHOMECARE LIMITED,LIVE1W-269797,18-Apr-23,1113.7,0,114370,Learning Disabilities Placemnt,321000              Social Community Care Supplies & Services - Adult,A,2023,1
524,Community and Housing,MIHOMECARE LIMITED,LIVE1W-269852,26-Apr-23,1113.7,0,114370,Learning Disabilities Placemnt,321000              Social Community Care Supplies & Services - Adult,A,2023,1
525,Community and Housing,MIHOMECARE LIMITED,LIVE1W-269856,04-May-23,1113.7,0,114370,Learning Disabilities Placemnt,321000              Social Community Care Supplies & Services - Adult,A,2023,1
526,Community and Housing,MIHOMECARE LIMITED,LIVE1W-269868,11-May-23,1113.7,0,114370,Learning Disabilities Placemnt,321000              Social Community Care Supplies & Services - Adult,A,2023,1
527,Community and Housing,REDACTED PERSONAL DATA,961745,28-Apr-23,780.68,0,114970,MH Housing Support Placements,321000              Social Community Care Supplies & Services - Adult,R,2023,1
528,Community and Housing,REDACTED PERSONAL DATA,961748,28-Apr-23,1857.56,0,114970,Mental Health Placements,321000              Social Community Care Supplies & Services - Adult,R,2023,1
529,Community and Housing,REDACTED PERSONAL DATA,961773,28-Apr-23,1052.08,0,114970,MH Housing Support Placements,321000              Social Community Care Supplies & Services - Adult,R,2023,1
530,Community and Housing,REDACTED PERSONAL DATA,961785,28-Apr-23,1586.2,0,114970,Mental Health Placements,321000              Social Community Care Supplies & Services - Adult,R,2023,1
531,Community and Housing,REDACTED PERSONAL DATA,961762,02-May-23,1040.92,0,114970,Hospital To Home,321000              Social Community Care Supplies & Services - Adult,R,2023,1
532,Community and Housing,GRANGE COTTAGE LIMITED,955406,12-Apr-23,2680,0,117931,Older People Placements - East,321017              Nursing & Residential Care Homes,A,2023,1
533,Community and Housing,GRANGE COTTAGE LIMITED,955458,12-Apr-23,2680,0,117931,Older People Placements - East,321017              Nursing & Residential Care Homes,A,2023,1
534,Community and Housing,GRANGE COTTAGE LIMITED,955462,12-Apr-23,3200,0,117931,Older People Placements - East,321017              Nursing & Residential Care Homes,A,2023,1
535,Community and Housing,GRANGE COTTAGE LIMITED,955572,12-Apr-23,3600,0,117931,Older People Placements - East,321017              Nursing & Residential Care Homes,A,2023,1
536,Community and Housing,GRANGE COTTAGE LIMITED,955664,12-Apr-23,2680,0,117931,Older People Placements - East,321017              Nursing & Residential Care Homes,A,2023,1
537,Community and Housing,REDACTED PERSONAL DATA,961740,28-Apr-23,789.04,0,117970,MH Housing Support Placements,321000              Social Community Care Supplies & Services - Adult,R,2023,1
538,Community and Housing,REDACTED PERSONAL DATA,961753,28-Apr-23,1052.08,0,117970,Mental Health Placements,321000              Social Community Care Supplies & Services - Adult,R,2023,1
539,Community and Housing,REDACTED PERSONAL DATA,961771,28-Apr-23,1052.08,0,117970,Mental Health Placements,321000              Social Community Care Supplies & Services - Adult,R,2023,1
540,Community and Housing,L'ARCHE,955697,12-Apr-23,3094.6,0,118483,Learning Disabilities Placemnt,321017              Nursing & Residential Care Homes,A,2023,1
541,Community and Housing,Alexander House c/o Keychange Charity,955419,12-Apr-23,3100,0,119109,Older People Placements - East,321017              Nursing & Residential Care Homes,A,2023,1
542,Community and Housing,Alexander House c/o Keychange Charity,955490,12-Apr-23,3220.32,0,119109,Older People Placements - East,321017              Nursing & Residential Care Homes,A,2023,1
543,Community and Housing,Alexander House c/o Keychange Charity,955707,12-Apr-23,4000,0,119109,Older People Placements - East,321017              Nursing & Residential Care Homes,A,2023,1
544,Community and Housing,Alexander House c/o Keychange Charity,955756,12-Apr-23,3840,0,119109,Older People Placements - East,321017              Nursing & Residential Care Homes,A,2023,1
545,Environment and Regeneration,Flowbird Smart City UK Ltd,UK161729,26-Apr-23,2826.97,471.15,119359,Operational Running Costs,350000              Street & Traffic Management,A,2023,1
546,Environment and Regeneration,Flowbird Smart City UK Ltd,UK162029,26-Apr-23,3159.71,526.63,119359,Operational Running Costs,350000              Street & Traffic Management,A,2023,1
547,"Children, Schools and Family",EDWARD THOMAS & SON,23 686,27-Apr-23,1495,0,121921, Duke of Edinburgh Awrds,360000              Passenger Transport,A,2023,1
548,Community and Housing,REDACTED PERSONAL DATA,958424,25-Apr-23,1412.4,0,124097,Older People Placements - East,DIRECT PAYMENTS,R,2023,1
549,Community and Housing,UNITED RESPONSE,955381,12-Apr-23,7605.02,1267.5,125227,Learning Disabilities Placemnt,321000              Social Community Care Supplies & Services - Adult,A,2023,1
550,Community and Housing,UNITED RESPONSE,955429,12-Apr-23,7605.02,1267.5,125227,Learning Disabilities Placemnt,321000              Social Community Care Supplies & Services - Adult,A,2023,1
551,Community and Housing,UNITED RESPONSE,955481,12-Apr-23,7605.02,1267.5,125227,Learning Disabilities Placemnt,321000              Social Community Care Supplies & Services - Adult,A,2023,1
552,Community and Housing,UNITED RESPONSE,955522,12-Apr-23,7605.02,1267.5,125227,Learning Disabilities Placemnt,321000              Social Community Care Supplies & Services - Adult,A,2023,1
553,Community and Housing,UNITED RESPONSE,955642,12-Apr-23,7605.02,1267.5,125227,Learning Disabilities Placemnt,321000              Social Community Care Supplies & Services - Adult,A,2023,1
554,Community and Housing,REDACTED PERSONAL DATA,958463,25-Apr-23,1336.44,0,125642,Phys/Sens Placements - East,DIRECT PAYMENTS,R,2023,1
555,Environment and Regeneration,LARAC Ltd,224142,15-May-23,534,89,125891,Waste Management,200000              Financial Services,A,2023,1
556,Community and Housing,REDACTED PERSONAL DATA,958607,25-Apr-23,890.96,0,126189,Older People Placements - East,DIRECT PAYMENTS,R,2023,1
557,Community and Housing,KELSTONE COURT NURSING HOME,957406,26-Apr-23,1564.29,0,126473,Older People Placements - East,321017              Nursing & Residential Care Homes,A,2023,1
558,Community and Housing,KELSTONE COURT NURSING HOME,957407,26-Apr-23,1178.57,0,126473,Older People Placements - East,321017              Nursing & Residential Care Homes,A,2023,1
559,Community and Housing,KELSTONE COURT NURSING HOME,957408,26-Apr-23,1564.29,0,126473,Older People Placements - East,321017              Nursing & Residential Care Homes,A,2023,1
560,Community and Housing,KELSTONE COURT NURSING HOME,957409,26-Apr-23,1564.29,0,126473,Older People Placements - East,321017              Nursing & Residential Care Homes,A,2023,1
561,Community and Housing,KELSTONE COURT NURSING HOME,957410,26-Apr-23,1564.29,0,126473,Older People Placements - East,321017              Nursing & Residential Care Homes,A,2023,1
562,Community and Housing,KELSTONE COURT NURSING HOME,957411,26-Apr-23,1607.14,0,126473,Older People Placements - East,321017              Nursing & Residential Care Homes,A,2023,1
563,Community and Housing,KELSTONE COURT NURSING HOME,957412,26-Apr-23,5840,0,126473,Older People Placements - East,321017              Nursing & Residential Care Homes,A,2023,1
564,Community and Housing,KELSTONE COURT NURSING HOME,957413,26-Apr-23,9123.56,0,126473,Older People Placements - East,321017              Nursing & Residential Care Homes,A,2023,1
565,Community and Housing,KELSTONE COURT NURSING HOME,957415,26-Apr-23,1564.29,0,126473,Older People Placements - East,321017              Nursing & Residential Care Homes,A,2023,1
566,Community and Housing,KELSTONE COURT NURSING HOME,957416,26-Apr-23,1564.29,0,126473,Older People Placements - East,321017              Nursing & Residential Care Homes,A,2023,1
567,Community and Housing,KELSTONE COURT NURSING HOME,957418,26-Apr-23,1607.14,0,126473,Older People Placements - East,321017              Nursing & Residential Care Homes,A,2023,1
568,Community and Housing,KELSTONE COURT NURSING HOME,957419,26-Apr-23,642.85,0,126473,Older People Placements - East,321017              Nursing & Residential Care Homes,A,2023,1
569,Community and Housing,KELSTONE COURT NURSING HOME,957420,26-Apr-23,1564.29,0,126473,Older People Placements - East,321017              Nursing & Residential Care Homes,A,2023,1
570,Community and Housing,KELSTONE COURT NURSING HOME,957421,26-Apr-23,625.71,0,126473,Older People Placements - East,321017              Nursing & Residential Care Homes,A,2023,1
571,Community and Housing,KELSTONE COURT NURSING HOME,957422,26-Apr-23,1607.14,0,126473,Older People Placements - East,321017              Nursing & Residential Care Homes,A,2023,1
572,Community and Housing,KELSTONE COURT NURSING HOME,957423,26-Apr-23,1607.14,0,126473,Older People Placements - East,321017              Nursing & Residential Care Homes,A,2023,1
573,Community and Housing,KELSTONE COURT NURSING HOME,957424,26-Apr-23,1607.14,0,126473,Older People Placements - East,321017              Nursing & Residential Care Homes,A,2023,1
574,Community and Housing,REDACTED PERSONAL DATA,958371,25-Apr-23,668.24,0,127266,Phys/Sens Placements - East,DIRECT PAYMENTS,R,2023,1
575,"Children, Schools and Family",REDACTED PERSONAL DATA,958235,20-Apr-23,552.99,0,128736,Placements Under 18,321100              Social Community Care Supplies & Services - Children,R,2023,1
576,Community and Housing,BUPA CARE HOMES,955380,12-Apr-23,6133.76,0,130491,Phys/Sens Placements - East,321017              Nursing & Residential Care Homes,A,2023,1
577,Community and Housing,BUPA CARE HOMES,955483,12-Apr-23,6050.76,0,130491,Phys/Sens Placements - East,321017              Nursing & Residential Care Homes,A,2023,1
578,Corporate Services,EVAC AND CHAIR INTERNATIONAL LTD,INV154628,04-May-23,504,84,131743,Corporate Services Buildings,190000              Facilities & Management Services,A,2023,1
579,Corporate Services,DOMINO 4 LIMITED,D.44273,18-Apr-23,4917,819.5,132991,Marketing & Communication,190000              Facilities & Management Services                                                          Confirmed,A,2023,1
580,Corporate Services,DOMINO 4 LIMITED,D.44276,17-Apr-23,507,84.5,132991,Cost of Living Fund,190000              Facilities & Management Services                                                          Confirmed,A,2023,1
581,Community and Housing,VOYAGE CARE LTD,955451,12-Apr-23,6505.28,0,133700,Learning Disabilities Placemnt,321017              Nursing & Residential Care Homes,A,2023,1
582,Community and Housing,VOYAGE CARE LTD,955560,12-Apr-23,7721.6,0,133700,Learning Disabilities Placemnt,321017              Nursing & Residential Care Homes,A,2023,1
583,Community and Housing,VOYAGE CARE LTD,955640,12-Apr-23,7799.4,0,133700,Learning Disabilities Placemnt,321017              Nursing & Residential Care Homes,A,2023,1
584,Community and Housing,HOMECARE SERVICES LTD,28860,20-Apr-23,4454.8,0,134594,Phys/Sens Placements - East,321100              Social Community Care Supplies & Services - Children,A,2023,1
585,Community and Housing,Sunrise Rehabilitation Centre,955369,12-Apr-23,5213.88,0,135093,Learning Disabilities Placemnt,321017              Nursing & Residential Care Homes,A,2023,1
586,Community and Housing,Sunrise Rehabilitation Centre,955394,12-Apr-23,5213.88,0,135093,Learning Disabilities Placemnt,321017              Nursing & Residential Care Homes,A,2023,1
587,Community and Housing,Sunrise Rehabilitation Centre,955556,12-Apr-23,5161.52,0,135093,Learning Disabilities Placemnt,321017              Nursing & Residential Care Homes,A,2023,1
588,Community and Housing,Sunrise Rehabilitation Centre,955680,12-Apr-23,5043.72,0,135093,Learning Disabilities Placemnt,321017              Nursing & Residential Care Homes,A,2023,1
589,Community and Housing,Sunrise Rehabilitation Centre,955684,12-Apr-23,5174.6,0,135093,Learning Disabilities Placemnt,321017              Nursing & Residential Care Homes,A,2023,1
590,Community and Housing,Sunrise Rehabilitation Centre,955703,12-Apr-23,5213.88,0,135093,Learning Disabilities Placemnt,321017              Nursing & Residential Care Homes,A,2023,1
591,Community and Housing,Sunrise Rehabilitation Centre,955753,12-Apr-23,6102,0,135093,Learning Disabilities Placemnt,321017              Nursing & Residential Care Homes,A,2023,1
592,Community and Housing,Sunrise Rehabilitation Centre,955772,12-Apr-23,4363.08,0,135093,Learning Disabilities Placemnt,321017              Nursing & Residential Care Homes,A,2023,1
593,"Children, Schools and Family",Sunrise Rehabilitation Centre,962134,28-Apr-23,5320,0,135093, Statementing-Transport,321017              Nursing & Residential Care Homes,A,2023,1
594,Community and Housing,SW LONDON ST GEORGES NHS TRUST,P0070942- VOID,24-Apr-23,40914.3,0,135195,Learning Disabilities Placemnt,310000              Healthcare,A,2023,1
595,Community and Housing,SW LONDON ST GEORGES NHS TRUST,P0070942-JD,24-Apr-23,12629.75,0,135195,Mental Health Placements,310000              Healthcare,A,2023,1
596,Community and Housing,SW LONDON ST GEORGES NHS TRUST,P0070942LZ,24-Apr-23,12629.75,0,135195,Mental Health Placements,310000              Healthcare,A,2023,1
597,Community and Housing,SW LONDON ST GEORGES NHS TRUST,P0070942MM,24-Apr-23,12629.75,0,135195,Mental Health Placements,310000              Healthcare,A,2023,1
598,Community and Housing,SW LONDON ST GEORGES NHS TRUST,P0070942MR,24-Apr-23,12629.75,0,135195,Mental Health Placements,310000              Healthcare,A,2023,1
599,Community and Housing,SW LONDON ST GEORGES NHS TRUST,P0070942PJ,24-Apr-23,12629.75,0,135195,Mental Health Placements,310000              Healthcare,A,2023,1
600,Community and Housing,SW LONDON ST GEORGES NHS TRUST,P0070942SC,24-Apr-23,12629.75,0,135195,Mental Health Placements,310000              Healthcare,A,2023,1
601,Community and Housing,SW LONDON ST GEORGES NHS TRUST,P0070944,24-Apr-23,51881.24,0,135195,Learning Disabilities Placemnt,310000              Healthcare,A,2023,1
602,Community and Housing,MERTON VISION,ASC GRANT APR23,19-Apr-23,40733.61,0,135428,Public Health Main,260000              Human Resources,A,2023,1
603,Unassigned,DAC BEACHCROFT LLP,03-10205865,18-Apr-23,3140.78,0,135458,Corporate Accountancy,200000              Financial Services,A,2023,1
604,Unassigned,DAC BEACHCROFT LLP,03-10212274,26-Apr-23,891,0,135458,Corporate Accountancy,200000              Financial Services,A,2023,1
605,Community and Housing,REDACTED PERSONAL DATA,958488,25-Apr-23,1420,0,135784,Phys/Sens Placements - East,DIRECT PAYMENTS,R,2023,1
606,Community and Housing,VITALISE,955716,12-Apr-23,4402,0,135823,Older People Placements - East,321017              Nursing & Residential Care Homes,A,2023,1
607,"Children, Schools and Family",Bright Horizons - Raynes Park,P1 23 UPFRONTPAY,04-Apr-23,16567.2,0,136040,EARLY YEARS NURSERY GRANTS,170000              Education,A,2023,1
608,Unassigned,ZURICH INSURANCE GROUP,01E223/APR2023,02-May-23,50000,0,137315,Corporate Services,200000              Financial Services,A,2023,1
609,Unassigned,LB Wandsworth Pension Fund Account,CETV83,28-Apr-23,5356.59,0,137418,London Borough of Merton,PENSIONS,A,2023,1
610,Community and Housing,REDACTED PERSONAL DATA,958389,25-Apr-23,1078,0,139365,Phys/Sens Placements - East,DIRECT PAYMENTS,R,2023,1
611,Community and Housing,REDACTED PERSONAL DATA,958735,25-Apr-23,509.12,0,140662,Phys/Sens Placements - East,DIRECT PAYMENTS,R,2023,1
612,Community and Housing,REDACTED PERSONAL DATA,958407,25-Apr-23,5056.2,0,140759,Phys/Sens Placements - East,DIRECT PAYMENTS,R,2023,1
613,Community and Housing,SURREY AND BORDERS PARTNERSHIP,955512,12-Apr-23,11448.72,0,140911,Learning Disabilities Placemnt,321017              Nursing & Residential Care Homes,A,2023,1
614,Community and Housing,OXFORD UNIVERSITY PRESS,XI16101206,03-May-23,4704.8,0,140928,Media Fund,260000              Human Resources,A,2023,1
615,Community and Housing,GARWOOD FOUNDATION,955401,12-Apr-23,2755.48,0,142358,Phys/Sens Placements - East,321017              Nursing & Residential Care Homes,A,2023,1
616,Community and Housing,GARWOOD FOUNDATION,955499,12-Apr-23,2755.48,0,142358,Older People Placements - East,321017              Nursing & Residential Care Homes,A,2023,1
617,Community and Housing,EVERGREEN PARTNERSHIP,955446,12-Apr-23,9675,0,142455,Learning Disabilities Placemnt,321017              Nursing & Residential Care Homes,A,2023,1
618,Community and Housing,EVERGREEN PARTNERSHIP,955464,12-Apr-23,6629.16,0,142455,Learning Disabilities Placemnt,321017              Nursing & Residential Care Homes,A,2023,1
619,Community and Housing,REDACTED PERSONAL DATA,961757,28-Apr-23,1052.08,0,143597,MH Housing Support Placements,321000              Social Community Care Supplies & Services - Adult,R,2023,1
620,Community and Housing,REDACTED PERSONAL DATA,961769,28-Apr-23,1315.04,0,143597,LD Housing Support Placements,321000              Social Community Care Supplies & Services - Adult,R,2023,1
621,Community and Housing,REDACTED PERSONAL DATA,961786,28-Apr-23,1462.32,0,143597,Learning Disabilities Placemnt,321000              Social Community Care Supplies & Services - Adult,R,2023,1
622,Corporate Services,REDACTED PERSONAL DATA,JR187,14-Apr-23,1201,0,143840,Translation Service,TRANSLATIONS,R,2023,1
623,Community and Housing,REDACTED PERSONAL DATA,958679,25-Apr-23,3731.72,0,144689,Learning Disabilities Placemnt,DIRECT PAYMENTS,R,2023,1
624,Community and Housing,CRAEGMOOR FACILITIES - WINDSOR,955493,12-Apr-23,6834.88,0,145152,Learning Disabilities Placemnt,321017              Nursing & Residential Care Homes,A,2023,1
625,Community and Housing,REDACTED PERSONAL DATA,958491,25-Apr-23,4454.8,0,145882,Learning Disabilities Placemnt,DIRECT PAYMENTS,R,2023,1
626,Community and Housing,SW LONDON LAW CENTRES,CAPACITYGRANT,21-Apr-23,6000,0,146262,Covid-19 Clinical E Vulnerable,200000              Financial Services,A,2023,1
627,Corporate Services,SW LONDON LAW CENTRES,CIVIC PRIDE FUND,25-Apr-23,38120.67,0,146262,VOLUNTARY SECTOR COORDINATION,200000              Financial Services,A,2023,1
628,"Children, Schools and Family",SPEECH CENTRE,110821,02-May-23,3247.2,541.2,147920,Family Supp SafeGuard - Team,270000              Information Communication Technology,A,2023,1
629,Community and Housing,GENERATE,10089,14-Apr-23,2884,0,148332,Learning Disabilities Placemnt,321000              Social Community Care Supplies & Services - Adult,A,2023,1
630,Community and Housing,GENERATE,10273,14-Apr-23,2698.6,0,148332,Learning Disabilities Placemnt,321000              Social Community Care Supplies & Services - Adult,A,2023,1
631,Community and Housing,GENERATE,10592,28-Apr-23,659.2,0,148332,Learning Disabilities Placemnt,321000              Social Community Care Supplies & Services - Adult,A,2023,1
632,Community and Housing,GENERATE,10590,28-Apr-23,727.2,0,148332,Learning Disabilities Placemnt,321000              Social Community Care Supplies & Services - Adult,A,2023,1
633,Community and Housing,CHICHESTER HALL CARE HOME LTD,955715,12-Apr-23,2637.2,0,148358,Older People Placements - East,321017              Nursing & Residential Care Homes,A,2023,1
634,"Children, Schools and Family",Dicky Birds Pre Sch. Nurseries Queens Rd,P1 23 UPFRONTPAY,04-Apr-23,39251.52,0,148567,EARLY YEARS NURSERY GRANTS,200000              Financial Services,A,2023,1
635,Corporate Services,HORNBILL SERVICE MGMENT LTD,INV17989,28-Apr-23,16062.1,2677.02,148881,IT Service Delivery,270000              Information Communication Technology,A,2023,1
636,Community and Housing,YMCA St Pauls' Group,461,11-Apr-23,90223,0,149961,Supporting People (HRS),321000              Social Community Care Supplies & Services - Adult,A,2023,1
637,Unassigned,Canterbury Campus,SCHOOLS 2324/1 A,05-Apr-23,275957.68,0,150054,Schools,170000              Education,A,2023,1
638,Unassigned,BARNETT WADDINGHAM LLP,T23/9514,02-May-23,8283.5,1380.58,150927,Governance & Oversight Cost,PENSIONS,A,2023,1
639,Community and Housing,REDACTED PERSONAL DATA,958426,25-Apr-23,2544.32,0,151002,Older People Placements - East,DIRECT PAYMENTS,R,2023,1
640,"Children, Schools and Family",GOMPELS HEALTHCARE LTD,2464795,25-Apr-23,601.95,100.33,151364,lavender Locality Child Cent,130000              Cleaning & Janitorial,A,2023,1
641,Community and Housing,AIMS CARE PARTNERSHIP,955449,12-Apr-23,10560,0,151592,Learning Disabilities Placemnt,321017              Nursing & Residential Care Homes,A,2023,1
642,Community and Housing,AIMS CARE PARTNERSHIP,955485,12-Apr-23,3114.72,0,151592,Learning Disabilities Placemnt,321017              Nursing & Residential Care Homes,A,2023,1
643,Community and Housing,REDACTED PERSONAL DATA,958595,25-Apr-23,2333.6,0,151790,Older People Placements - East,DIRECT PAYMENTS,R,2023,1
644,Community and Housing,REDACTED PERSONAL DATA,958725,25-Apr-23,7434.32,0,152015,Older People Placements - East,321000              Social Community Care Supplies & Services - Adult,R,2023,1
645,Corporate Services,WANDSWORTH CORPORATION,WC376792128M12D,12-Apr-23,3223.85,0,152180,SLLP Client Income,OLA,A,2023,1
646,Unassigned,WANDSWORTH CORPORATION,2101149861,18-Apr-23,129306.98,21551.16,152180,Administrative Cost,OLA,A,2023,1
647,Community and Housing,REDACTED PERSONAL DATA,958630,25-Apr-23,954.6,0,152709,Older People Placements - East,DIRECT PAYMENTS,R,2023,1
648,Community and Housing,REDACTED PERSONAL DATA,958500,25-Apr-23,1909.2,0,152990,Learning Disabilities Placemnt,DIRECT PAYMENTS,R,2023,1
649,Community and Housing,LYNTON HALL NURSING HOME,955349,17-Apr-23,3102.04,0,153795,Older People Placements - East,321017              Nursing & Residential Care Homes,A,2023,1
650,Community and Housing,LYNTON HALL NURSING HOME,955354,17-Apr-23,2988.48,0,153795,Older People Placements - East,321017              Nursing & Residential Care Homes,A,2023,1
651,Community and Housing,LYNTON HALL NURSING HOME,955520,17-Apr-23,3249.6,0,153795,Older People Placements - East,321017              Nursing & Residential Care Homes,A,2023,1
652,Corporate Services,MBL SEMINARS LTD,1273676,20-Apr-23,708,118,154631,Legal Shared Service,260000              Human Resources,A,2023,1
653,Unassigned,HARRIS ACADEMY MERTON,SCHOOLS 2324/1 A,05-Apr-23,52172.41,0,155274,Schools,170000              Education,A,2023,1
654,Unassigned,CFBT SCHOOLS TRUST,SCHOOLS 2324/1 A,05-Apr-23,21263.27,0,155275,Schools,170000              Education,A,2023,1
655,Community and Housing,IMAGINE INDEPENDENCE,10544,20-Apr-23,7300,0,158720,Outbreak Contain Mngment Grant,321000              Social Community Care Supplies & Services - Adult,A,2023,1
656,Community and Housing,BDS LTD,19714,24-Apr-23,7707,1284.5,158748,Media Fund,270000              Information Communication Technology,A,2023,1
657,Community and Housing,REDACTED PERSONAL DATA,958478,25-Apr-23,979.36,0,159542,Phys/Sens Placements - East,DIRECT PAYMENTS,R,2023,1
658,Corporate Services,ADVANCED BUSINESS SOLUTIONS,INV-92151,24-Apr-23,12000,2000,159966,Project Chaplin,270000              Information Communication Technology,A,2023,1
659,Community and Housing,REDACTED PERSONAL DATA,958683,25-Apr-23,3220,0,160044,Phys/Sens Placements - East,DIRECT PAYMENTS,R,2023,1
660,Community and Housing,METROPOLITAN THAMES VALLEY,3063090-SM,25-Apr-23,2171,0,160080,Learning Disabilities Placemnt,321017              Nursing & Residential Care Homes,A,2023,1
661,Community and Housing,METROPOLITAN THAMES VALLEY,3063090-LD,25-Apr-23,2171,0,160080,Learning Disabilities Placemnt,321017              Nursing & Residential Care Homes,A,2023,1
662,Community and Housing,METROPOLITAN THAMES VALLEY,3063090-SC,25-Apr-23,2171,0,160080,Learning Disabilities Placemnt,321017              Nursing & Residential Care Homes,A,2023,1
663,Community and Housing,METROPOLITAN THAMES VALLEY,3063090-GB,25-Apr-23,2171,0,160080,Learning Disabilities Placemnt,321017              Nursing & Residential Care Homes,A,2023,1
664,Community and Housing,METROPOLITAN THAMES VALLEY,3063089-SM,25-Apr-23,2171,0,160080,Learning Disabilities Placemnt,321017              Nursing & Residential Care Homes,A,2023,1
665,Community and Housing,METROPOLITAN THAMES VALLEY,3063089-LD,25-Apr-23,2171,0,160080,Learning Disabilities Placemnt,321017              Nursing & Residential Care Homes,A,2023,1
666,Community and Housing,METROPOLITAN THAMES VALLEY,3063089-SC,25-Apr-23,2171,0,160080,Learning Disabilities Placemnt,321017              Nursing & Residential Care Homes,A,2023,1
667,Community and Housing,METROPOLITAN THAMES VALLEY,3063089-GB,25-Apr-23,2171,0,160080,Learning Disabilities Placemnt,321017              Nursing & Residential Care Homes,A,2023,1
668,Corporate Services,TROWERS AND HAMLINS,11-203230,27-Apr-23,5100,850,160116,SLLP - Disbursements,280000              Legal Services                                                                            Confirmed,A,2023,1
669,Community and Housing,ASIAN ELDERLY GROUP OF MERTON,ASC GRANT APR23,24-Apr-23,5000,0,160123,Com Care Placement Contingency,200000              Financial Services,A,2023,1
670,"Children, Schools and Family",REDACTED PERSONAL DATA,960114,24-Apr-23,1082.6,0,160147,Child Disabilities - Placement,CSF-DIRECT PAYMENTS,R,2023,1
671,Community and Housing,REDACTED PERSONAL DATA,958520,25-Apr-23,1166.76,0,160244,Phys/Sens Placements - East,DIRECT PAYMENTS,R,2023,1
672,Community and Housing,REDACTED PERSONAL DATA,958462,25-Apr-23,604.6,0,160273,Learning Disabilities Placemnt,DIRECT PAYMENTS,R,2023,1
673,Community and Housing,REDACTED PERSONAL DATA,958576,25-Apr-23,889.96,0,160279,Phys/Sens Placements - East,DIRECT PAYMENTS,R,2023,1
674,"Children, Schools and Family",Fleet Educ.Services Ltd T/A Fleet Tutors,22246,27-Apr-23,4278,713,160300,Non-Delegated Statements,260000              Human Resources,A,2023,1
675,"Children, Schools and Family",THE NATIONAL FOSTERING AGENCY,438923,24-Apr-23,5703.38,0,160464,Placements Under 18,321100              Social Community Care Supplies & Services - Children,A,2023,1
676,"Children, Schools and Family",THE NATIONAL FOSTERING AGENCY,438924,24-Apr-23,5703.38,0,160464,Placements Under 18,321100              Social Community Care Supplies & Services - Children,A,2023,1
677,"Children, Schools and Family",THE NATIONAL FOSTERING AGENCY,438925,24-Apr-23,3598.17,0,160464,Placements Under 18,321100              Social Community Care Supplies & Services - Children,A,2023,1
678,Community and Housing,THE AVENUES TRUST GROUP,1003133,26-Apr-23,9463.56,0,160730,Learning Disabilities Placemnt,321017              Nursing & Residential Care Homes,A,2023,1
679,"Children, Schools and Family",REDACTED PERSONAL DATA,954513,05-Apr-23,514.75,0,161094,UASC LAC Under 18,321100              Social Community Care Supplies & Services - Children,R,2023,1
680,"Children, Schools and Family",REDACTED PERSONAL DATA,954556,05-Apr-23,614.75,0,161094,UASC LAC Under 18,321100              Social Community Care Supplies & Services - Children,R,2023,1
681,"Children, Schools and Family",REDACTED PERSONAL DATA,956422,14-Apr-23,514.75,0,161094,UASC LAC Under 18,321100              Social Community Care Supplies & Services - Children,R,2023,1
682,"Children, Schools and Family",REDACTED PERSONAL DATA,956464,14-Apr-23,514.75,0,161094,UASC LAC Under 18,321100              Social Community Care Supplies & Services - Children,R,2023,1
683,"Children, Schools and Family",REDACTED PERSONAL DATA,958223,20-Apr-23,612.43,0,161094,UASC LAC Under 18,321100              Social Community Care Supplies & Services - Children,R,2023,1
684,"Children, Schools and Family",REDACTED PERSONAL DATA,958256,20-Apr-23,554.53,0,161094,Placements Over 18,321100              Social Community Care Supplies & Services - Children,R,2023,1
685,"Children, Schools and Family",REDACTED PERSONAL DATA,958265,20-Apr-23,612.43,0,161094,UASC LAC Under 18,321100              Social Community Care Supplies & Services - Children,R,2023,1
686,"Children, Schools and Family",REDACTED PERSONAL DATA,961498,27-Apr-23,538.33,0,161094,UASC LAC Under 18,321100              Social Community Care Supplies & Services - Children,R,2023,1
687,"Children, Schools and Family",REDACTED PERSONAL DATA,961541,27-Apr-23,538.33,0,161094,UASC LAC Under 18,321100              Social Community Care Supplies & Services - Children,R,2023,1
688,Corporate Services,REDACTED PERSONAL DATA,JG114991/270323,15-May-23,37200,6200,162291,SLLP - Disbursements,280000              Legal Services                                                                            Confirmed,R,2023,1
689,Corporate Services,DATA INTERCHANGE PLC,UKSI-104826,25-Apr-23,664.5,110.75,162623,Local Taxation Bailiffs,270000              Information Communication Technology,A,2023,1
690,"Children, Schools and Family",THE NATIONAL AUTISTIC SOCIETY,VNG8387863,14-Apr-23,12527.89,0,162644,Non-Delegated Statements,260000              Human Resources,A,2023,1
691,Community and Housing,REDACTED PERSONAL DATA,958425,25-Apr-23,1562.56,0,163392,Learning Disabilities Placemnt,DIRECT PAYMENTS,R,2023,1
692,Corporate Services,D N H PROPERTY MAINTENANCE,2250DNH,26-Apr-23,4056.82,676.14,163395,Schools FM,"390000              Works - Construction, Repair & Maintenance",C,2023,1
693,Corporate Services,D N H PROPERTY MAINTENANCE,2251DNH,08-May-23,4944,824,163395,Schools FM,"390000              Works - Construction, Repair & Maintenance",C,2023,1
694,Environment and Regeneration,D N H PROPERTY MAINTENANCE,2255DNH,08-May-23,2755.8,459.3,163395,EDS2,"390000              Works - Construction, Repair & Maintenance",C,2023,1
695,Environment and Regeneration,D N H PROPERTY MAINTENANCE,2678DNH,08-May-23,1979.76,329.96,163395,Vestry Hall,"390000              Works - Construction, Repair & Maintenance",C,2023,1
696,Environment and Regeneration,D N H PROPERTY MAINTENANCE,2256DNH,08-May-23,1547.76,257.96,163395,Vestry Hall,"390000              Works - Construction, Repair & Maintenance",C,2023,1
697,Corporate Services,D N H PROPERTY MAINTENANCE,2259DNH,11-May-23,864,144,163395,Schools FM,"390000              Works - Construction, Repair & Maintenance",C,2023,1
698,Community and Housing,Tunstall Healthcare (UK) Limited,CD970014605,24-Apr-23,5400,900,163420,Hospital Discharge Grant,190000              Facilities & Management Services,A,2023,1
699,"Children, Schools and Family",REDACTED PERSONAL DATA,954569,05-Apr-23,785.52,0,163471,Placements Under 18,200000              Financial Services,R,2023,1
700,"Children, Schools and Family",REDACTED PERSONAL DATA,954578,05-Apr-23,654.24,0,163471,Placements Under 18,200000              Financial Services,R,2023,1
701,"Children, Schools and Family",REDACTED PERSONAL DATA,956400,14-Apr-23,565.5,0,163471,UASC LAC Under 18,200000              Financial Services,R,2023,1
702,"Children, Schools and Family",REDACTED PERSONAL DATA,956477,14-Apr-23,785.52,0,163471,Placements Under 18,200000              Financial Services,R,2023,1
703,"Children, Schools and Family",REDACTED PERSONAL DATA,956487,14-Apr-23,654.24,0,163471,Placements Under 18,200000              Financial Services,R,2023,1
704,"Children, Schools and Family",REDACTED PERSONAL DATA,958201,20-Apr-23,596.49,0,163471,UASC LAC Under 18,200000              Financial Services,R,2023,1
705,"Children, Schools and Family",REDACTED PERSONAL DATA,958278,20-Apr-23,785.52,0,163471,Placements Under 18,200000              Financial Services,R,2023,1
706,"Children, Schools and Family",REDACTED PERSONAL DATA,958288,20-Apr-23,751.92,0,163471,Placements Under 18,200000              Financial Services,R,2023,1
707,"Children, Schools and Family",REDACTED PERSONAL DATA,961554,27-Apr-23,785.52,0,163471,Placements Under 18,200000              Financial Services,R,2023,1
708,"Children, Schools and Family",REDACTED PERSONAL DATA,961565,27-Apr-23,753.11,0,163471,Placements Under 18,200000              Financial Services,R,2023,1
709,Corporate Services,NET-CTRL,11584,17-May-23,3839.64,639.94,163621,IT-Telecomms,270000              Information Communication Technology,A,2023,1
710,"Children, Schools and Family",GIRLGUIDING UK,B-15991,11-May-23,1620.4,270.08,163706,Adventure Playground Project,290000              Arts & Leisure Services,A,2023,1
711,Community and Housing,Active Prospects,955382,12-Apr-23,6103.76,0,163859,Learning Disabilities Placemnt,321017              Nursing & Residential Care Homes,A,2023,1
712,Community and Housing,REDACTED PERSONAL DATA,958457,25-Apr-23,1058.76,0,163971,Older People Placements - East,DIRECT PAYMENTS,R,2023,1
713,Corporate Services,LONDON COUNCILS,4338019,17-Apr-23,38230,0,164343,VOLUNTARY SECTOR COORDINATION,OLA,A,2023,1
714,Corporate Services,LONDON COUNCILS,4338341,25-Apr-23,64729.2,10788.2,164343,Chief Executive,OLA,A,2023,1
715,Corporate Services,LONDON COUNCILS,4338369,26-Apr-23,108017,0,164343,Chief Executive,OLA,A,2023,1
716,Environment and Regeneration,LONDON COUNCILS,4338883,02-May-23,12316.17,0,164343,Operational Running Costs,OLA,A,2023,1
717,Community and Housing,ENTERPRISE CARE SUPPORT LTD,20279,12-Apr-23,3520.8,0,164431,Older People Placements - East,321000              Social Community Care Supplies & Services - Adult,A,2023,1
718,Community and Housing,ENTERPRISE CARE SUPPORT LTD,20280,12-Apr-23,2778.72,0,164431,Older People Placements - East,321000              Social Community Care Supplies & Services - Adult,A,2023,1
719,Community and Housing,ENTERPRISE CARE SUPPORT LTD,20281,12-Apr-23,3197.04,0,164431,Older People Placements - East,321000              Social Community Care Supplies & Services - Adult,A,2023,1
720,Community and Housing,ENTERPRISE CARE SUPPORT LTD,20283,12-Apr-23,747.04,0,164431,Older People Placements - East,321000              Social Community Care Supplies & Services - Adult,A,2023,1
721,Community and Housing,ENTERPRISE CARE SUPPORT LTD,20285,12-Apr-23,1068.2,0,164431,Older People Placements - East,321000              Social Community Care Supplies & Services - Adult,A,2023,1
722,Community and Housing,ENTERPRISE CARE SUPPORT LTD,20287,12-Apr-23,681.48,0,164431,Older People Placements - East,321000              Social Community Care Supplies & Services - Adult,A,2023,1
723,Community and Housing,ENTERPRISE CARE SUPPORT LTD,20288,12-Apr-23,747.04,0,164431,Older People Placements - East,321000              Social Community Care Supplies & Services - Adult,A,2023,1
724,Community and Housing,ENTERPRISE CARE SUPPORT LTD,20290,12-Apr-23,839.3,0,164431,Older People Placements - East,321000              Social Community Care Supplies & Services - Adult,A,2023,1
725,Community and Housing,ENTERPRISE CARE SUPPORT LTD,20242,14-Apr-23,781.45,0,164431,Older People Placements - East,321000              Social Community Care Supplies & Services - Adult,A,2023,1
726,Community and Housing,ENTERPRISE CARE SUPPORT LTD,20291,14-Apr-23,681.48,0,164431,Learning Disabilities Placemnt,321000              Social Community Care Supplies & Services - Adult,A,2023,1
727,Community and Housing,ENTERPRISE CARE SUPPORT LTD,20292,14-Apr-23,1068.2,0,164431,Older People Placements - East,321000              Social Community Care Supplies & Services - Adult,A,2023,1
728,Community and Housing,ENTERPRISE CARE SUPPORT LTD,20293,14-Apr-23,2136.4,0,164431,Older People Placements - East,321000              Social Community Care Supplies & Services - Adult,A,2023,1
729,Community and Housing,ENTERPRISE CARE SUPPORT LTD,20295,14-Apr-23,1068.2,0,164431,Older People Placements - East,321000              Social Community Care Supplies & Services - Adult,A,2023,1
730,Community and Housing,ENTERPRISE CARE SUPPORT LTD,20298,14-Apr-23,2778.72,0,164431,Older People Placements - East,321000              Social Community Care Supplies & Services - Adult,A,2023,1
731,Community and Housing,ENTERPRISE CARE SUPPORT LTD,20301,14-Apr-23,1068.2,0,164431,Older People Placements - East,321000              Social Community Care Supplies & Services - Adult,A,2023,1
732,Community and Housing,BUPA CARE SERVICES BACS RECEIP,955569,12-Apr-23,8538.76,0,164629,Older People Placements - East,321017              Nursing & Residential Care Homes,A,2023,1
733,Community and Housing,REDACTED PERSONAL DATA,958651,25-Apr-23,1272.8,0,164694,Older People Placements - East,DIRECT PAYMENTS,R,2023,1
734,"Children, Schools and Family",SYNERGY FOSTERING LTD,INV-4169,12-Apr-23,7944.68,0,165111,Placements Under 18,321100              Social Community Care Supplies & Services - Children,A,2023,1
735,Unassigned,MARSTON GROUP,62646,24-Apr-23,2861,0,165202,Corporate Accountancy,200000              Financial Services,A,2023,1
736,"Children, Schools and Family",CHILDREN OF COLOUR,8160,12-Apr-23,5336.87,0,165365,Placements Under 18,321100              Social Community Care Supplies & Services - Children,A,2023,1
737,Community and Housing,REDACTED PERSONAL DATA,958677,25-Apr-23,1349.48,0,165602,Learning Disabilities Placemnt,DIRECT PAYMENTS,R,2023,1
738,Community and Housing,REDACTED PERSONAL DATA,958636,25-Apr-23,37482.9,0,165619,Phys/Sens Placements - East,DIRECT PAYMENTS,R,2023,1
739,Community and Housing,BUPA CARE HOMES (ANS) LTD,955735,12-Apr-23,4749.4,0,165704,Older People Placements - East,321017              Nursing & Residential Care Homes,A,2023,1
740,Community and Housing,REDACTED PERSONAL DATA,958716,25-Apr-23,1001.56,0,165786,Older People Placements - East,DIRECT PAYMENTS,R,2023,1
741,Community and Housing,REDACTED PERSONAL DATA,958728,25-Apr-23,700.8,0,166085,Learning Disabilities Placemnt,DIRECT PAYMENTS,R,2023,1
742,Community and Housing,REDACTED PERSONAL DATA,958417,25-Apr-23,1654.64,0,166158,Phys/Sens Placements - East,DIRECT PAYMENTS,R,2023,1
743,Community and Housing,REDACTED PERSONAL DATA,958441,25-Apr-23,1209.16,0,166547,Learning Disabilities Placemnt,DIRECT PAYMENTS,R,2023,1
744,"Children, Schools and Family",REDACTED PERSONAL DATA,954497,05-Apr-23,1295.53,0,166742,Placements Under 18,321100              Social Community Care Supplies & Services - Children,R,2023,1
745,"Children, Schools and Family",REDACTED PERSONAL DATA,956406,14-Apr-23,1295.53,0,166742,Placements Under 18,321100              Social Community Care Supplies & Services - Children,R,2023,1
746,"Children, Schools and Family",REDACTED PERSONAL DATA,958207,20-Apr-23,1380.46,0,166742,Placements Under 18,321100              Social Community Care Supplies & Services - Children,R,2023,1
747,"Children, Schools and Family",REDACTED PERSONAL DATA,961482,27-Apr-23,1316.03,0,166742,Placements Under 18,321100              Social Community Care Supplies & Services - Children,R,2023,1
748,"Children, Schools and Family",REDACTED PERSONAL DATA,960074,24-Apr-23,807.76,0,166972,Child Disabilities - Placement,CSF-DIRECT PAYMENTS,R,2023,1
749,Corporate Services,SGS United Kingdom Limited,1330606,09-May-23,1350,225,167356,Legal Shared Service,280000              Legal Services                                                                            Confirmed,A,2023,1
750,Environment and Regeneration,IMPERIAL CIVIL ENFORC.SOLUT.,INV0000007255,09-May-23,1713.02,285.5,167737,Operational Running Costs,270000              Information Communication Technology,A,2023,1
751,"Children, Schools and Family",RAINBOW FOSTERING SERVICES LTD,RF2273,12-Apr-23,3742.13,0,167793,Placements Under 18,321100              Social Community Care Supplies & Services - Children,A,2023,1
752,Corporate Services,REDACTED PERSONAL DATA,10210315,12-Apr-23,1672.2,278.7,168092,SLLP - Disbursements,280000              Legal Services,R,2023,1
753,Corporate Services,REDACTED PERSONAL DATA,10203190,20-Apr-23,1717.8,286.3,168092,SLLP - Disbursements,280000              Legal Services,R,2023,1
754,Corporate Services,REDACTED PERSONAL DATA,10203192,20-Apr-23,1712.4,285.4,168092,SLLP - Disbursements,280000              Legal Services,R,2023,1
755,Corporate Services,REDACTED PERSONAL DATA,10216730,25-Apr-23,16341.6,2723.6,168092,SLLP - Disbursements,280000              Legal Services,R,2023,1
756,Corporate Services,REDACTED PERSONAL DATA,10200044,27-Apr-23,847.8,141.3,168092,SLLP - Disbursements,280000              Legal Services,R,2023,1
757,Corporate Services,REDACTED PERSONAL DATA,10202073,27-Apr-23,645.6,107.6,168092,SLLP - Disbursements,280000              Legal Services,R,2023,1
758,Corporate Services,REDACTED PERSONAL DATA,10202079,27-Apr-23,603.6,100.6,168092,SLLP - Disbursements,280000              Legal Services,R,2023,1
759,Corporate Services,REDACTED PERSONAL DATA,10203176,27-Apr-23,612,102,168092,SLLP - Disbursements,280000              Legal Services,R,2023,1
760,Corporate Services,REDACTED PERSONAL DATA,10203183,27-Apr-23,703.2,117.2,168092,SLLP - Disbursements,280000              Legal Services,R,2023,1
761,Corporate Services,REDACTED PERSONAL DATA,10203185,28-Apr-23,1809,301.5,168092,SLLP - Disbursements,280000              Legal Services,R,2023,1
762,Corporate Services,REDACTED PERSONAL DATA,10203186,28-Apr-23,804,134,168092,SLLP - Disbursements,280000              Legal Services,R,2023,1
763,Corporate Services,REDACTED PERSONAL DATA,10203187,28-Apr-23,842.4,140.4,168092,SLLP - Disbursements,280000              Legal Services,R,2023,1
764,Corporate Services,REDACTED PERSONAL DATA,10203189,28-Apr-23,514.8,85.8,168092,SLLP - Disbursements,280000              Legal Services,R,2023,1
765,Corporate Services,REDACTED PERSONAL DATA,10203191,28-Apr-23,695.4,115.9,168092,SLLP - Disbursements,280000              Legal Services,R,2023,1
766,Corporate Services,REDACTED PERSONAL DATA,10203178,28-Apr-23,746.4,124.4,168092,SLLP - Disbursements,280000              Legal Services,R,2023,1
767,Corporate Services,REDACTED PERSONAL DATA,10203193,28-Apr-23,704.4,117.4,168092,SLLP - Disbursements,280000              Legal Services,R,2023,1
768,Corporate Services,REDACTED PERSONAL DATA,10203195,28-Apr-23,958.8,159.8,168092,SLLP - Disbursements,280000              Legal Services,R,2023,1
769,Corporate Services,REDACTED PERSONAL DATA,10206737,28-Apr-23,808.2,134.7,168092,SLLP - Disbursements,280000              Legal Services,R,2023,1
770,Corporate Services,REDACTED PERSONAL DATA,10206750,28-Apr-23,784.8,130.8,168092,SLLP - Disbursements,280000              Legal Services,R,2023,1
771,Capital,CBS Adaptation Design,1734,12-Apr-23,2022.42,249.57,168147,Disabled Facilities Grant,200000              Financial Services,A,2023,1
772,Capital,CBS Adaptation Design,1726,20-Apr-23,1670.47,190.91,168147,Disabled Facilities Grant,200000              Financial Services,A,2023,1
773,Capital,CBS Adaptation Design,1735,20-Apr-23,912.43,122.74,168147,Disabled Facilities Grant,200000              Financial Services,A,2023,1
774,Capital,CBS Adaptation Design,1729,20-Apr-23,2793.97,377.66,168147,Disabled Facilities Grant,200000              Financial Services,A,2023,1
775,Capital,CBS Adaptation Design,1731,20-Apr-23,3445.21,486.2,168147,Disabled Facilities Grant,200000              Financial Services,A,2023,1
776,Corporate Services,LANGUAGE BANK,MTS-240323,14-Apr-23,714,119,168229,Translation Service,TRANSLATIONS,A,2023,1
777,Corporate Services,LANGUAGE BANK,MTS-210323,14-Apr-23,810,135,168229,Translation Service,TRANSLATIONS,A,2023,1
778,Corporate Services,LANGUAGE BANK,MTS-050423,24-Apr-23,636,106,168229,Translation Service,TRANSLATIONS,A,2023,1
779,Corporate Services,LANGUAGE BANK,MTS-010423,24-Apr-23,630,105,168229,Translation Service,TRANSLATIONS,A,2023,1
780,Corporate Services,LANGUAGE BANK,MTS-130423,02-May-23,813,135.5,168229,Translation Service,TRANSLATIONS,A,2023,1
781,Corporate Services,LANGUAGE BANK,MTS-170423,08-May-23,744,124,168229,Translation Service,TRANSLATIONS,A,2023,1
782,Corporate Services,LANGUAGE BANK,MTS-190423,08-May-23,977.59,162.93,168229,Translation Service,TRANSLATIONS,A,2023,1
783,Corporate Services,LANGUAGE BANK,MTS120423,02-May-23,867,144.5,168229,Translation Service,TRANSLATIONS,A,2023,1
784,Community and Housing,REDACTED PERSONAL DATA,958450,25-Apr-23,786.76,0,168403,Learning Disabilities Placemnt,DIRECT PAYMENTS,R,2023,1
785,Community and Housing,Wimbledon Arts T/A Wimbledon BookFest,INV-3709#2,24-Apr-23,7500,0,168472,LIB- National Portfolio Org,200000              Financial Services,A,2023,1
786,Community and Housing,Wimbledon Arts T/A Wimbledon BookFest,INV-3706#1,24-Apr-23,10000,0,168472,LIB- National Portfolio Org,200000              Financial Services,A,2023,1
787,Community and Housing,Wimbledon Arts T/A Wimbledon BookFest,INV3710#3,24-Apr-23,5000,0,168472,LIB- National Portfolio Org,200000              Financial Services,A,2023,1
788,"Children, Schools and Family",WILLOWS PRE SCHOOL,P1 23 UPFRONTPAY,04-Apr-23,19880.64,0,168752,EARLY YEARS NURSERY GRANTS,170000              Education,A,2023,1
789,Capital,HOME CONNECTIONS LETTINGS LTD,INV-1424,24-Apr-23,13800,2300,168983,Business Systems,270000              Information Communication Technology,A,2023,1
790,Community and Housing,HOUSING21,INV696861-675161,18-May-23,646.35,0,169230,Older People Placements - East,321000              Social Community Care Supplies & Services - Adult,A,2023,1
791,Community and Housing,HOUSING21,INV696861-945725,18-May-23,700.56,0,169230,Older People Placements - East,321000              Social Community Care Supplies & Services - Adult,A,2023,1
792,Community and Housing,HOUSING21,INV696861-82473,18-May-23,2485.32,0,169230,Older People Placements - East,321000              Social Community Care Supplies & Services - Adult,A,2023,1
793,Community and Housing,HOUSING21,INV696861-583114,18-May-23,4203.36,0,169230,Older People Placements - East,321000              Social Community Care Supplies & Services - Adult,A,2023,1
794,Community and Housing,HOUSING21,INV696861-512370,18-May-23,583.8,0,169230,Older People Placements - East,321000              Social Community Care Supplies & Services - Adult,A,2023,1
795,Community and Housing,HOUSING21,INV696861-934625,18-May-23,817.32,0,169230,Older People Placements - East,321000              Social Community Care Supplies & Services - Adult,A,2023,1
796,Community and Housing,HOUSING21,INV696861-532662,18-May-23,1225.98,0,169230,Older People Placements - East,321000              Social Community Care Supplies & Services - Adult,A,2023,1
797,Community and Housing,HOUSING21,INV696861-974418,18-May-23,808.98,0,169230,Older People Placements - East,321000              Social Community Care Supplies & Services - Adult,A,2023,1
798,Community and Housing,HOUSING21,INV696861-507687,18-May-23,1801.44,0,169230,Phys/Sens Placements - East,321000              Social Community Care Supplies & Services - Adult,A,2023,1
799,Community and Housing,HOUSING21,INV696861-534037,18-May-23,1150.92,0,169230,Older People Placements - East,321000              Social Community Care Supplies & Services - Adult,A,2023,1
800,Community and Housing,FITZROY SUPPORT,955410,12-Apr-23,6414.52,0,169400,Learning Disabilities Placemnt,321017              Nursing & Residential Care Homes,A,2023,1
801,"Children, Schools and Family",JULIUS RUTHERFOORD AND CO LTD,INVS149023,21-Apr-23,1298.1,216.35,170092,Newminster CC Building Mgt,130000              Cleaning & Janitorial,A,2023,1
802,"Children, Schools and Family",JULIUS RUTHERFOORD AND CO LTD,INVS148986,21-Apr-23,861.12,143.52,170092,Ivy Garden CC Building,130000              Cleaning & Janitorial,A,2023,1
803,"Children, Schools and Family",JULIUS RUTHERFOORD AND CO LTD,INVS148871,21-Apr-23,861.12,143.52,170092,Lower Morden CC Building Mgt,130000              Cleaning & Janitorial,A,2023,1
804,"Children, Schools and Family",JULIUS RUTHERFOORD AND CO LTD,INVS148819,21-Apr-23,861.12,143.52,170092,Newminster CC Building Mgt,130000              Cleaning & Janitorial,A,2023,1
805,"Children, Schools and Family",JULIUS RUTHERFOORD AND CO LTD,INVS149113,21-Apr-23,861.12,143.52,170092,Avenue CC Building Management,130000              Cleaning & Janitorial,A,2023,1
806,"Children, Schools and Family",JULIUS RUTHERFOORD AND CO LTD,INVS148848,21-Apr-23,1228.1,204.68,170092,Bond Road Building,130000              Cleaning & Janitorial,A,2023,1
807,"Children, Schools and Family",JULIUS RUTHERFOORD AND CO LTD,INVS149073,21-Apr-23,2084.02,347.34,170092, PFI Unitary Charges,130000              Cleaning & Janitorial,A,2023,1
808,"Children, Schools and Family",JULIUS RUTHERFOORD AND CO LTD,INVS149072,21-Apr-23,27034.58,4505.77,170092, PFI Unitary Charges,130000              Cleaning & Janitorial,A,2023,1
809,"Children, Schools and Family",JULIUS RUTHERFOORD AND CO LTD,INVS149071,21-Apr-23,2384.99,397.5,170092, PFI Unitary Charges,130000              Cleaning & Janitorial,A,2023,1
810,"Children, Schools and Family",JULIUS RUTHERFOORD AND CO LTD,INVS149067,21-Apr-23,24164.74,4027.45,170092, PFI Unitary Charges,130000              Cleaning & Janitorial,A,2023,1
811,"Children, Schools and Family",JULIUS RUTHERFOORD AND CO LTD,INVS149068,21-Apr-23,1011.64,168.61,170092, PFI Unitary Charges,130000              Cleaning & Janitorial,A,2023,1
812,"Children, Schools and Family",JULIUS RUTHERFOORD AND CO LTD,INVS149070,21-Apr-23,23187.59,3864.61,170092, PFI Unitary Charges,130000              Cleaning & Janitorial,A,2023,1
813,Corporate Services,REDACTED PERSONAL DATA,INV/YJ5,18-Apr-23,1800,300,170268,SLLP - Disbursements,280000              Legal Services                                                                            Confirmed,R,2023,1
814,Corporate Services,REDACTED PERSONAL DATA,INV/YJ4,27-Apr-23,6480,1080,170268,SLLP - Disbursements,280000              Legal Services                                                                            Confirmed,R,2023,1
815,Community and Housing,INDEPENDENCE HOMES LTD,955677,12-Apr-23,7935.88,0,170527,Learning Disabilities Placemnt,321017              Nursing & Residential Care Homes,A,2023,1
816,Community and Housing,INDEPENDENCE HOMES LTD,CED00130,28-Apr-23,5662.72,0,170527,Learning Disabilities Placemnt,321017              Nursing & Residential Care Homes,A,2023,1
817,"Children, Schools and Family",GREATER LONDON FOSTERING LTD,INV-0364,14-Apr-23,3516.95,0,170596,Placements Under 18,321100              Social Community Care Supplies & Services - Children,A,2023,1
818,"Children, Schools and Family",GREATER LONDON FOSTERING LTD,INV-0365,14-Apr-23,3697.68,0,170596,Placements Under 18,321100              Social Community Care Supplies & Services - Children,A,2023,1
819,Community and Housing,REDACTED PERSONAL DATA,958653,25-Apr-23,1427.4,0,170878,Learning Disabilities Placemnt,DIRECT PAYMENTS,R,2023,1
820,"Children, Schools and Family",LIVABILITY,163759,12-May-23,19664.67,0,170900,Non-Maintained Post 16 SEN,170000              Education,A,2023,1
821,Community and Housing,REDACTED PERSONAL DATA,958493,25-Apr-23,1304.64,0,171056,Phys/Sens Placements - East,DIRECT PAYMENTS,R,2023,1
822,Community and Housing,ST GEORGES RES. CARE HOME,955724,12-Apr-23,4871.4,0,171491,Learning Disabilities Placemnt,321017              Nursing & Residential Care Homes,A,2023,1
823,Community and Housing,ST GEORGES RES. CARE HOME,955747,12-Apr-23,4024.2,0,171491,Learning Disabilities Placemnt,321017              Nursing & Residential Care Homes,A,2023,1
824,Community and Housing,REDACTED PERSONAL DATA,958602,25-Apr-23,588.08,0,172070,Learning Disabilities Placemnt,DIRECT PAYMENTS,R,2023,1
825,Community and Housing,EALING COUNCIL,955371,12-Apr-23,2985.92,0,172129,Mental Health Placements,OLA,A,2023,1
826,Community and Housing,CARRICKS BROOK,955387,12-Apr-23,6536.16,0,172297,Learning Disabilities Placemnt,321017              Nursing & Residential Care Homes,A,2023,1
827,Community and Housing,BROADHAM CARE LTD,955434,12-Apr-23,7386.96,0,172298,Learning Disabilities Placemnt,321017              Nursing & Residential Care Homes,A,2023,1
828,Community and Housing,BROADHAM CARE LTD,955708,12-Apr-23,7638.12,0,172298,Learning Disabilities Placemnt,321017              Nursing & Residential Care Homes,A,2023,1
829,Community and Housing,REDACTED PERSONAL DATA,958405,25-Apr-23,923.76,0,172912,Learning Disabilities Placemnt,DIRECT PAYMENTS,R,2023,1
830,Community and Housing,REDACTED PERSONAL DATA,958542,25-Apr-23,890.96,0,172914,Learning Disabilities Placemnt,DIRECT PAYMENTS,R,2023,1
831,Community and Housing,REDACTED PERSONAL DATA,958621,25-Apr-23,731.88,0,172936,Phys/Sens Placements - East,DIRECT PAYMENTS,R,2023,1
832,Community and Housing,HAVERING COURT NURSING HOME,955352,12-Apr-23,4954.12,0,173297,Older People Placements - East,321017              Nursing & Residential Care Homes,A,2023,1
833,Community and Housing,REDACTED PERSONAL DATA,958620,25-Apr-23,795.52,0,173308,Phys/Sens Placements - East,DIRECT PAYMENTS,R,2023,1
834,"Children, Schools and Family",REDACTED PERSONAL DATA,956325,14-Apr-23,5126.24,0,173793,Child Disabilities - Placement,CSF-DIRECT PAYMENTS,R,2023,1
835,"Children, Schools and Family",REDACTED PERSONAL DATA,960037,24-Apr-23,5531.72,0,173793,Child Disabilities - Placement,CSF-DIRECT PAYMENTS,R,2023,1
836,Community and Housing,HARBOUR CARE (UK) LTD,955653,12-Apr-23,6448.68,0,173947,Learning Disabilities Placemnt,321017              Nursing & Residential Care Homes,A,2023,1
837,Corporate Services,REDACTED PERSONAL DATA,2745/PP,04-May-23,900,150,174105,SLLP - Disbursements,280000              Legal Services,R,2023,1
838,Corporate Services,REDACTED PERSONAL DATA,2746/PP,04-May-23,1020,170,174105,SLLP - Disbursements,280000              Legal Services,R,2023,1
839,Community and Housing,TOWNSWEB ARCHIVING LTD,ARC1890-0027,21-Apr-23,1127.68,187.95,174127,Senior Management - Libraries,270000              Information Communication Technology,A,2023,1
840,"Children, Schools and Family",REDACTED PERSONAL DATA,959954,24-Apr-23,846,0,174212, Statementing-Transport,CSF-DIRECT PAYMENTS,R,2023,1
841,Community and Housing,ASHINGTON HOUSE,955405,12-Apr-23,4406.68,0,174259,Learning Disabilities Placemnt,321017              Nursing & Residential Care Homes,A,2023,1
842,Community and Housing,REDACTED PERSONAL DATA,958447,25-Apr-23,740.72,0,174449,Phys/Sens Placements - East,DIRECT PAYMENTS,R,2023,1
843,"Children, Schools and Family",REDACTED PERSONAL DATA,958243,20-Apr-23,552.99,0,174483,Placements Under 18,321100              Social Community Care Supplies & Services - Children,R,2023,1
844,Community and Housing,SUPREME HOMES,30826,14-Apr-23,3280,0,174758,Mental Health Placements,321017              Nursing & Residential Care Homes,A,2023,1
845,Community and Housing,SUPREME HOMES,30294,14-Apr-23,3280,0,174758,Mental Health Placements,321017              Nursing & Residential Care Homes,A,2023,1
846,Community and Housing,SUPREME HOMES,30356,20-Apr-23,3280,0,174758,Mental Health Placements,321017              Nursing & Residential Care Homes,A,2023,1
847,Community and Housing,ALPENBEST LIMITED,12032023-963516,04-Apr-23,545.57,0,174789,Older People Placements - East,321000              Social Community Care Supplies & Services - Adult,A,2023,1
848,Community and Housing,ALPENBEST LIMITED,12032023-994358,04-Apr-23,534.1,0,174789,Older People Placements - East,321000              Social Community Care Supplies & Services - Adult,A,2023,1
849,Community and Housing,ALPENBEST LIMITED,19032023-963516,04-Apr-23,545.57,0,174789,Older People Placements - East,321000              Social Community Care Supplies & Services - Adult,A,2023,1
850,Community and Housing,ALPENBEST LIMITED,19032023-994358,04-Apr-23,534.1,0,174789,Older People Placements - East,321000              Social Community Care Supplies & Services - Adult,A,2023,1
851,Community and Housing,ALPENBEST LIMITED,26032023-963516,04-Apr-23,545.57,0,174789,Older People Placements - East,321000              Social Community Care Supplies & Services - Adult,A,2023,1
852,Community and Housing,ALPENBEST LIMITED,26032023-994358,04-Apr-23,534.1,0,174789,Older People Placements - East,321000              Social Community Care Supplies & Services - Adult,A,2023,1
853,Community and Housing,ALPENBEST LIMITED,09042023-994358,28-Apr-23,561.54,0,174789,Older People Placements - East,321000              Social Community Care Supplies & Services - Adult,A,2023,1
854,Community and Housing,ALPENBEST LIMITED,09042023-963516,28-Apr-23,573.01,0,174789,Older People Placements - East,321000              Social Community Care Supplies & Services - Adult,A,2023,1
855,Community and Housing,ALPENBEST LIMITED,02042023-963516,28-Apr-23,557.04,0,174789,Older People Placements - East,321000              Social Community Care Supplies & Services - Adult,A,2023,1
856,Community and Housing,ALPENBEST LIMITED,02042023-994358,28-Apr-23,534.1,0,174789,Older People Placements - East,321000              Social Community Care Supplies & Services - Adult,A,2023,1
857,Community and Housing,SUTTON COURT CARE CENTRE,955345,12-Apr-23,2933.51,0,174833,Older People Placements - East,321017              Nursing & Residential Care Homes,A,2023,1
858,Community and Housing,SUTTON COURT CARE CENTRE,955447,12-Apr-23,2827.36,0,174833,Older People Placements - East,321017              Nursing & Residential Care Homes,A,2023,1
859,Community and Housing,SUTTON COURT CARE CENTRE,955542,12-Apr-23,3163.36,0,174833,Older People Placements - East,321017              Nursing & Residential Care Homes,A,2023,1
860,Community and Housing,SUTTON COURT CARE CENTRE,955571,12-Apr-23,4049.6,0,174833,Phys/Sens Placements - East,321017              Nursing & Residential Care Homes,A,2023,1
861,Community and Housing,SUTTON COURT CARE CENTRE,955729,12-Apr-23,4097.28,0,174833,Phys/Sens Placements - East,321017              Nursing & Residential Care Homes,A,2023,1
862,Community and Housing,REDACTED PERSONAL DATA,958380,25-Apr-23,636.4,0,174975,Learning Disabilities Placemnt,DIRECT PAYMENTS,R,2023,1
863,"Children, Schools and Family",REDACTED PERSONAL DATA,954095,04-Apr-23,1199.16,0,175042,Child Disabilities - Placement,CSF-DIRECT PAYMENTS,R,2023,1
864,"Children, Schools and Family",HILL-ROM LTD,3232012,22-May-23,1873.3,312.22,175266,Brightwell,310000              Healthcare,A,2023,1
865,"Children, Schools and Family",GLOBAL MEDIATION LTD,INV-94473,24-Apr-23,2640,440,175270,Non-Delegated Statements,260000              Human Resources                                                                           Confirmed,A,2023,1
866,Corporate Services,REDACTED PERSONAL DATA,1163,02-May-23,10500,1750,175409,SLLP - Disbursements,280000              Legal Services                                                                            Confirmed,R,2023,1
867,Community and Housing,KISIMUL SCHOOL,955378,12-Apr-23,12524.72,0,175545,Learning Disabilities Placemnt,321017              Nursing & Residential Care Homes,A,2023,1
868,Community and Housing,KISIMUL SCHOOL,955614,12-Apr-23,16304,0,175545,Learning Disabilities Placemnt,321017              Nursing & Residential Care Homes,A,2023,1
869,Community and Housing,REDACTED PERSONAL DATA,958496,25-Apr-23,1781.92,0,175782,Phys/Sens Placements - East,DIRECT PAYMENTS,R,2023,1
870,Community and Housing,REDACTED PERSONAL DATA,958562,25-Apr-23,1332.44,0,175960,Learning Disabilities Placemnt,DIRECT PAYMENTS,R,2023,1
871,Unassigned,A.J.OAKES AND PARTNERS,2023/059,15-May-23,48000,8000,176052,Corporate Services,"390000              Works - Construction, Repair & Maintenance",A,2023,1
872,Unassigned,A.J.OAKES AND PARTNERS,2023/058,15-May-23,36000,6000,176052,Corporate Services,"390000              Works - Construction, Repair & Maintenance",A,2023,1
873,Unassigned,A.J.OAKES AND PARTNERS,2023/060,19-May-23,30000,5000,176052,Corporate Services,"390000              Works - Construction, Repair & Maintenance",A,2023,1
874,Community and Housing,Care for Veterans,955636,12-Apr-23,4294.28,0,176384,Phys/Sens Placements - East,321017              Nursing & Residential Care Homes,A,2023,1
875,"Children, Schools and Family",LONDON BOROUGH OF WANDSWORTH,2101136697,14-Apr-23,2122.87,0,176557,Placements Under 18,OLA,A,2023,1
876,Community and Housing,REDACTED PERSONAL DATA,958548,25-Apr-23,5222.8,0,176783,Phys/Sens Placements - East,DIRECT PAYMENTS,R,2023,1
877,Corporate Services,SPRINGFIELD ADVICE AND LAW CENTRE,CIVIC PRIDE FUND,25-Apr-23,31716.67,0,176852,VOLUNTARY SECTOR COORDINATION,200000              Financial Services,A,2023,1
878,Community and Housing,REDACTED PERSONAL DATA,958654,25-Apr-23,1430.08,0,176868,Phys/Sens Placements - East,DIRECT PAYMENTS,R,2023,1
879,Community and Housing,SPRING LAKE CARE HOME LTD,955510,12-Apr-23,11418,0,177067,Learning Disabilities Placemnt,321017              Nursing & Residential Care Homes,A,2023,1
880,Community and Housing,SPRING LAKE CARE HOME LTD,955722,12-Apr-23,6468,0,177067,Learning Disabilities Placemnt,321017              Nursing & Residential Care Homes,A,2023,1
881,Community and Housing,REDACTED PERSONAL DATA,958646,25-Apr-23,652.32,0,177115,Older People Placements - East,DIRECT PAYMENTS,R,2023,1
882,"Children, Schools and Family",HA TUTORS LTD,INV-13409,14-Apr-23,2766.6,461.1,177219,Non-Delegated Statements,170000              Education,A,2023,1
883,Unassigned,UK POWER NETWORKS (OPERATIONS),92159766,28-Apr-23,1872,312,177333,Environment and Regeneration,180000              Environmental Services,A,2023,1
884,Unassigned,UK POWER NETWORKS (OPERATIONS),92159767,28-Apr-23,1872,312,177333,Environment and Regeneration,180000              Environmental Services,A,2023,1
885,Corporate Services,EXPERT IN MIND,39841,21-Apr-23,1123.2,187.2,177342,SLLP - Disbursements,280000              Legal Services                                                                            Confirmed,A,2023,1
886,Community and Housing,HYTYME B AND B,26756,05-Apr-23,3298.8,549.8,177425,Housing Strategy,321000              Social Community Care Supplies & Services - Adult,A,2023,1
887,Community and Housing,HYTYME B AND B,26701,21-Apr-23,3110.4,518.4,177425,Housing Strategy,321000              Social Community Care Supplies & Services - Adult,A,2023,1
888,Community and Housing,HYTYME B AND B,26053,28-Apr-23,2362.5,262.5,177425,Housing Strategy,321000              Social Community Care Supplies & Services - Adult,A,2023,1
889,"Children, Schools and Family",HYTYME B AND B,26847,20-Apr-23,1432.2,238.7,177425,Family Assessmt & Intervention,321000              Social Community Care Supplies & Services - Adult,A,2023,1
890,"Children, Schools and Family",HYTYME B AND B,26852,20-Apr-23,1432.2,238.7,177425,Family Assessmt & Intervention,321000              Social Community Care Supplies & Services - Adult,A,2023,1
891,Community and Housing,REDACTED PERSONAL DATA,958443,25-Apr-23,710.2,0,177453,Phys/Sens Placements - East,DIRECT PAYMENTS,R,2023,1
892,Community and Housing,REDACTED PERSONAL DATA,958433,25-Apr-23,724.72,0,177476,Learning Disabilities Placemnt,DIRECT PAYMENTS,R,2023,1
893,Community and Housing,REDACTED PERSONAL DATA,958382,25-Apr-23,1197.28,0,177502,Phys/Sens Placements - East,DIRECT PAYMENTS,R,2023,1
894,Environment and Regeneration,SUSTAINABLE MERTON,1388,26-Apr-23,1000,0,177594,Environmental Health-Pollution,190000              Facilities & Management Services,A,2023,1
895,Corporate Services,HPI LIMITED,6160-001718628,19-Apr-23,698.56,116.43,177649,Local Taxation Bailiffs,200000              Financial Services,A,2023,1
896,Community and Housing,REDACTED PERSONAL DATA,958452,25-Apr-23,572.76,0,177739,Phys/Sens Placements - East,DIRECT PAYMENTS,R,2023,1
897,Community and Housing,GREENHAM,01/463644,17-May-23,714.79,119.13,177744,Libraries Service-Civic Centre,130000              Cleaning & Janitorial,A,2023,1
898,Community and Housing,REDACTED PERSONAL DATA,958464,25-Apr-23,668.24,0,177785,Phys/Sens Placements - East,DIRECT PAYMENTS,R,2023,1
899,Unassigned,EDENRED (UK GROUP) LTD,CV SEV CHG MAY23,17-Apr-23,800.4,0,177846,Corporate Accountancy,321100              Social Community Care Supplies & Services - Children,A,2023,1
900,Corporate Services,REDACTED PERSONAL DATA,1314/SHA,21-Apr-23,1050,175,177872,SLLP - Disbursements,280000              Legal Services                                                                            Confirmed,R,2023,1
901,Corporate Services,REDACTED PERSONAL DATA,1306/SHA,21-Apr-23,1950,325,177872,SLLP - Disbursements,280000              Legal Services                                                                            Confirmed,R,2023,1
902,Community and Housing,REDACTED PERSONAL DATA,958376,25-Apr-23,731.4,0,177967,Learning Disabilities Placemnt,DIRECT PAYMENTS,R,2023,1
903,Community and Housing,REDACTED PERSONAL DATA,958505,25-Apr-23,890.96,0,177999,Learning Disabilities Placemnt,DIRECT PAYMENTS,R,2023,1
904,Community and Housing,RELIABLE PERSONNEL LTD,14770,05-Apr-23,671.74,0,178167,Older People Placements - East,321000              Social Community Care Supplies & Services - Adult,A,2023,1
905,Community and Housing,REDACTED PERSONAL DATA,954742,06-Apr-23,18212.71,0,178412,Learning Disabilities Placemnt,DIRECT PAYMENTS,R,2023,1
906,Community and Housing,REDACTED PERSONAL DATA,958437,25-Apr-23,1008.44,0,178412,Learning Disabilities Placemnt,DIRECT PAYMENTS,R,2023,1
907,Community and Housing,REDACTED PERSONAL DATA,958628,25-Apr-23,4454.8,0,178412,Learning Disabilities Placemnt,DIRECT PAYMENTS,R,2023,1
908,Community and Housing,BRAMBLEDOWN CARE HOME,955521,12-Apr-23,7448.8,0,178465,Phys/Sens Placements - East,321017              Nursing & Residential Care Homes,A,2023,1
909,"Children, Schools and Family",REDACTED PERSONAL DATA,958309,20-Apr-23,511.03,0,178503,Placements Over 18,200000              Financial Services,R,2023,1
910,Corporate Services,THOMSON REUTERS,848048264,24-Apr-23,949,0,178554,Legal Shared Service,260000              Human Resources,A,2023,1
911,Corporate Services,THOMSON REUTERS,6801469321,24-Apr-23,63436.8,0,178554,Legal Shared Service,260000              Human Resources,A,2023,1
912,Corporate Services,THOMSON REUTERS,6154101270,15-May-23,1272,212,178554,SLLP - Disbursements,260000              Human Resources,A,2023,1
913,Community and Housing,LOVE WALK RESIDENTIAL HOME,955519,12-Apr-23,3381.4,0,178620,Phys/Sens Placements - East,321017              Nursing & Residential Care Homes,A,2023,1
914,Community and Housing,KEW HOUSE,955530,12-Apr-23,3289.24,0,178621,Older People Placements - East,321017              Nursing & Residential Care Homes,A,2023,1
915,Community and Housing,KEW HOUSE,955611,12-Apr-23,5800,0,178621,Older People Placements - East,321017              Nursing & Residential Care Homes,A,2023,1
916,Community and Housing,KEW HOUSE,955760,12-Apr-23,3220.32,0,178621,Older People Placements - East,321017              Nursing & Residential Care Homes,A,2023,1
917,Community and Housing,KEW HOUSE,KEWCOLMAR2023,24-Apr-23,23561.28,0,178621,Com Care Placement Contingency,321017              Nursing & Residential Care Homes,A,2023,1
918,Community and Housing,REDACTED PERSONAL DATA,958639,25-Apr-23,4710.56,0,178802,Learning Disabilities Placemnt,DIRECT PAYMENTS,R,2023,1
919,Community and Housing,REDACTED PERSONAL DATA,958578,25-Apr-23,1812.28,0,178874,Learning Disabilities Placemnt,DIRECT PAYMENTS,R,2023,1
920,Corporate Services,PENNA PLC,669485,08-May-23,17544,2924,179007,Press and Public Relations,190000              Facilities & Management Services,A,2023,1
921,Community and Housing,REDACTED PERSONAL DATA,958740,25-Apr-23,1261.84,0,179049,Learning Disabilities Placemnt,DIRECT PAYMENTS,R,2023,1
922,"Children, Schools and Family",WILLOWS PRE-SCHOOL,P1 23 UPFRONTPAY,04-Apr-23,22174.56,0,179134,EARLY YEARS NURSERY GRANTS,170000              Education,A,2023,1
923,Community and Housing,REDACTED PERSONAL DATA,958455,25-Apr-23,825.04,0,179299,Older People Placements - East,DIRECT PAYMENTS,R,2023,1
924,Community and Housing,REDACTED PERSONAL DATA,958596,25-Apr-23,1739.6,0,179332,Phys/Sens Placements - East,DIRECT PAYMENTS,R,2023,1
925,Community and Housing,REDACTED PERSONAL DATA,958649,25-Apr-23,4276.8,0,179383,Learning Disabilities Placemnt,DIRECT PAYMENTS,R,2023,1
926,"Children, Schools and Family",REDACTED PERSONAL DATA,4-YE,14-Apr-23,1394.85,0,179598,Placements Over 18,321000              Social Community Care Supplies & Services - Adult,R,2023,1
927,"Children, Schools and Family",PARENTPAY LTD,2064837,24-Apr-23,13860,2310,179685,School Meals,110000              Catering,A,2023,1
928,Community and Housing,ELYSIUM CARE PARTNERSHIPS LTD,955561,12-Apr-23,9049.16,0,179734,Learning Disabilities Placemnt,321017              Nursing & Residential Care Homes,A,2023,1
929,Community and Housing,ELYSIUM CARE PARTNERSHIPS LTD,955577,12-Apr-23,3462.2,0,179734,Learning Disabilities Placemnt,321017              Nursing & Residential Care Homes,A,2023,1
930,Community and Housing,ELYSIUM CARE PARTNERSHIPS LTD,955698,12-Apr-23,9821,0,179734,Learning Disabilities Placemnt,321017              Nursing & Residential Care Homes,A,2023,1
931,Community and Housing,WESTHOPE LTD,955526,12-Apr-23,6350.78,1058.46,179748,Learning Disabilities Placemnt,321017              Nursing & Residential Care Homes,A,2023,1
932,Community and Housing,SUNNINGDALE HOUSE CARE HOME,955690,12-Apr-23,2575,0,179794,Learning Disabilities Placemnt,321017              Nursing & Residential Care Homes,A,2023,1
933,Community and Housing,SUNLIGHT HOUSE,955466,12-Apr-23,7667.6,0,179813,Learning Disabilities Placemnt,321017              Nursing & Residential Care Homes,A,2023,1
934,Community and Housing,SUNLIGHT HOUSE,955584,12-Apr-23,5140,0,179813,Learning Disabilities Placemnt,321017              Nursing & Residential Care Homes,A,2023,1
935,Community and Housing,BHAKTI SHYAMA CARE CENTRE,955758,12-Apr-23,2985.6,0,179993,Older People Placements - East,321017              Nursing & Residential Care Homes,A,2023,1
936,Community and Housing,BHAKTI SHYAMA CARE CENTRE,957903,19-Apr-23,1700.21,0,179993,Older People Placements - East,321017              Nursing & Residential Care Homes,A,2023,1
937,Environment and Regeneration,PUBLIC ANALYST SCIENTIFIC SER.,IN-22-WP-002307,25-Apr-23,1566,261,180031, EH Commercial Food - RSP,150000              Consultancy,A,2023,1
938,Environment and Regeneration,PUBLIC ANALYST SCIENTIFIC SER.,IN-22-WP-002308,25-Apr-23,990,165,180031, EH Commercial Food - RSP,150000              Consultancy,A,2023,1
939,Environment and Regeneration,PUBLIC ANALYST SCIENTIFIC SER.,IN-22-WP-002310,26-Apr-23,1320,220,180031, EH Commercial Food - RSP,150000              Consultancy,A,2023,1
940,Environment and Regeneration,PUBLIC ANALYST SCIENTIFIC SER.,IN-22-WP-002392,26-Apr-23,1824,304,180031, EH Commercial Food - RSP,150000              Consultancy,A,2023,1
941,"Children, Schools and Family",REAMCARE LTD,LHRPAM042301,14-Apr-23,20105.67,0,180045,Placements Under 18,321100              Social Community Care Supplies & Services - Children Residential,A,2023,1
942,"Children, Schools and Family",REAMCARE LTD,LHS003066,25-Apr-23,4620,0,180045,Non-Delegated Statements,321100              Social Community Care Supplies & Services - Children Residential,A,2023,1
943,"Children, Schools and Family",REAMCARE LTD,LHS003067,25-Apr-23,880,0,180045,Non-Delegated Statements,321100              Social Community Care Supplies & Services - Children Residential,A,2023,1
944,"Children, Schools and Family",ST CATHERINE'S SCHOOL,151,25-Apr-23,25199.13,0,180147,SEN Residential (DSG),170000              Education,A,2023,1
945,"Children, Schools and Family",ST CATHERINE'S SCHOOL,167,25-Apr-23,25199.13,0,180147,SEN Residential (DSG),170000              Education,A,2023,1
946,Community and Housing,REDACTED PERSONAL DATA,958723,25-Apr-23,1104.76,0,180174,Older People Placements - East,DIRECT PAYMENTS,R,2023,1
947,Community and Housing,SUNRISE DAY CARE,DP4873,04-Apr-23,1961.12,0,180196,Older People Placements - East,321000              Social Community Care Supplies & Services - Adult,A,2023,1
948,Community and Housing,SUNRISE DAY CARE,4470,04-Apr-23,510.24,0,180196,Older People Placements - East,321000              Social Community Care Supplies & Services - Adult,A,2023,1
949,Community and Housing,SUNRISE DAY CARE,4482,04-Apr-23,850.4,0,180196,Older People Placements - East,321000              Social Community Care Supplies & Services - Adult,A,2023,1
950,Community and Housing,SUNRISE DAY CARE,4483,04-Apr-23,510.24,0,180196,Older People Placements - East,321000              Social Community Care Supplies & Services - Adult,A,2023,1
951,Community and Housing,SUNRISE DAY CARE,4484,04-Apr-23,510.24,0,180196,Older People Placements - East,321000              Social Community Care Supplies & Services - Adult,A,2023,1
952,Community and Housing,SUNRISE DAY CARE,4474,04-Apr-23,680.32,0,180196,Learning Disabilities Placemnt,321000              Social Community Care Supplies & Services - Adult,A,2023,1
953,Community and Housing,REDACTED PERSONAL DATA,958502,25-Apr-23,509.12,0,180242,Phys/Sens Placements - East,DIRECT PAYMENTS,R,2023,1
954,Community and Housing,REDACTED PERSONAL DATA,958379,25-Apr-23,1177.36,0,180282,Phys/Sens Placements - East,DIRECT PAYMENTS,R,2023,1
955,Community and Housing,REDACTED PERSONAL DATA,958384,25-Apr-23,2839.28,0,180285,Older People Placements - East,DIRECT PAYMENTS,R,2023,1
956,Community and Housing,SEVACARE,70592-514140,26-Apr-23,1251,0,180307,Older People Placements - East,321000              Social Community Care Supplies & Services - Adult,A,2023,1
957,Community and Housing,SEVACARE,70592-752403,26-Apr-23,934.08,0,180307,Older People Placements - East,321000              Social Community Care Supplies & Services - Adult,A,2023,1
958,Community and Housing,SEVACARE,70592-791266,26-Apr-23,583.8,0,180307,Older People Placements - East,321000              Social Community Care Supplies & Services - Adult,A,2023,1
959,Community and Housing,SEVACARE,70592-869265,26-Apr-23,717.24,0,180307,Older People Placements - East,321000              Social Community Care Supplies & Services - Adult,A,2023,1
960,Community and Housing,SEVACARE,70592-14419,26-Apr-23,884.04,0,180307,Older People Placements - East,321000              Social Community Care Supplies & Services - Adult,A,2023,1
961,Community and Housing,SEVACARE,70592-994084,26-Apr-23,600.48,0,180307,Older People Placements - East,321000              Social Community Care Supplies & Services - Adult,A,2023,1
962,Community and Housing,SEVACARE,70592-958939,26-Apr-23,817.32,0,180307,Older People Placements - East,321000              Social Community Care Supplies & Services - Adult,A,2023,1
963,Community and Housing,SEVACARE,70592-982561,26-Apr-23,900.72,0,180307,Older People Placements - East,321000              Social Community Care Supplies & Services - Adult,A,2023,1
964,Community and Housing,SEVACARE,70592-79481,26-Apr-23,1438.48,0,180307,Older People Placements - East,321000              Social Community Care Supplies & Services - Adult,A,2023,1
965,Community and Housing,SEVACARE,70592-98888,26-Apr-23,1000.8,0,180307,Older People Placements - East,321000              Social Community Care Supplies & Services - Adult,A,2023,1
966,Community and Housing,SEVACARE,70592-506355,26-Apr-23,867.36,0,180307,Phys/Sens Placements - East,321000              Social Community Care Supplies & Services - Adult,A,2023,1
967,Community and Housing,SEVACARE,70592-569458,26-Apr-23,1367.76,0,180307,Phys/Sens Placements - East,321000              Social Community Care Supplies & Services - Adult,A,2023,1
968,Community and Housing,SEVACARE,70592-52108,26-Apr-23,600.48,0,180307,Learning Disabilities Placemnt,321000              Social Community Care Supplies & Services - Adult,A,2023,1
969,Community and Housing,SEVACARE,70592-872605,26-Apr-23,617.16,0,180307,Older People Placements - East,321000              Social Community Care Supplies & Services - Adult,A,2023,1
970,Community and Housing,SEVACARE,70592-867847,26-Apr-23,1050.84,0,180307,Older People Placements - East,321000              Social Community Care Supplies & Services - Adult,A,2023,1
971,Community and Housing,SEVACARE,70592-565513,26-Apr-23,2852.28,0,180307,Phys/Sens Placements - East,321000              Social Community Care Supplies & Services - Adult,A,2023,1
972,Community and Housing,SEVACARE,70592-78739,26-Apr-23,667.2,0,180307,Learning Disabilities Placemnt,321000              Social Community Care Supplies & Services - Adult,A,2023,1
973,Community and Housing,SEVACARE,70592-74975,26-Apr-23,1718.04,0,180307,Older People Placements - East,321000              Social Community Care Supplies & Services - Adult,A,2023,1
974,Community and Housing,SEVACARE,70592-38267,26-Apr-23,1017.48,0,180307,Older People Placements - East,321000              Social Community Care Supplies & Services - Adult,A,2023,1
975,Community and Housing,SEVACARE,70592-68278,26-Apr-23,2835.6,0,180307,Learning Disabilities Placemnt,321000              Social Community Care Supplies & Services - Adult,A,2023,1
976,Community and Housing,SEVACARE,70592-72268,26-Apr-23,1301.04,0,180307,Learning Disabilities Placemnt,321000              Social Community Care Supplies & Services - Adult,A,2023,1
977,Community and Housing,SEVACARE,70592-654036,26-Apr-23,600.48,0,180307,Older People Placements - East,321000              Social Community Care Supplies & Services - Adult,A,2023,1
978,Community and Housing,SEVACARE,70592-871695,26-Apr-23,950.76,0,180307,Older People Placements - East,321000              Social Community Care Supplies & Services - Adult,A,2023,1
979,Community and Housing,SEVACARE,70592-503697,26-Apr-23,834,0,180307,Older People Placements - East,321000              Social Community Care Supplies & Services - Adult,A,2023,1
980,Community and Housing,SEVACARE,70592-533922,26-Apr-23,9340.8,0,180307,Older People Placements - East,321000              Social Community Care Supplies & Services - Adult,A,2023,1
981,Community and Housing,SEVACARE,70592-41998,26-Apr-23,521.25,0,180307,Phys/Sens Placements - East,321000              Social Community Care Supplies & Services - Adult,A,2023,1
982,Community and Housing,SEVACARE,16.04.23/8,27-Apr-23,1555.83,0,180307,Older People Placements - East,321000              Social Community Care Supplies & Services - Adult,A,2023,1
983,Community and Housing,SEVACARE,16.04.23/4,27-Apr-23,983.68,0,180307,Older People Placements - East,321000              Social Community Care Supplies & Services - Adult,A,2023,1
984,Community and Housing,SEVACARE,16.04.23/2,27-Apr-23,612.69,0,180307,Older People Placements - East,321000              Social Community Care Supplies & Services - Adult,A,2023,1
985,Corporate Services,NETWORK SOLUTIONS INC,LBM243,11-May-23,1347.3,224.55,180382,Chief Executive,270000              Information Communication Technology,A,2023,1
986,"Children, Schools and Family",RESTORE PLC,1350248,18-Apr-23,1120.55,186.76,180441,Head of CSC & Youth Inclusion,190000              Facilities & Management Services,A,2023,1
987,"Children, Schools and Family",RESTORE PLC,1351967,20-Apr-23,607.02,101.17,180441,Fostering Recruit/Assessment,190000              Facilities & Management Services,A,2023,1
988,Corporate Services,RESTORE PLC,1351969,18-Apr-23,1811.9,301.98,180441,Legal Shared Service,190000              Facilities & Management Services,A,2023,1
989,Community and Housing,REDACTED PERSONAL DATA,958689,25-Apr-23,1320.52,0,180447,Older People Placements - East,DIRECT PAYMENTS,R,2023,1
990,Community and Housing,REDACTED PERSONAL DATA,958525,25-Apr-23,500.96,0,180478,Phys/Sens Placements - East,DIRECT PAYMENTS,R,2023,1
991,"Children, Schools and Family",REDACTED PERSONAL DATA,954544,05-Apr-23,514.75,0,180579,UASC LAC Under 18,321100              Social Community Care Supplies & Services - Children,R,2023,1
992,"Children, Schools and Family",REDACTED PERSONAL DATA,956452,14-Apr-23,514.75,0,180579,UASC LAC Under 18,321100              Social Community Care Supplies & Services - Children,R,2023,1
993,"Children, Schools and Family",REDACTED PERSONAL DATA,956478,14-Apr-23,1250.11,0,180579,Placements Under 18,321100              Social Community Care Supplies & Services - Children,R,2023,1
994,"Children, Schools and Family",REDACTED PERSONAL DATA,958253,20-Apr-23,612.43,0,180579,UASC LAC Under 18,321100              Social Community Care Supplies & Services - Children,R,2023,1
995,"Children, Schools and Family",REDACTED PERSONAL DATA,958279,20-Apr-23,595.6,0,180579,Placements Under 18,321100              Social Community Care Supplies & Services - Children,R,2023,1
996,"Children, Schools and Family",REDACTED PERSONAL DATA,961530,27-Apr-23,538.33,0,180579,UASC LAC Under 18,321100              Social Community Care Supplies & Services - Children,R,2023,1
997,"Children, Schools and Family",REDACTED PERSONAL DATA,961555,27-Apr-23,538.33,0,180579,Placements Under 18,321100              Social Community Care Supplies & Services - Children,R,2023,1
998,"Children, Schools and Family",NCER CIC,61835795,21-Apr-23,9350.51,1558.42,180585, Central Administration,270000              Information Communication Technology,A,2023,1
999,Environment and Regeneration,HMCTS,ECBATCHAPR2023,11-Apr-23,50000,0,180649,Operational Running Costs,350000              Street & Traffic Management,A,2023,1
1000,Community and Housing,REDACTED PERSONAL DATA,958378,25-Apr-23,763.68,0,180804,Learning Disabilities Placemnt,DIRECT PAYMENTS,R,2023,1
1001,"Children, Schools and Family",FIVE RIVERS CHILD CARE,102439,24-Apr-23,6421.43,0,180823,Placements Under 18,360000              Passenger Transport                                                                       Confirmed,A,2023,1
1002,Community and Housing,REDACTED PERSONAL DATA,958472,25-Apr-23,1913.16,0,180866,Phys/Sens Placements - East,DIRECT PAYMENTS,R,2023,1
1003,Community and Housing,REDACTED PERSONAL DATA,960756,25-Apr-23,1806.44,0,180889,Older People Placements - East,DIRECT PAYMENTS,R,2023,1
1004,Community and Housing,SENAD ECCLESBOURNE LODGE,955368,12-Apr-23,9810.88,0,180904,Learning Disabilities Placemnt,321017              Nursing & Residential Care Homes,A,2023,1
1005,Corporate Services,SPECIALIST COMPUTER CENT. PLC,OP/N354969,24-Apr-23,12812.16,2135.36,180940,IT Service Delivery,270000              Information Communication Technology,A,2023,1
1006,Community and Housing,REDACTED PERSONAL DATA,958459,25-Apr-23,890.96,0,180999,Older People Placements - East,DIRECT PAYMENTS,R,2023,1
1007,Corporate Services,BLAKEDOWN LANDSCAPES (SE) LTD,L23117,14-Apr-23,7257.6,1209.6,181127,Reg of B. Deaths & Ms,240000              Horticultural,C,2023,1
1008,Community and Housing,REDACTED PERSONAL DATA,958419,25-Apr-23,2396.48,0,181129,Older People Placements - East,DIRECT PAYMENTS,R,2023,1
1009,Community and Housing,Community Equipment Services,9100000717,18-Apr-23,9523.2,1587.2,181238,Pooled Equipment,410000              Social Community Care Supplies & Services,A,2023,1
1010,Community and Housing,Community Equipment Services,9100000728,28-Apr-23,509181.6,84863.6,181238,Pooled Equipment,410000              Social Community Care Supplies & Services,A,2023,1
1011,Corporate Services,REDACTED PERSONAL DATA,20230329FL,28-Apr-23,925.8,0,181290,SLLP - Disbursements,280000              Legal Services                                                                            Confirmed,R,2023,1
1012,Community and Housing,REDACTED PERSONAL DATA,958355,25-Apr-23,1400.08,0,181418,Older People Placements - East,DIRECT PAYMENTS,R,2023,1
1013,Community and Housing,MERTON CIL,ASC GRANT APR23,19-Apr-23,24708,0,181464,Grants to Voluntary Orgs,200000              Financial Services,A,2023,1
1014,"Children, Schools and Family",REDACTED PERSONAL DATA,05/2023DANIELLA,24-Apr-23,1115.88,0,181587,Placements Over 18,321000              Social Community Care Supplies & Services - Adult,R,2023,1
1015,"Children, Schools and Family",KIKI'S CHILDREN'S CLINIC,16000,02-May-23,595,0,181849,Non-Delegated Statements,310000              Healthcare                                                                                Confirmed,A,2023,1
1016,"Children, Schools and Family",KIKI'S CHILDREN'S CLINIC,16001,02-May-23,690,0,181849,Non-Delegated Statements,310000              Healthcare                                                                                Confirmed,A,2023,1
1017,Community and Housing,REDACTED PERSONAL DATA,958709,25-Apr-23,534.52,0,182083,Learning Disabilities Placemnt,DIRECT PAYMENTS,R,2023,1
1018,Environment and Regeneration,NOAH'S ARK ENVIRONMENTAL SERV.,MT032023,24-Apr-23,2292.6,382.1,182143,Dog Control,180000              Environmental Services,A,2023,1
1019,Corporate Services,SHARPE PRITCHARD SOLICITORS,100000817,24-Apr-23,6544.8,1090.8,182165,SLLP - Disbursements,280000              Legal Services                                                                            Confirmed,A,2023,1
1020,Corporate Services,SHARPE PRITCHARD SOLICITORS,133207,25-Apr-23,2031,338.5,182165,SLLP - Disbursements,280000              Legal Services                                                                            Confirmed,A,2023,1
1021,Corporate Services,REDACTED PERSONAL DATA,1727/JN,04-May-23,990,165,182247,SLLP - Disbursements,280000              Legal Services                                                                            Confirmed,R,2023,1
1022,Community and Housing,REDACTED PERSONAL DATA,958364,25-Apr-23,4454.8,0,182348,Older People Placements - East,DIRECT PAYMENTS,R,2023,1
1023,Corporate Services,BIRKIN CLEANING SERVICES LTD,29975,24-Apr-23,612.24,102.04,182414,Buildings Maintenance,130000              Cleaning & Janitorial,A,2023,1
1024,Corporate Services,BIRKIN CLEANING SERVICES LTD,29971,24-Apr-23,938.88,156.48,182414,Corporate Contracts - FM,130000              Cleaning & Janitorial,A,2023,1
1025,"Children, Schools and Family",REDACTED PERSONAL DATA,955165,11-Apr-23,811.4,0,182494,Child Disabilities - Placement,DIRECT PAYMENTS,R,2023,1
1026,"Children, Schools and Family",REDACTED PERSONAL DATA,959999,24-Apr-23,811.4,0,182494,Child Disabilities - Placement,DIRECT PAYMENTS,R,2023,1
1027,Corporate Services,H B EDITORIAL SERV (LOCAL GOV),4110,11-Apr-23,5994,999,182497,Legal Shared Service,260000              Human Resources,A,2023,1
1028,"Children, Schools and Family",REDACTED PERSONAL DATA,954522,05-Apr-23,534.75,0,182558,UASC LAC Under 18,321100              Social Community Care Supplies & Services - Children,R,2023,1
1029,"Children, Schools and Family",REDACTED PERSONAL DATA,958230,20-Apr-23,511.03,0,182558,UASC Care Leavers Over 18,321100              Social Community Care Supplies & Services - Children,R,2023,1
1030,"Children, Schools and Family",REDACTED PERSONAL DATA,958232,20-Apr-23,552.99,0,182558,UASC LAC Under 18,321100              Social Community Care Supplies & Services - Children,R,2023,1
1031,Community and Housing,REDACTED PERSONAL DATA,958527,25-Apr-23,1877.4,0,182584,Phys/Sens Placements - East,DIRECT PAYMENTS,R,2023,1
1032,"Children, Schools and Family",REDACTED PERSONAL DATA,954503,05-Apr-23,514.75,0,182648,UASC LAC Under 18,321100              Social Community Care Supplies & Services - Children,R,2023,1
1033,"Children, Schools and Family",REDACTED PERSONAL DATA,954559,05-Apr-23,514.75,0,182648,UASC LAC Under 18,321100              Social Community Care Supplies & Services - Children,R,2023,1
1034,"Children, Schools and Family",REDACTED PERSONAL DATA,956412,14-Apr-23,514.75,0,182648,UASC LAC Under 18,321100              Social Community Care Supplies & Services - Children,R,2023,1
1035,"Children, Schools and Family",REDACTED PERSONAL DATA,956467,14-Apr-23,514.75,0,182648,UASC LAC Under 18,321100              Social Community Care Supplies & Services - Children,R,2023,1
1036,"Children, Schools and Family",REDACTED PERSONAL DATA,958213,20-Apr-23,612.43,0,182648,UASC LAC Under 18,321100              Social Community Care Supplies & Services - Children,R,2023,1
1037,"Children, Schools and Family",REDACTED PERSONAL DATA,958242,20-Apr-23,596.49,0,182648,Placements Under 18,321100              Social Community Care Supplies & Services - Children,R,2023,1
1038,"Children, Schools and Family",REDACTED PERSONAL DATA,958268,20-Apr-23,612.43,0,182648,UASC LAC Under 18,321100              Social Community Care Supplies & Services - Children,R,2023,1
1039,"Children, Schools and Family",REDACTED PERSONAL DATA,961488,27-Apr-23,538.33,0,182648,UASC LAC Under 18,321100              Social Community Care Supplies & Services - Children,R,2023,1
1040,"Children, Schools and Family",REDACTED PERSONAL DATA,961544,27-Apr-23,538.33,0,182648,UASC LAC Under 18,321100              Social Community Care Supplies & Services - Children,R,2023,1
1041,Community and Housing,REDACTED PERSONAL DATA,958730,25-Apr-23,5223.56,0,182894,Learning Disabilities Placemnt,DIRECT PAYMENTS,R,2023,1
1042,Corporate Services,PELLINGS LLP,SI9034537,12-Apr-23,1200,200,182945,SLLP - Disbursements,280000              Legal Services                                                                            Confirmed,A,2023,1
1043,Community and Housing,REDACTED PERSONAL DATA,958475,25-Apr-23,4103.12,0,183167,Older People Placements - East,DIRECT PAYMENTS,R,2023,1
1044,Corporate Services,BOURNE MEDICOLEGAL LIMITED,1342SOR,24-Apr-23,3096,516,183184,SLLP - Disbursements,280000              Legal Services                                                                            Confirmed,A,2023,1
1045,Community and Housing,ST ANTONYS CARE HOME,955325,12-Apr-23,1000,0,183206,Older People Placements - East,321017              Nursing & Residential Care Homes,A,2023,1
1046,Community and Housing,ST ANTONYS CARE HOME,955428,12-Apr-23,3571.43,0,183206,Older People Placements - East,321017              Nursing & Residential Care Homes,A,2023,1
1047,Community and Housing,ST ANTONYS CARE HOME,955488,12-Apr-23,3840,0,183206,Older People Placements - East,321017              Nursing & Residential Care Homes,A,2023,1
1048,Community and Housing,ST ANTONYS CARE HOME,955513,12-Apr-23,3840,0,183206,Older People Placements - East,321017              Nursing & Residential Care Homes,A,2023,1
1049,Community and Housing,ST ANTONYS CARE HOME,955583,12-Apr-23,4000,0,183206,Older People Placements - East,321017              Nursing & Residential Care Homes,A,2023,1
1050,"Children, Schools and Family",REDACTED PERSONAL DATA,962181,28-Apr-23,1145.52,0,183241, Childrens Short Breaks,CSF-DIRECT PAYMENTS,R,2023,1
1051,Unassigned,HARRIS ACADEMY MORDEN,SCHOOLS 2324/1 A,05-Apr-23,37968.13,0,183257,Schools,170000              Education,A,2023,1
1052,"Children, Schools and Family",CRESSEY OASIS EDUCATION LTD,SI-00000000120,06-Apr-23,19231.81,0,183299,Non-Delegated Statements,170000              Education,A,2023,1
1053,"Children, Schools and Family",CRESSEY OASIS EDUCATION LTD,SI-C0000000122,06-Apr-23,23522.59,0,183299,Non-Delegated Statements,170000              Education,A,2023,1
1054,"Children, Schools and Family",CRESSEY OASIS EDUCATION LTD,SI-C0000000131,06-Apr-23,20017.79,0,183299,Non-Delegated Statements,170000              Education,A,2023,1
1055,"Children, Schools and Family",CRESSEY OASIS EDUCATION LTD,SI-C0000000117,06-Apr-23,21009.95,0,183299,Non-Delegated Statements,170000              Education,A,2023,1
1056,"Children, Schools and Family",CRESSEY OASIS EDUCATION LTD,SI-00000000137,06-Apr-23,22313.2,0,183299,Non-Delegated Statements,170000              Education,A,2023,1
1057,"Children, Schools and Family",CRESSEY OASIS EDUCATION LTD,SI-00000000105,06-Apr-23,19321.77,0,183299,Non-Delegated Statements,170000              Education,A,2023,1
1058,"Children, Schools and Family",CRESSEY OASIS EDUCATION LTD,SI-C0000000109,06-Apr-23,19036.29,0,183299,Non-Delegated Statements,170000              Education,A,2023,1
1059,"Children, Schools and Family",CRESSEY OASIS EDUCATION LTD,SI-C0000000103,06-Apr-23,21025.29,0,183299,Non-Delegated Statements,170000              Education,A,2023,1
1060,"Children, Schools and Family",CRESSEY OASIS EDUCATION LTD,SI-00000000097,06-Apr-23,22647.69,0,183299,Non-Delegated Statements,170000              Education,A,2023,1
1061,"Children, Schools and Family",CRESSEY OASIS EDUCATION LTD,SI-00000000113,06-Apr-23,21553.61,0,183299,Non-Delegated Statements,170000              Education,A,2023,1
1062,"Children, Schools and Family",CRESSEY OASIS EDUCATION LTD,SI-00000000102,06-Apr-23,14277.25,0,183299,Non-Delegated Statements,170000              Education,A,2023,1
1063,"Children, Schools and Family",CRESSEY OASIS EDUCATION LTD,SI-00000000107,06-Apr-23,21025.29,0,183299,Non-Delegated Statements,170000              Education,A,2023,1
1064,"Children, Schools and Family",CRESSEY OASIS EDUCATION LTD,SI-C0000000132,06-Apr-23,19919.9,0,183299,Non-Delegated Statements,170000              Education,A,2023,1
1065,"Children, Schools and Family",CRESSEY OASIS EDUCATION LTD,SI00000000128,06-Apr-23,21553.61,0,183299,Non-Delegated Statements,170000              Education,A,2023,1
1066,"Children, Schools and Family",CRESSEY OASIS EDUCATION LTD,SI-C0000000134,06-Apr-23,19812.39,0,183299,Non-Delegated Statements,170000              Education,A,2023,1
1067,"Children, Schools and Family",CRESSEY OASIS EDUCATION LTD,SI-C0000000101,06-Apr-23,20297.94,0,183299,Non-Delegated Statements,170000              Education,A,2023,1
1068,"Children, Schools and Family",CRESSEY OASIS EDUCATION LTD,SI-00000000135,06-Apr-23,35000.03,0,183299,Non-Delegated Statements,170000              Education,A,2023,1
1069,"Children, Schools and Family",CRESSEY OASIS EDUCATION LTD,SI-00000000118,06-Apr-23,21875.62,0,183299,Non-Delegated Statements,170000              Education,A,2023,1
1070,"Children, Schools and Family",CRESSEY OASIS EDUCATION LTD,SI-00000000123,06-Apr-23,19419.27,0,183299,Non-Delegated Statements,170000              Education,A,2023,1
1071,"Children, Schools and Family",CRESSEY OASIS EDUCATION LTD,SI-00000000099,06-Apr-23,20464.21,0,183299,Non-Delegated Statements,170000              Education,A,2023,1
1072,"Children, Schools and Family",CRESSEY OASIS EDUCATION LTD,SI-00000000110,06-Apr-23,21445.84,0,183299,Non-Delegated Statements,170000              Education,A,2023,1
1073,"Children, Schools and Family",CRESSEY OASIS EDUCATION LTD,SI00000000119,06-Apr-23,27333.28,0,183299,Non-Delegated Statements,170000              Education,A,2023,1
1074,"Children, Schools and Family",CRESSEY OASIS EDUCATION LTD,SI-00000000098,06-Apr-23,21025.29,0,183299,Non-Delegated Statements,170000              Education,A,2023,1
1075,"Children, Schools and Family",CRESSEY OASIS EDUCATION LTD,SI-00000000116,06-Apr-23,20136.74,0,183299,Non-Delegated Statements,170000              Education,A,2023,1
1076,"Children, Schools and Family",CRESSEY OASIS EDUCATION LTD,SI-00000000104,06-Apr-23,20318.09,0,183299,Non-Delegated Statements,170000              Education,A,2023,1
1077,"Children, Schools and Family",CRESSEY OASIS EDUCATION LTD,SI-C0000000130,06-Apr-23,22313.2,0,183299,Non-Delegated Statements,170000              Education,A,2023,1
1078,"Children, Schools and Family",CRESSEY OASIS EDUCATION LTD,SI-00000000127,06-Apr-23,30999.93,0,183299,Non-Delegated Statements,170000              Education,A,2023,1
1079,"Children, Schools and Family",CRESSEY OASIS EDUCATION LTD,SI-00000000125,06-Apr-23,22356.75,0,183299,Non-Delegated Statements,170000              Education,A,2023,1
1080,"Children, Schools and Family",CRESSEY OASIS EDUCATION LTD,SI-C0000000124,06-Apr-23,21394.49,0,183299,Non-Delegated Statements,170000              Education,A,2023,1
1081,"Children, Schools and Family",CRESSEY OASIS EDUCATION LTD,SI-C0000000126,06-Apr-23,24020.62,0,183299,Non-Delegated Statements,170000              Education,A,2023,1
1082,"Children, Schools and Family",CRESSEY OASIS EDUCATION LTD,SI-00000000111,06-Apr-23,30999.93,0,183299,Non-Delegated Statements,170000              Education,A,2023,1
1083,"Children, Schools and Family",CRESSEY OASIS EDUCATION LTD,SI-C0000000133,06-Apr-23,28804.23,0,183299,Non-Delegated Statements,170000              Education,A,2023,1
1084,"Children, Schools and Family",CRESSEY OASIS EDUCATION LTD,SI-00000000100,06-Apr-23,19819.93,0,183299,Non-Delegated Statements,170000              Education,A,2023,1
1085,"Children, Schools and Family",CRESSEY OASIS EDUCATION LTD,SI-00000000193,14-Apr-23,19812.52,0,183299,Non-Delegated Statements,170000              Education,A,2023,1
1086,Community and Housing,REDACTED PERSONAL DATA,958483,25-Apr-23,1170.44,0,183460,Learning Disabilities Placemnt,DIRECT PAYMENTS,R,2023,1
1087,Community and Housing,REDACTED PERSONAL DATA,958535,25-Apr-23,986.44,0,183464,Older People Placements - East,DIRECT PAYMENTS,R,2023,1
1088,"Children, Schools and Family",REDACTED PERSONAL DATA,960056,24-Apr-23,2565,0,183558,Child Disabilities - Placement,CSF-DIRECT PAYMENTS,R,2023,1
1089,Community and Housing,Kent House Care Home,955632,12-Apr-23,2884,0,183560,Older People Placements - East,321017              Nursing & Residential Care Homes,A,2023,1
1090,Corporate Services,TOTAL COMPUTER NETWORKS,SI890488,20-Apr-23,2232,372,183646,Legal Shared Service,270000              Information Communication Technology,A,2023,1
1091,Environment and Regeneration,SCOTTISH POWER,108828180,26-Apr-23,555.4,26.45,183660,Street Lighting,370000              Utilities,A,2023,1
1092,Community and Housing,REDACTED PERSONAL DATA,958438,25-Apr-23,540.96,0,183690,Older People Placements - East,DIRECT PAYMENTS,R,2023,1
1093,Community and Housing,REDACTED PERSONAL DATA,958733,25-Apr-23,679.2,0,184011,Older People Placements - East,DIRECT PAYMENTS,R,2023,1
1094,Community and Housing,NHS MERTON CCG,955500,10-May-23,1620,0,184012,Mental Health Placements,310000              Healthcare,A,2023,1
1095,Community and Housing,NHS MERTON CCG,955598,10-May-23,3462.48,0,184012,Mental Health Placements,310000              Healthcare,A,2023,1
1096,Community and Housing,NHS MERTON CCG,955637,10-May-23,5935.12,0,184012,Mental Health Placements,310000              Healthcare,A,2023,1
1097,"Children, Schools and Family",LEXTOX,287058,20-Apr-23,1525.2,254.2,184053,Family Supp SafeGuard - Place,280000              Legal Services,A,2023,1
1098,"Children, Schools and Family",LEXTOX,288592,27-Apr-23,643.2,107.2,184053,Family Supp SafeGuard - Place,280000              Legal Services,A,2023,1
1099,Community and Housing,REDACTED PERSONAL DATA,958579,25-Apr-23,2530.08,0,184175,Older People Placements - East,DIRECT PAYMENTS,R,2023,1
1100,Community and Housing,CROWNWISE LTD,SH/167/097,20-Apr-23,1392.86,0,184360,Mental Health Placements,321000              Social Community Care Supplies & Services - Adult,A,2023,1
1101,Community and Housing,CROWNWISE LTD,MP/167/111,20-Apr-23,1450,0,184360,Mental Health Placements,321000              Social Community Care Supplies & Services - Adult,A,2023,1
1102,Community and Housing,MARIAN HOUSE NURSING HOME,955411,12-Apr-23,2834.56,0,184385,Older People Placements - East,321017              Nursing & Residential Care Homes,A,2023,1
1103,"Children, Schools and Family",REDACTED PERSONAL DATA,954613,05-Apr-23,549.61,0,184386,Placements Under 18,321100              Social Community Care Supplies & Services - Children,R,2023,1
1104,"Children, Schools and Family",REDACTED PERSONAL DATA,961601,27-Apr-23,632.14,0,184386,Placements Under 18,321100              Social Community Care Supplies & Services - Children,R,2023,1
1105,Community and Housing,REDACTED PERSONAL DATA,958603,25-Apr-23,4087.56,0,184580,Older People Placements - East,DIRECT PAYMENTS,R,2023,1
1106,Community and Housing,REDACTED PERSONAL DATA,960547,25-Apr-23,726.92,0,184608,Older People Placements - East,DIRECT PAYMENTS,R,2023,1
1107,Community and Housing,CROHAM PLACE,955361,12-Apr-23,9007.52,0,184807,Learning Disabilities Placemnt,321017              Nursing & Residential Care Homes,A,2023,1
1108,Community and Housing,CROHAM PLACE,955503,12-Apr-23,9400,0,184807,Learning Disabilities Placemnt,321017              Nursing & Residential Care Homes,A,2023,1
1109,Community and Housing,CROHAM PLACE,955541,12-Apr-23,9400,0,184807,Mental Health Placements,321017              Nursing & Residential Care Homes,A,2023,1
1110,Community and Housing,REDACTED PERSONAL DATA,958715,25-Apr-23,938.6,0,184819,Older People Placements - East,DIRECT PAYMENTS,R,2023,1
1111,"Children, Schools and Family",HIGHER LEVEL CARE (HLC) LTD,14736,18-Apr-23,2435.67,0,184822,Placements Over 18,321100              Social Community Care Supplies & Services - Children Residential,A,2023,1
1112,"Children, Schools and Family",HIGHER LEVEL CARE (HLC) LTD,14738,18-Apr-23,3764.02,0,184822,UASC Care Leavers Over 18,321100              Social Community Care Supplies & Services - Children Residential,A,2023,1
1113,"Children, Schools and Family",HIGHER LEVEL CARE (HLC) LTD,14740,18-Apr-23,3841.65,0,184822,Placements Under 18,321100              Social Community Care Supplies & Services - Children Residential,A,2023,1
1114,"Children, Schools and Family",HIGHER LEVEL CARE (HLC) LTD,14740A,18-Apr-23,3841.67,0,184822,Placements Under 18,321100              Social Community Care Supplies & Services - Children Residential,A,2023,1
1115,"Children, Schools and Family",HIGHER LEVEL CARE (HLC) LTD,14741,18-Apr-23,1992.86,0,184822,UASC Care Leavers Over 18,321100              Social Community Care Supplies & Services - Children Residential,A,2023,1
1116,"Children, Schools and Family",HIGHER LEVEL CARE (HLC) LTD,14743,18-Apr-23,3764.28,0,184822,UASC LAC Under 18,321100              Social Community Care Supplies & Services - Children Residential,A,2023,1
1117,"Children, Schools and Family",HIGHER LEVEL CARE (HLC) LTD,14589,28-Apr-23,3764.29,0,184822,UASC LAC Under 18,321100              Social Community Care Supplies & Services - Children Residential,A,2023,1
1118,Community and Housing,QUARTZ PROPERTIES,LBMGIPN18,28-Apr-23,3750,0,184919,Galpins Road Support,321000              Social Community Care Supplies & Services - Adult,A,2023,1
1119,Community and Housing,QUARTZ PROPERTIES,LBMGIPN19,28-Apr-23,3750,0,184919,Galpins Road Support,321000              Social Community Care Supplies & Services - Adult,A,2023,1
1120,Community and Housing,REDACTED PERSONAL DATA,958612,25-Apr-23,572.76,0,184950,Phys/Sens Placements - East,DIRECT PAYMENTS,R,2023,1
1121,Community and Housing,LONDON CARE LTD,1212/22,04-Apr-23,551.04,0,185026,Older People Placements - East,321000              Social Community Care Supplies & Services - Adult,A,2023,1
1122,Community and Housing,LONDON CARE LTD,1212/4,04-Apr-23,1361.05,0,185026,Older People Placements - East,321000              Social Community Care Supplies & Services - Adult,A,2023,1
1123,Community and Housing,LONDON CARE LTD,1212/9,04-Apr-23,654.15,0,185026,Older People Placements - East,321000              Social Community Care Supplies & Services - Adult,A,2023,1
1124,Community and Housing,LONDON CARE LTD,1212/10,04-Apr-23,2401.97,0,185026,Older People Placements - East,321000              Social Community Care Supplies & Services - Adult,A,2023,1
1125,Community and Housing,LONDON CARE LTD,1212/23,04-Apr-23,1888.65,0,185026,Older People Placements - East,321000              Social Community Care Supplies & Services - Adult,A,2023,1
1126,Community and Housing,LONDON CARE LTD,1212/13,04-Apr-23,788.69,0,185026,Older People Placements - East,321000              Social Community Care Supplies & Services - Adult,A,2023,1
1127,Community and Housing,LONDON CARE LTD,1212/12,04-Apr-23,951.62,0,185026,Older People Placements - East,321000              Social Community Care Supplies & Services - Adult,A,2023,1
1128,Community and Housing,LONDON CARE LTD,1212/20,04-Apr-23,767.75,0,185026,Older People Placements - East,321000              Social Community Care Supplies & Services - Adult,A,2023,1
1129,Community and Housing,LONDON CARE LTD,1212/25,04-Apr-23,757.33,0,185026,Older People Placements - East,321000              Social Community Care Supplies & Services - Adult,A,2023,1
1130,Community and Housing,LONDON CARE LTD,1212/1,04-Apr-23,977.14,0,185026,Older People Placements - East,321000              Social Community Care Supplies & Services - Adult,A,2023,1
1131,Community and Housing,LONDON CARE LTD,1212/17,04-Apr-23,1339.86,0,185026,Older People Placements - East,321000              Social Community Care Supplies & Services - Adult,A,2023,1
1132,Community and Housing,LONDON CARE LTD,1212/3,04-Apr-23,1464.35,0,185026,Older People Placements - East,321000              Social Community Care Supplies & Services - Adult,A,2023,1
1133,Community and Housing,LONDON CARE LTD,1212/30,04-Apr-23,2283.21,0,185026,Older People Placements - East,321000              Social Community Care Supplies & Services - Adult,A,2023,1
1134,Community and Housing,LONDON CARE LTD,1212/19,04-Apr-23,655.3,0,185026,Older People Placements - East,321000              Social Community Care Supplies & Services - Adult,A,2023,1
1135,Community and Housing,LONDON CARE LTD,1212/11,04-Apr-23,539.13,0,185026,Phys/Sens Placements - East,321000              Social Community Care Supplies & Services - Adult,A,2023,1
1136,Community and Housing,LONDON CARE LTD,1212/21,04-Apr-23,1072.38,0,185026,Older People Placements - East,321000              Social Community Care Supplies & Services - Adult,A,2023,1
1137,Community and Housing,LONDON CARE LTD,6767/19,06-Apr-23,654.55,0,185026,Older People Placements - East,321000              Social Community Care Supplies & Services - Adult,A,2023,1
1138,Community and Housing,LONDON CARE LTD,6767/40,06-Apr-23,742.34,0,185026,Older People Placements - East,321000              Social Community Care Supplies & Services - Adult,A,2023,1
1139,Community and Housing,LONDON CARE LTD,6767/53,06-Apr-23,743.08,0,185026,Older People Placements - East,321000              Social Community Care Supplies & Services - Adult,A,2023,1
1140,Community and Housing,LONDON CARE LTD,6767/60,06-Apr-23,2221.2,0,185026,Older People Placements - East,321000              Social Community Care Supplies & Services - Adult,A,2023,1
1141,Community and Housing,LONDON CARE LTD,5050/42,06-Apr-23,1098.46,0,185026,Older People Placements - East,321000              Social Community Care Supplies & Services - Adult,A,2023,1
1142,Community and Housing,LONDON CARE LTD,5050/6,06-Apr-23,1319.4,0,185026,Older People Placements - East,321000              Social Community Care Supplies & Services - Adult,A,2023,1
1143,Community and Housing,LONDON CARE LTD,5050/19,06-Apr-23,2434.29,0,185026,Older People Placements - East,321000              Social Community Care Supplies & Services - Adult,A,2023,1
1144,Community and Housing,LONDON CARE LTD,5050/45,06-Apr-23,1823.43,0,185026,Older People Placements - East,321000              Social Community Care Supplies & Services - Adult,A,2023,1
1145,Community and Housing,LONDON CARE LTD,5050/24,06-Apr-23,844.68,0,185026,Older People Placements - East,321000              Social Community Care Supplies & Services - Adult,A,2023,1
1146,Community and Housing,LONDON CARE LTD,5050/23,06-Apr-23,960.27,0,185026,Older People Placements - East,321000              Social Community Care Supplies & Services - Adult,A,2023,1
1147,Community and Housing,LONDON CARE LTD,5050/1,06-Apr-23,927.55,0,185026,Older People Placements - East,321000              Social Community Care Supplies & Services - Adult,A,2023,1
1148,Community and Housing,LONDON CARE LTD,5050/34,06-Apr-23,1336.86,0,185026,Older People Placements - East,321000              Social Community Care Supplies & Services - Adult,A,2023,1
1149,Community and Housing,LONDON CARE LTD,5050/4,06-Apr-23,1451.25,0,185026,Older People Placements - East,321000              Social Community Care Supplies & Services - Adult,A,2023,1
1150,Community and Housing,LONDON CARE LTD,5050/36,06-Apr-23,655.69,0,185026,Older People Placements - East,321000              Social Community Care Supplies & Services - Adult,A,2023,1
1151,Community and Housing,LONDON CARE LTD,5050/21,06-Apr-23,539.22,0,185026,Phys/Sens Placements - East,321000              Social Community Care Supplies & Services - Adult,A,2023,1
1152,Community and Housing,LONDON CARE LTD,5050/38,06-Apr-23,1055.49,0,185026,Older People Placements - East,321000              Social Community Care Supplies & Services - Adult,A,2023,1
1153,Community and Housing,LONDON CARE LTD,016-5211546,18-Apr-23,4454.8,0,185026,Older People Placements - East,321000              Social Community Care Supplies & Services - Adult,A,2023,1
1154,Community and Housing,LONDON CARE LTD,016-5215765,21-Apr-23,682.73,0,185026,Older People Placements - East,321000              Social Community Care Supplies & Services - Adult,A,2023,1
1155,Community and Housing,LONDON CARE LTD,016-5215766,21-Apr-23,4454.8,0,185026,Older People Placements - East,321000              Social Community Care Supplies & Services - Adult,A,2023,1
1156,"Children, Schools and Family",BROWNE JACOBSON,IN-000148706,11-May-23,751.2,125.2,185063, PFI Unitary Charges,280000              Legal Services,A,2023,1
1157,Corporate Services,NERCON LTD,179298,08-May-23,852,142,185192,Corporate Contracts - FM,130000              Cleaning & Janitorial,A,2023,1
1158,Community and Housing,REDACTED PERSONAL DATA,958590,25-Apr-23,1178.16,0,185250,Older People Placements - East,DIRECT PAYMENTS,R,2023,1
1159,Community and Housing,ORCHARD HILL COLLEGE,DI2020100658,20-Apr-23,960,0,185253,Learning Disabilities Placemnt,170000              Education,A,2023,1
1160,Community and Housing,REDACTED PERSONAL DATA,958357,25-Apr-23,1369.4,0,185353,Mental Health Placements,DIRECT PAYMENTS,R,2023,1
1161,Corporate Services,REDACTED PERSONAL DATA,INV/JDO68,26-Apr-23,2100,350,185360,SLLP - Disbursements,280000              Legal Services                                                                            Confirmed,R,2023,1
1162,Corporate Services,REDACTED PERSONAL DATA,INV/JDO47,21-Apr-23,900,150,185360,SLLP - Disbursements,280000              Legal Services                                                                            Confirmed,R,2023,1
1163,Corporate Services,REDACTED PERSONAL DATA,INV/JDO69,27-Apr-23,1500,250,185360,SLLP - Disbursements,280000              Legal Services                                                                            Confirmed,R,2023,1
1164,Community and Housing,WISDOM SUPPORT SERVICES LTD,12360,14-Apr-23,5911.29,0,185366,Mental Health Placements,321000              Social Community Care Supplies & Services - Adult,A,2023,1
1165,Community and Housing,WISDOM SUPPORT SERVICES LTD,12378,14-Apr-23,6366,0,185366,Mental Health Placements,321000              Social Community Care Supplies & Services - Adult,A,2023,1
1166,Community and Housing,WISDOM SUPPORT SERVICES LTD,12433,02-May-23,6366,0,185366,Mental Health Placements,321000              Social Community Care Supplies & Services - Adult,A,2023,1
1167,Community and Housing,WISDOM SUPPORT SERVICES LTD,12440,02-May-23,2126.16,0,185366,Older People Placements - East,321000              Social Community Care Supplies & Services - Adult,A,2023,1
1168,Community and Housing,WISDOM SUPPORT SERVICES LTD,12438,02-May-23,1266,0,185366,Learning Disabilities Placemnt,321000              Social Community Care Supplies & Services - Adult,A,2023,1
1169,"Children, Schools and Family",Dicky Birds Nurseries - Pepys Road,P1 23 UPFRONTPAY,04-Apr-23,13763.52,0,185387,EARLY YEARS NURSERY GRANTS,200000              Financial Services,A,2023,1
1170,Corporate Services,Carter Brown The Expert Service Ltd,TI046895,21-Apr-23,926.64,154.44,185403,SLLP - Disbursements,280000              Legal Services                                                                            Confirmed,A,2023,1
